{"text_format":"1","workbook":"xlsx","n_sheets":2,"sheets":["الواجهة","المجموع السنوي "],"not_rendered":{"charts":0,"images":0,"macros":1,"external_links":0,"defined_names":1,"comments":0,"pivot_tables":0},"unopened":[],"bounds":{"document_bytes":16777216,"sheet_cells":100000,"rows_first":2000,"rows_last":500,"rows_between":2000,"halvings":0,"cell_chars":16384,"cell_head_chars":4096},"cells_cut":0,"cells_raw":0,"read":"whole","date_system":"1900"}

{"sheet":"الواجهة","index":0,"n_rows":770,"n_cols":83,"rows_kept":770,"cut":false,"hidden":false,"merged":[[760,64,760,82],[759,73,759,82],[769,64,769,82],[766,78,766,82],[766,64,766,67],[767,64,767,67],[765,64,765,82],[761,64,761,82],[762,64,762,82],[764,64,764,82],[766,68,766,74],[763,64,763,82],[748,80,748,82],[748,77,748,79],[748,64,749,64],[748,65,748,67],[748,68,748,70],[748,71,748,73],[748,74,748,76],[738,64,738,82],[739,64,739,82],[746,64,746,82],[744,76,744,77],[744,78,744,79],[744,64,744,75],[744,80,744,82],[741,64,741,82],[742,64,742,82],[743,64,743,82]]}
[]
[]
[]
[]
[]
[]
[]
[]
[]
[]
[]
[]
[]
[]
[]
[]
[]
[]
[]
[]
[]
[]
[]
[]
[]
[]
[]
[]
[]
[]
[]
[]
[]
[]
[]
[]
[]
[]
[]
[]
[]
[]
[]
[]
[]
[]
[]
[]
[]
[]
[]
[]
[]
[]
[]
[]
[]
[]
[]
[]
[]
[]
[]
[]
[]
[]
[]
[]
[]
[]
[]
[]
[]
[]
[]
[]
[]
[]
[]
[]
[]
[]
[]
[]
[]
[]
[]
[]
[]
[]
[]
[]
[]
[]
[]
[]
[]
[]
[]
[]
[]
[]
[]
[]
[]
[]
[]
[]
[]
[]
[]
[]
[]
[]
[]
[]
[]
[]
[]
[]
[]
[]
[]
[]
[]
[]
[]
[]
[]
[]
[]
[]
[]
[]
[]
[]
[]
[]
[]
[]
[]
[]
[]
[]
[]
[]
[]
[]
[]
[]
[]
[]
[]
[]
[]
[]
[]
[]
[]
[]
[]
[]
[]
[]
[]
[]
[]
[]
[]
[]
[]
[]
[]
[]
[]
[]
[]
[]
[]
[]
[]
[]
[]
[]
[]
[]
[]
[]
[]
[]
[]
[]
[]
[]
[]
[]
[]
[]
[]
[]
[]
[]
[]
[]
[]
[]
[]
[]
[]
[]
[]
[]
[]
[]
[]
[]
[]
[]
[]
[]
[]
[]
[]
[]
[]
[]
[]
[]
[]
[]
[]
[]
[]
[]
[]
[]
[]
[]
[]
[]
[]
[]
[]
[]
[]
[]
[]
[]
[]
[]
[]
[]
[]
[]
[]
[]
[]
[]
[]
[]
[]
[]
[]
[]
[]
[]
[]
[]
[]
[]
[]
[]
[]
[]
[]
[]
[]
[]
[]
[]
[]
[]
[]
[]
[]
[]
[]
[]
[]
[]
[]
[]
[]
[]
[]
[]
[]
[]
[]
[]
[]
[]
[]
[]
[]
[]
[]
[]
[]
[]
[]
[]
[]
[]
[]
[]
[]
[]
[]
[]
[]
[]
[]
[]
[]
[]
[]
[]
[]
[]
[]
[]
[]
[]
[]
[]
[]
[]
[]
[]
[]
[]
[]
[]
[]
[]
[]
[]
[]
[]
[]
[]
[]
[]
[]
[]
[]
[]
[]
[]
[]
[]
[]
[]
[]
[]
[]
[]
[]
[]
[]
[]
[]
[]
[]
[]
[]
[]
[]
[]
[]
[]
[]
[]
[]
[]
[]
[]
[]
[]
[]
[]
[]
[]
[]
[]
[]
[]
[]
[]
[]
[]
[]
[]
[]
[]
[]
[]
[]
[]
[]
[]
[]
[]
[]
[]
[]
[]
[]
[]
[]
[]
[]
[]
[]
[]
[]
[]
[]
[]
[]
[]
[]
[]
[]
[]
[]
[]
[]
[]
[]
[]
[]
[]
[]
[]
[]
[]
[]
[]
[]
[]
[]
[]
[]
[]
[]
[]
[]
[]
[]
[]
[]
[]
[]
[]
[]
[]
[]
[]
[]
[]
[]
[]
[]
[]
[]
[]
[]
[]
[]
[]
[]
[]
[]
[]
[]
[]
[]
[]
[]
[]
[]
[]
[]
[]
[]
[]
[]
[]
[]
[]
[]
[]
[]
[]
[]
[]
[]
[]
[]
[]
[]
[]
[]
[]
[]
[]
[]
[]
[]
[]
[]
[]
[]
[]
[]
[]
[]
[]
[]
[]
[]
[]
[]
[]
[]
[]
[]
[]
[]
[]
[]
[]
[]
[]
[]
[]
[]
[]
[]
[]
[]
[]
[]
[]
[]
[]
[]
[]
[]
[]
[]
[]
[]
[]
[]
[]
[]
[]
[]
[]
[]
[]
[]
[]
[]
[]
[]
[]
[]
[]
[]
[]
[]
[]
[]
[]
[]
[]
[]
[]
[]
[]
[]
[]
[]
[]
[]
[]
[]
[]
[]
[]
[]
[]
[]
[]
[]
[]
[]
[]
[]
[]
[]
[]
[]
[]
[]
[]
[]
[]
[]
[]
[]
[]
[]
[]
[]
[]
[]
[]
[]
[]
[]
[]
[]
[]
[]
[]
[]
[]
[]
[]
[]
[]
[]
[]
[]
[]
[]
[]
[]
[]
[]
[]
[]
[]
[]
[]
[]
[]
[]
[]
[]
[]
[]
[]
[]
[]
[]
[]
[]
[]
[]
[]
[]
[]
[]
[]
[]
[]
[]
[]
[]
[]
[]
[]
[]
[]
[]
[]
[]
[]
[]
[]
[]
[]
[]
[]
[]
[]
[]
[]
[]
[]
[]
[]
[]
[]
[]
[]
[]
[]
[]
[]
[]
[]
[]
[]
[]
[]
[]
[]
[]
[]
[]
[]
[]
[]
[]
[]
[]
[]
[]
[]
[]
[]
[null,null,null,null,null,null,null,null,null,null,null,null,null,null,null,null,null,null,null,null,null,null,null,null,null,null,null,null,null,null,null,null,null,null,null,null,null,null,null,null,null,null,null,null,null,null,null,null,null,null,null,"الرقم ","الاسم واللقب ","المؤسسة ","الرتبة ","الاختصاص الاصلي ","رمز الاختصاص المدرس","الحجم الساعي على مستوى المصلحة","تاريخ التنصيب","تاريخ التثبيت","الحجم الساعي في مصالح أخرى","حجم الانتداب على مستوى مراكز أخرى","المركز المنتدب اليه","مجموع الحجم الساعي","الجمهورية الجزائرية الديمقراطية الشعبية"]
[null,null,null,null,null,null,null,null,null,null,null,null,null,null,null,null,null,null,null,null,null,null,null,null,null,null,null,null,null,null,null,null,null,null,null,null,null,null,null,null,null,null,null,null,null,null,null,null,null,null,null,{"$f":"IF(BA740=\"\",\"\",SUBTOTAL(3,BA$740:BA740))","v":""},null,null,null,null,null,null,null,null,null,null,null,{"$f":"BF740+BI740+BJ740","v":0},"وزارة التكوين و التعليم المهنيين"]
[null,null,null,null,null,null,null,null,null,null,null,null,null,null,null,null,null,null,null,null,null,null,null,null,null,null,null,null,null,null,null,null,null,null,null,null,null,null,null,null,null,null,null,null,null,null,null,null,null,null,null,{"$f":"IF(BA741=\"\",\"\",SUBTOTAL(3,BA$740:BA741))","v":""},null,null,null,null,null,null,null,null,null,null,null,{"$f":"BF741+BI741+BJ741","v":0}]
[null,null,null,null,null,null,null,null,null,null,null,null,null,null,null,null,null,null,null,null,null,null,null,null,null,null,null,null,null,null,null,null,null,null,null,null,null,null,null,null,null,null,null,null,null,null,null,null,null,null,null,{"$f":"IF(BA742=\"\",\"\",SUBTOTAL(3,BA$740:BA742))","v":""},null,null,null,null,null,null,null,null,null,null,null,0,"مديرية التكوين و التعليم المهنيين لولاية الشلف"]
[null,null,null,null,null,null,null,null,null,null,null,null,null,null,null,null,null,null,null,null,null,null,null,null,null,null,null,null,null,null,null,null,null,null,null,null,null,null,null,null,null,null,null,null,null,null,null,null,null,null,null,{"$f":"IF(BA743=\"\",\"\",SUBTOTAL(3,BA$740:BA743))","v":""},null,null,null,null,null,null,null,null,null,null,null,0,{"$f":"'المجموع السنوي '!A1","v":"مديرية التكوين والتعليم المهنيين "}]
[null,null,null,null,null,null,null,null,null,null,null,null,null,null,null,null,null,null,null,null,null,null,null,null,null,null,null,null,null,null,null,null,null,null,null,null,null,null,null,null,null,null,null,null,null,null,null,null,null,null,null,{"$f":"IF(BA744=\"\",\"\",SUBTOTAL(3,BA$740:BA744))","v":""},null,null,null,null,null,null,null,null,null,null,null,0,{"$f":"'المجموع السنوي '!A2","v":"لولاية الشلف "}]
[null,null,null,null,null,null,null,null,null,null,null,null,null,null,null,null,null,null,null,null,null,null,null,null,null,null,null,null,null,null,null,null,null,null,null,null,null,null,null,null,null,null,null,null,null,null,null,null,null,null,null,{"$f":"IF(BA745=\"\",\"\",SUBTOTAL(3,BA$740:BA745))","v":""},null,null,null,null,null,null,null,null,null,null,null,0,"البطاقــــــــة الإحصائيـــــة للتكويــــــن الحضوري بتاريخ  :  ",null,null,null,null,null,null,null,null,null,null,null,{"$f":"'المجموع السنوي '!AF$3","v":"28"},null,{"$f":"'المجموع السنوي '!AH$3","v":"جانفي "},null,{"$f":"'المجموع السنوي '!$AM$3","v":2021}]
[null,null,null,null,null,null,null,null,null,null,null,null,null,null,null,null,null,null,null,null,null,null,null,null,null,null,null,null,null,null,null,null,null,null,null,null,null,null,null,null,null,null,null,null,null,null,null,null,null,null,null,{"$f":"IF(BA746=\"\",\"\",SUBTOTAL(3,BA$740:BA746))","v":""},null,null,null,null,null,null,null,null,null,null,null,0]
[null,null,null,null,null,null,null,null,null,null,null,null,null,null,null,null,null,null,null,null,null,null,null,null,null,null,null,null,null,null,null,null,null,null,null,null,null,null,null,null,null,null,null,null,null,null,null,null,null,null,null,{"$f":"IF(BA747=\"\",\"\",SUBTOTAL(3,BA$740:BA747))","v":""},null,null,null,null,null,null,null,null,null,null,null,0,"توزيع المتربصون  حسب المستويات "]
[null,null,null,null,null,null,null,null,null,null,null,null,null,null,null,null,null,null,null,null,null,null,null,null,null,null,null,null,null,null,null,null,null,null,null,null,null,null,null,null,null,null,null,null,null,null,null,null,null,null,null,{"$f":"IF(BA748=\"\",\"\",SUBTOTAL(3,BA$740:BA748))","v":""},null,null,null,null,null,null,null,null,null,null,null,0]
[null,null,null,null,null,null,null,null,null,null,null,null,null,null,null,null,null,null,null,null,null,null,null,null,null,null,null,null,null,null,null,null,null,null,null,null,null,null,null,null,null,null,null,null,null,null,null,null,null,null,null,{"$f":"IF(BA749=\"\",\"\",SUBTOTAL(3,BA$740:BA749))","v":""},null,null,null,null,null,null,null,null,null,null,null,0,"التعينات","المستوى الاول ",null,null,"المستوى الثاني ",null,null,"المستوى الثالث",null,null,"المستوى الرابع",null,null,"المستوى الخامس",null,null,"المجموع"]
[null,null,null,null,null,null,null,null,null,null,null,null,null,null,null,null,null,null,null,null,null,null,null,null,null,null,null,null,null,null,null,null,null,null,null,null,null,null,null,null,null,null,null,null,null,null,null,null,null,null,null,{"$f":"IF(BA750=\"\",\"\",SUBTOTAL(3,BA$740:BA750))","v":""},null,null,null,null,null,null,null,null,null,null,null,0,null,"ذكر","إناث","مجموع","ذكر","إناث","مجموع","ذكر","إناث","مجموع","ذكر","إناث","مجموع","ذكر","إناث","مجموع","ذكر","إناث","مجموع"]
[null,null,null,null,null,null,null,null,null,null,null,null,null,null,null,null,null,null,null,null,null,null,null,null,null,null,null,null,null,null,null,null,null,null,null,null,null,null,null,null,null,null,null,null,null,null,null,null,null,null,null,{"$f":"IF(BA751=\"\",\"\",SUBTOTAL(3,BA$740:BA751))","v":""},null,null,null,null,null,null,null,null,null,null,null,0,"المتربصون  المستمرون",{"$f":"SUBTOTAL(109,('المجموع السنوي '!N7:N34))","v":0},{"$f":"SUBTOTAL(109,('المجموع السنوي '!O7:O34))","v":0},{"$f":"SUBTOTAL(109,('المجموع السنوي '!P7:P34))","v":0},{"$f":"SUBTOTAL(109,('المجموع السنوي '!$N$35:$N$171))","v":0},{"$f":"SUBTOTAL(109,('المجموع السنوي '!$O$35:$O$171))","v":0},{"$f":"SUBTOTAL(109,('المجموع السنوي '!$P$35:$P$171))","v":0},{"$f":"SUBTOTAL(109,('المجموع السنوي '!$N$172:$N$264))","v":0},{"$f":"SUBTOTAL(109,('المجموع السنوي '!$O$172:$O$264))","v":0},{"$f":"SUBTOTAL(109,('المجموع السنوي '!$P$172:$P$264))","v":0},{"$f":"SUBTOTAL(109,('المجموع السنوي '!$N$265:$N$445))","v":0},{"$f":"SUBTOTAL(109,('المجموع السنوي '!$O$265:$O$445))","v":0},{"$f":"SUBTOTAL(109,('المجموع السنوي '!$P$265:$P$445))","v":0},{"$f":"SUBTOTAL(109,('المجموع السنوي '!$N$446:$N$719))","v":0},{"$f":"SUBTOTAL(109,('المجموع السنوي '!$O$446:$O$719))","v":0},{"$f":"SUBTOTAL(109,('المجموع السنوي '!$P$446:$P$719))","v":0},{"$f":"BZ751+BW751+BT751+BQ751+BN751","v":0},{"$f":"CA751+BX751+BU751+BR751+BO751","v":0},{"$f":"CD751+CC751","v":0}]
[null,null,null,null,null,null,null,null,null,null,null,null,null,null,null,null,null,null,null,null,null,null,null,null,null,null,null,null,null,null,null,null,null,null,null,null,null,null,null,null,null,null,null,null,null,null,null,null,null,null,null,{"$f":"IF(BA752=\"\",\"\",SUBTOTAL(3,BA$740:BA752))","v":""},null,null,null,null,null,null,null,null,null,null,null,0,"المتربصون المدمجون ",{"$f":"SUBTOTAL(109,('المجموع السنوي '!Q7:Q34))","v":0},{"$f":"SUBTOTAL(109,('المجموع السنوي '!R7:R34))","v":0},{"$f":"SUBTOTAL(109,('المجموع السنوي '!S7:S34))","v":0},{"$f":"SUBTOTAL(109,('المجموع السنوي '!$Q$35:$Q$171))","v":0},{"$f":"SUBTOTAL(109,('المجموع السنوي '!$R$35:$R$171))","v":0},{"$f":"SUBTOTAL(109,('المجموع السنوي '!$S$35:$S$171))","v":0},{"$f":"SUBTOTAL(109,('المجموع السنوي '!$Q$172:$Q$264))","v":0},{"$f":"SUBTOTAL(109,('المجموع السنوي '!$R$172:$R$264))","v":0},{"$f":"SUBTOTAL(109,('المجموع السنوي '!$S$172:$S$264))","v":0},{"$f":"SUBTOTAL(109,('المجموع السنوي '!$Q$265:$Q$445))","v":0},{"$f":"SUBTOTAL(109,('المجموع السنوي '!$R$265:$R$445))","v":0},{"$f":"SUBTOTAL(109,('المجموع السنوي '!$S$265:$S$445))","v":0},{"$f":"SUBTOTAL(109,('المجموع السنوي '!$Q$446:$Q$719))","v":0},{"$f":"SUBTOTAL(109,('المجموع السنوي '!$R$446:$R$719))","v":0},{"$f":"SUBTOTAL(109,('المجموع السنوي '!$S$446:$S$719))","v":0},{"$f":"BZ752+BW752+BT752+BQ752+BN752","v":0},{"$f":"CA752+BX752+BU752+BR752+BO752","v":0},{"$f":"CD752+CC752","v":0}]
[null,null,null,null,null,null,null,null,null,null,null,null,null,null,null,null,null,null,null,null,null,null,null,null,null,null,null,null,null,null,null,null,null,null,null,null,null,null,null,null,null,null,null,null,null,null,null,null,null,null,null,{"$f":"IF(BA753=\"\",\"\",SUBTOTAL(3,BA$740:BA753))","v":""},null,null,null,null,null,null,null,null,null,null,null,0,"عدد المتربصين المفصولين إبتداءا من الدورة  للمستمرين",{"$f":"SUBTOTAL(109,('المجموع السنوي '!T7:T34))","v":0},{"$f":"SUBTOTAL(109,('المجموع السنوي '!U7:U34))","v":0},{"$f":"SUBTOTAL(109,('المجموع السنوي '!V7:V34))","v":0},{"$f":"SUBTOTAL(109,('المجموع السنوي '!$T$35:$T$171))","v":0},{"$f":"SUBTOTAL(109,('المجموع السنوي '!$U$35:$U$171))","v":0},{"$f":"SUBTOTAL(109,('المجموع السنوي '!$V$35:$V$171))","v":0},{"$f":"SUBTOTAL(109,('المجموع السنوي '!$T$172:$T$264))","v":0},{"$f":"SUBTOTAL(109,('المجموع السنوي '!$U$172:$U$264))","v":0},{"$f":"SUBTOTAL(109,('المجموع السنوي '!$V$172:$V$264))","v":0},{"$f":"SUBTOTAL(109,('المجموع السنوي '!$T$265:$T$445))","v":0},{"$f":"SUBTOTAL(109,('المجموع السنوي '!$U$265:$U$445))","v":0},{"$f":"SUBTOTAL(109,('المجموع السنوي '!$V$265:$V$445))","v":0},{"$f":"SUBTOTAL(109,('المجموع السنوي '!$T$446:$T$719))","v":0},{"$f":"SUBTOTAL(109,('المجموع السنوي '!$U$446:$U$719))","v":0},{"$f":"SUBTOTAL(109,('المجموع السنوي '!$V$446:$V$719))","v":0},0,0,0]
[null,null,null,null,null,null,null,null,null,null,null,null,null,null,null,null,null,null,null,null,null,null,null,null,null,null,null,null,null,null,null,null,null,null,null,null,null,null,null,null,null,null,null,null,null,null,null,null,null,null,null,{"$f":"IF(BA754=\"\",\"\",SUBTOTAL(3,BA$740:BA754))","v":""},null,null,null,null,null,null,null,null,null,null,null,0,"عدد المتربصين المفصولين إبتداءا من الدورة  للجدد",{"$f":"SUBTOTAL(109,('المجموع السنوي '!W7:W34))","v":0},{"$f":"SUBTOTAL(109,('المجموع السنوي '!X7:X34))","v":0},{"$f":"SUBTOTAL(109,('المجموع السنوي '!Y7:Y34))","v":0},{"$f":"SUBTOTAL(109,('المجموع السنوي '!$W$35:$W$171))","v":0},{"$f":"SUBTOTAL(109,('المجموع السنوي '!$X$35:$X$171))","v":0},{"$f":"SUBTOTAL(109,('المجموع السنوي '!$Y$35:$Y$171))","v":0},{"$f":"SUBTOTAL(109,('المجموع السنوي '!$W$172:$W$264))","v":0},{"$f":"SUBTOTAL(109,('المجموع السنوي '!$X$172:$X$264))","v":0},{"$f":"SUBTOTAL(109,('المجموع السنوي '!$Y$172:$Y$264))","v":0},{"$f":"SUBTOTAL(109,('المجموع السنوي '!$W$265:$W$445))","v":0},{"$f":"SUBTOTAL(109,('المجموع السنوي '!$X$265:$X$445))","v":0},{"$f":"SUBTOTAL(109,('المجموع السنوي '!$Y$265:$Y$445))","v":0},{"$f":"SUBTOTAL(109,('المجموع السنوي '!$W$446:$W$719))","v":0},{"$f":"SUBTOTAL(109,('المجموع السنوي '!$X$446:$X$719))","v":0},{"$f":"SUBTOTAL(109,('المجموع السنوي '!$Y$446:$Y$719))","v":0},0,0,0]
[null,null,null,null,null,null,null,null,null,null,null,null,null,null,null,null,null,null,null,null,null,null,null,null,null,null,null,null,null,null,null,null,null,null,null,null,null,null,null,null,null,null,null,null,null,null,null,null,null,null,null,{"$f":"IF(BA755=\"\",\"\",SUBTOTAL(3,BA$740:BA755))","v":""},null,null,null,null,null,null,null,null,null,null,null,0,"التعداد الكلي حسب المحاضر للمتخرجون",{"$f":"SUBTOTAL(109,('المجموع السنوي '!AC7:AC34))","v":0},{"$f":"SUBTOTAL(109,('المجموع السنوي '!AD7:AD34))","v":0},{"$f":"SUBTOTAL(109,('المجموع السنوي '!AE7:AE34))","v":0},{"$f":"SUBTOTAL(109,('المجموع السنوي '!$AC$35:$AC$171))","v":0},{"$f":"SUBTOTAL(109,('المجموع السنوي '!$AD$35:$AD$171))","v":0},{"$f":"SUBTOTAL(109,('المجموع السنوي '!$AE$35:$AE$171))","v":0},{"$f":"SUBTOTAL(109,('المجموع السنوي '!$AC$172:$AC$264))","v":0},{"$f":"SUBTOTAL(109,('المجموع السنوي '!$AD$172:$AD$264))","v":0},{"$f":"SUBTOTAL(109,('المجموع السنوي '!$AE$172:$AE$264))","v":0},{"$f":"SUBTOTAL(109,('المجموع السنوي '!$AC$265:$AC$445))","v":0},{"$f":"SUBTOTAL(109,('المجموع السنوي '!$AD$265:$AD$445))","v":0},{"$f":"SUBTOTAL(109,('المجموع السنوي '!$AE$265:$AE$445))","v":0},{"$f":"SUBTOTAL(109,('المجموع السنوي '!$AC$446:$AC$719))","v":0},{"$f":"SUBTOTAL(109,('المجموع السنوي '!$AD$446:$AD$719))","v":0},{"$f":"SUBTOTAL(109,('المجموع السنوي '!$AE$446:$AE$719))","v":0},0,0,0]
[null,null,null,null,null,null,null,null,null,null,null,null,null,null,null,null,null,null,null,null,null,null,null,null,null,null,null,null,null,null,null,null,null,null,null,null,null,null,null,null,null,null,null,null,null,null,null,null,null,null,null,{"$f":"IF(BA756=\"\",\"\",SUBTOTAL(3,BA$740:BA756))","v":""},null,null,null,null,null,null,null,null,null,null,null,0,"المتربصون الناجحون",{"$f":"SUBTOTAL(109,('المجموع السنوي '!AL7:AL34))","v":0},{"$f":"SUBTOTAL(109,('المجموع السنوي '!AM7:AM34))","v":0},{"$f":"SUBTOTAL(109,('المجموع السنوي '!AN7:AN34))","v":0},{"$f":"SUBTOTAL(109,('المجموع السنوي '!$AL$35:$AL$171))","v":0},{"$f":"SUBTOTAL(109,('المجموع السنوي '!$AM$35:$AM$171))","v":0},{"$f":"SUBTOTAL(109,('المجموع السنوي '!$AN$35:$AN$171))","v":0},{"$f":"SUBTOTAL(109,('المجموع السنوي '!$AL$172:$AL$264))","v":0},{"$f":"SUBTOTAL(109,('المجموع السنوي '!$AM$172:$AM$264))","v":0},{"$f":"SUBTOTAL(109,('المجموع السنوي '!$AN$172:$AN$264))","v":0},{"$f":"SUBTOTAL(109,('المجموع السنوي '!$AL$265:$AL$445))","v":0},{"$f":"SUBTOTAL(109,('المجموع السنوي '!$AM$265:$AM$445))","v":0},{"$f":"SUBTOTAL(109,('المجموع السنوي '!$AN$265:$AN$445))","v":0},{"$f":"SUBTOTAL(109,('المجموع السنوي '!$AL$446:$AL$719))","v":0},{"$f":"SUBTOTAL(109,('المجموع السنوي '!$AM$446:$AM$719))","v":0},{"$f":"SUBTOTAL(109,('المجموع السنوي '!$AN$446:$AN$719))","v":0},0,0,0]
[null,null,null,null,null,null,null,null,null,null,null,null,null,null,null,null,null,null,null,null,null,null,null,null,null,null,null,null,null,null,null,null,null,null,null,null,null,null,null,null,null,null,null,null,null,null,null,null,null,null,null,{"$f":"IF(BA757=\"\",\"\",SUBTOTAL(3,BA$740:BA757))","v":""},null,null,null,null,null,null,null,null,null,null,null,0,"المتربصون الراسبون ",{"$f":"SUBTOTAL(109,('المجموع السنوي '!AF7:AF34))","v":0},{"$f":"SUBTOTAL(109,('المجموع السنوي '!AG7:AG34))","v":0},{"$f":"SUBTOTAL(109,('المجموع السنوي '!AH7:AH34))","v":0},{"$f":"SUBTOTAL(109,('المجموع السنوي '!$AF$35:$AF$171))","v":0},{"$f":"SUBTOTAL(109,('المجموع السنوي '!$AG$35:$AG$171))","v":0},{"$f":"SUBTOTAL(109,('المجموع السنوي '!$AH$35:$AH$171))","v":0},{"$f":"SUBTOTAL(109,('المجموع السنوي '!$AF$172:$AF$264))","v":0},{"$f":"SUBTOTAL(109,('المجموع السنوي '!$AG$172:$AG$264))","v":0},{"$f":"SUBTOTAL(109,('المجموع السنوي '!$AH$172:$AH$264))","v":0},{"$f":"SUBTOTAL(109,('المجموع السنوي '!$AF$265:$AF$445))","v":0},{"$f":"SUBTOTAL(109,('المجموع السنوي '!$AG$265:$AG$445))","v":0},{"$f":"SUBTOTAL(109,('المجموع السنوي '!$AH$265:$AH$445))","v":0},{"$f":"SUBTOTAL(109,('المجموع السنوي '!$AF$446:$AF$719))","v":0},{"$f":"SUBTOTAL(109,('المجموع السنوي '!$AG$446:$AG$719))","v":0},{"$f":"SUBTOTAL(109,('المجموع السنوي '!$AH$446:$AH$719))","v":0},0,0,0]
[null,null,null,null,null,null,null,null,null,null,null,null,null,null,null,null,null,null,null,null,null,null,null,null,null,null,null,null,null,null,null,null,null,null,null,null,null,null,null,null,null,null,null,null,null,null,null,null,null,null,null,{"$f":"IF(BA758=\"\",\"\",SUBTOTAL(3,BA$740:BA758))","v":""},null,null,null,null,null,null,null,null,null,null,null,0,"المتربصون المفصلون من الممتحنون",{"$f":"SUBTOTAL(109,('المجموع السنوي '!AI7:AI34))","v":0},{"$f":"SUBTOTAL(109,('المجموع السنوي '!AJ7:AJ34))","v":0},{"$f":"SUBTOTAL(109,('المجموع السنوي '!AK7:AK34))","v":0},{"$f":"SUBTOTAL(109,('المجموع السنوي '!$AI$35:$AI$171))","v":0},{"$f":"SUBTOTAL(109,('المجموع السنوي '!$AJ$35:$AJ$171))","v":0},{"$f":"SUBTOTAL(109,('المجموع السنوي '!$AK$35:$AK$171))","v":0},{"$f":"SUBTOTAL(109,('المجموع السنوي '!$AI$172:$AI$264))","v":0},{"$f":"SUBTOTAL(109,('المجموع السنوي '!$AJ$172:$AJ$264))","v":0},{"$f":"SUBTOTAL(109,('المجموع السنوي '!$AK$172:$AK$264))","v":0},{"$f":"SUBTOTAL(109,('المجموع السنوي '!$AI$265:$AI$445))","v":0},{"$f":"SUBTOTAL(109,('المجموع السنوي '!$AJ$265:$AJ$445))","v":0},{"$f":"SUBTOTAL(109,('المجموع السنوي '!$AK$265:$AK$445))","v":0},{"$f":"SUBTOTAL(109,('المجموع السنوي '!$AI$446:$AI$719))","v":0},{"$f":"SUBTOTAL(109,('المجموع السنوي '!$AJ$446:$AJ$719))","v":0},{"$f":"SUBTOTAL(109,('المجموع السنوي '!$AK$446:$AK$719))","v":0},0,0,0]
[null,null,null,null,null,null,null,null,null,null,null,null,null,null,null,null,null,null,null,null,null,null,null,null,null,null,null,null,null,null,null,null,null,null,null,null,null,null,null,null,null,null,null,null,null,null,null,null,null,null,null,{"$f":"IF(BA759=\"\",\"\",SUBTOTAL(3,BA$740:BA759))","v":""},null,null,null,null,null,null,null,null,null,null,null,0,"المجموع الكلي الحالي خلال الشهر",{"$f":"(BN751+BN752)-(BN753+BN754)","v":0},0,0,0,0,0,0,0,0,0,0,0,0,0,0,0,0,0]
[null,null,null,null,null,null,null,null,null,null,null,null,null,null,null,null,null,null,null,null,null,null,null,null,null,null,null,null,null,null,null,null,null,null,null,null,null,null,null,null,null,null,null,null,null,null,null,null,null,null,null,{"$f":"IF(BA760=\"\",\"\",SUBTOTAL(3,BA$740:BA760))","v":""},null,null,null,null,null,null,null,null,null,null,null,0,"تقريرملخص حول الوضعية الشهرية للفروع : "]
[null,null,null,null,null,null,null,null,null,null,null,null,null,null,null,null,null,null,null,null,null,null,null,null,null,null,null,null,null,null,null,null,null,null,null,null,null,null,null,null,null,null,null,null,null,null,null,null,null,null,null,{"$f":"IF(BA761=\"\",\"\",SUBTOTAL(3,BA$740:BA761))","v":""},null,null,null,null,null,null,null,null,null,null,null,0]
[null,null,null,null,null,null,null,null,null,null,null,null,null,null,null,null,null,null,null,null,null,null,null,null,null,null,null,null,null,null,null,null,null,null,null,null,null,null,null,null,null,null,null,null,null,null,null,null,null,null,null,{"$f":"IF(BA762=\"\",\"\",SUBTOTAL(3,BA$740:BA762))","v":""},null,null,null,null,null,null,null,null,null,null,null,0]
[null,null,null,null,null,null,null,null,null,null,null,null,null,null,null,null,null,null,null,null,null,null,null,null,null,null,null,null,null,null,null,null,null,null,null,null,null,null,null,null,null,null,null,null,null,null,null,null,null,null,null,{"$f":"IF(BA763=\"\",\"\",SUBTOTAL(3,BA$740:BA763))","v":""},null,null,null,null,null,null,null,null,null,null,null,0]
[null,null,null,null,null,null,null,null,null,null,null,null,null,null,null,null,null,null,null,null,null,null,null,null,null,null,null,null,null,null,null,null,null,null,null,null,null,null,null,null,null,null,null,null,null,null,null,null,null,null,null,{"$f":"IF(BA764=\"\",\"\",SUBTOTAL(3,BA$740:BA764))","v":""},null,null,null,null,null,null,null,null,null,null,null,0]
[null,null,null,null,null,null,null,null,null,null,null,null,null,null,null,null,null,null,null,null,null,null,null,null,null,null,null,null,null,null,null,null,null,null,null,null,null,null,null,null,null,null,null,null,null,null,null,null,null,null,null,{"$f":"IF(BA765=\"\",\"\",SUBTOTAL(3,BA$740:BA765))","v":""},null,null,null,null,null,null,null,null,null,null,null,0]
[null,null,null,null,null,null,null,null,null,null,null,null,null,null,null,null,null,null,null,null,null,null,null,null,null,null,null,null,null,null,null,null,null,null,null,null,null,null,null,null,null,null,null,null,null,null,null,null,null,null,null,{"$f":"IF(BA766=\"\",\"\",SUBTOTAL(3,BA$740:BA766))","v":""},null,null,null,null,null,null,null,null,null,null,null,0]
[null,null,null,null,null,null,null,null,null,null,null,null,null,null,null,null,null,null,null,null,null,null,null,null,null,null,null,null,null,null,null,null,null,null,null,null,null,null,null,null,null,null,null,null,null,null,null,null,null,null,null,{"$f":"IF(BA767=\"\",\"\",SUBTOTAL(3,BA$740:BA767))","v":""},null,null,null,null,null,null,null,null,null,null,null,{"$f":"BF767+BI767+BJ767","v":0},null,null,null,null,null,null,null,null,null,null,null,null,"حرر يوم ",null,{"$f":"TODAY()","v":"2021-11-14"}]
[null,null,null,null,null,null,null,null,null,null,null,null,null,null,null,null,null,null,null,null,null,null,null,null,null,null,null,null,null,null,null,null,null,null,null,null,null,null,null,null,null,null,null,null,null,null,null,null,null,null,null,{"$f":"IF(BA768=\"\",\"\",SUBTOTAL(3,BA$740:BA768))","v":""},null,null,null,null,null,null,null,null,null,null,null,0,"المسؤول البيداغوجي",null,null,null,null,null,null,null,null,null,null,null,null,null,null,null,"المدير "]
[]
[null,null,null,null,null,null,null,null,null,null,null,null,null,null,null,null,null,null,null,null,null,null,null,null,null,null,null,null,null,null,null,null,null,null,null,null,null,null,null,null,null,null,null,null,null,null,null,null,null,null,null,null,null,null,null,null,null,null,null,null,null,null,null,null,"ملاحظة : في حالة التحويل أو الاستقبال يحذف أو يدمج العدد في المستمرين إرفاق المقررة مع البرق/الفصل والمتخرجين إرفاق القائمة مع البرق "]

{"sheet":"المجموع السنوي ","index":1,"n_rows":723,"n_cols":53,"rows_kept":723,"cut":false,"hidden":false,"merged":[[0,0,0,12],[2,38,2,41],[1,0,1,5],[2,2,2,27],[2,31,2,32],[2,33,2,37],[3,0,5,0],[3,1,5,1],[3,3,5,3],[3,2,5,2],[3,5,5,5],[4,25,4,27],[4,37,4,39],[4,16,4,18],[4,19,4,21],[4,34,4,36],[722,45,722,49],[722,1,722,2],[3,52,5,52],[3,40,3,51],[4,43,4,45],[4,46,4,48],[4,49,4,51],[4,40,4,42],[3,6,3,12],[3,4,5,4],[4,28,4,30],[3,13,3,27],[3,28,3,39],[4,31,4,33],[4,13,4,15],[4,22,4,24]]}
["مديرية التكوين والتعليم المهنيين "]
["لولاية الشلف "]
[null,null,"البطاقــــــــة الإحصائيـــــة للتكويــــــن الحضوري  ",null,null,null,null,null,null,null,null,null,null,null,null,null,null,null,null,null,null,null,null,null,null,null,null,null,null,"بتاريخ :",null,"28",null,"جانفي ",null,null,null,null,2021]
["الرقم ","الشعبة","رمز الاختصاص","الإختصاص","التنقيح ","المستوى","وضعية الفروع ",null,null,null,null,null,null,"تعداد المتربصين حسب محاضر البداية",null,null,null,null,null,null,null,null,null,null,null,null,null,null,"تعداد المتربصين المتخرجون حسب محاضر البداية",null,null,null,null,null,null,null,null,null,null,null,"ذوي الاحتياجات الخاصة ",null,null,null,null,null,null,null,null,null,null,null,"نسبة التسرب المهني للفروع المتخرجة"]
[null,null,null,null,null,null,"الفروع العادية ","الفروع المزدوجة","الفروع المنتدبة ","الفروع دروس مسائية","الفروع المستمرة ","الفروع الجديدة","المجموع الجزئي","عدد المتربصين المستمرين\nحسب محاضر البداية",null,null,"عدد المتربصين الجدد\nحسب محاضر البداية",null,null,"عدد المتربصين المفصولين إبتداءا من الدورة  للمستمرين",null,null,"عدد المتربصين المفصولين إبتداءا من الدورة  للجدد",null,null,"المجموع الكلي الحالي",null,null,"التعداد الكلي حسب محاضر البداية",null,null,"الراسبون من الممتحنون",null,null,"المفصولون من محاضرالبداية للممتحنون",null,null,"المتخرجون من الممتحنون",null,null,"المستمرون ",null,null,"المدمجون",null,null,"المتخرجون ",null,null,"الراسبون "]
[null,null,null,null,null,null,null,null,null,null,null,null,null,"ذ","إ","مج","ذ","إ","مج","ذ","إ","مج","ذ","إ","مج","ذ","إ","مج","ذ","إ","مج","ذ","إ","مج","ذ","إ","مج","ذ","إ","مج","ذ","إ","مج","ذ","إ","مج","ذ","إ","مج","ذ","إ","مج"]
[{"$f":"IF(B7=\"\",\"\",SUBTOTAL(3,B$7:B7))","v":1},"الفلاحة ","AGR1201","تـربيــة الإبــل",null,1,null,null,null,null,null,null,{"$f":"J7+I7+H7+G7","v":0},null,null,{"$f":"O7+N7","v":0},null,null,{"$f":"R7+Q7","v":0},null,null,{"$f":"U7+T7","v":0},null,null,{"$f":"X7+W7","v":0},{"$f":"(N7+Q7)-(W7+T7)","v":0},{"$f":"(O7+R7)-(X7+U7)","v":0},{"$f":"(P7+S7)-(Y7+V7)","v":0},null,null,{"$f":"AD7+AC7","v":0},null,null,{"$f":"AG7+AF7","v":0},null,null,{"$f":"AJ7+AI7","v":0},{"$f":"(AC7)-(AF7)-(AI7)","v":0},{"$f":"(AD7)-(AG7)-(AJ7)","v":0},{"$f":"AM7+AL7","v":0},null,null,{"$f":"AP7+AO7","v":0},null,null,{"$f":"AS7+AR7","v":0},null,null,{"$f":"AV7+AU7","v":0},null,null,{"$f":"AY7+AX7","v":0},{"$f":"IFERROR((AK7)/AE7,\"0\")","v":"0"}]
[{"$f":"IF(B8=\"\",\"\",SUBTOTAL(3,B$7:B8))","v":2},"الفلاحة ","AGR1202","حــالب الأبقــار",null,1,null,null,null,null,null,null,{"$f":"J8+I8+H8+G8","v":0},null,null,{"$f":"O8+N8","v":0},null,null,{"$f":"R8+Q8","v":0},null,null,{"$f":"U8+T8","v":0},null,null,{"$f":"X8+W8","v":0},{"$f":"(N8+Q8)-(W8+T8)","v":0},{"$f":"(O8+R8)-(X8+U8)","v":0},{"$f":"(P8+S8)-(Y8+V8)","v":0},null,null,{"$f":"AD8+AC8","v":0},null,null,{"$f":"AG8+AF8","v":0},null,null,{"$f":"AJ8+AI8","v":0},{"$f":"(AC8)-(AF8)-(AI8)","v":0},{"$f":"(AD8)-(AG8)-(AJ8)","v":0},{"$f":"AM8+AL8","v":0},null,null,{"$f":"AP8+AO8","v":0},null,null,{"$f":"AS8+AR8","v":0},null,null,{"$f":"AV8+AU8","v":0},null,null,{"$f":"AY8+AX8","v":0},{"$f":"IFERROR((AK8)/AE8,\"0\")","v":"0"}]
[{"$f":"IF(B9=\"\",\"\",SUBTOTAL(3,B$7:B9))","v":3},"الفلاحة ","AGR1214","تـربيــة الـدواجـن",null,1,null,null,null,null,null,null,0,null,null,0,null,null,0,null,null,0,null,null,0,0,0,0,null,null,0,null,null,0,null,null,0,0,0,0,null,null,0,null,null,0,null,null,0,null,null,0,"0"]
[{"$f":"IF(B10=\"\",\"\",SUBTOTAL(3,B$7:B10))","v":4},"الفلاحة ","AGR1215","تـربيــة الأرانـب",null,1,null,null,null,null,null,null,0,null,null,0,null,null,0,null,null,0,null,null,0,0,0,0,null,null,0,null,null,0,null,null,0,0,0,0,null,null,0,null,null,0,null,null,0,null,null,0,"0"]
[{"$f":"IF(B11=\"\",\"\",SUBTOTAL(3,B$7:B11))","v":5},"البناء والأشغال العمومية","BTP1213","إنجاز سابق الإجهاد",null,1,null,null,null,null,null,null,0,null,null,0,null,null,0,null,null,0,null,null,0,0,0,0,null,null,0,null,null,0,null,null,0,0,0,0,null,null,0,null,null,0,null,null,0,null,null,0,"0"]
[{"$f":"IF(B12=\"\",\"\",SUBTOTAL(3,B$7:B12))","v":6},"البناء والأشغال العمومية","BTP1214","التركيب الصحي",null,1,null,null,null,null,null,null,0,null,null,0,null,null,0,null,null,0,null,null,0,0,0,0,null,null,0,null,null,0,null,null,0,0,0,0,null,null,0,null,null,0,null,null,0,null,null,0,"0"]
[{"$f":"IF(B13=\"\",\"\",SUBTOTAL(3,B$7:B13))","v":7},"البناء والأشغال العمومية","BTP1801","صيانة الطرقات",null,1,null,null,null,null,null,null,0,null,null,0,null,null,0,null,null,0,null,null,0,0,0,0,null,null,0,null,null,0,null,null,0,0,0,0,null,null,0,null,null,0,null,null,0,null,null,0,"0"]
[{"$f":"IF(B14=\"\",\"\",SUBTOTAL(3,B$7:B14))","v":8},"الإنشاءات المعدنية","CML1201","قــفـالــة",null,1,null,null,null,null,null,null,0,null,null,0,null,null,0,null,null,0,null,null,0,0,0,0,null,null,0,null,null,0,null,null,0,0,0,0,null,null,0,null,null,0,null,null,0,null,null,0,"0"]
[{"$f":"IF(B15=\"\",\"\",SUBTOTAL(3,B$7:B15))","v":9},"الإنشاءات المعدنية","CML1202","مطالة و هياكل المركبات",null,1,null,null,null,null,null,null,0,null,null,0,null,null,0,null,null,0,null,null,0,0,0,0,null,null,0,null,null,0,null,null,0,0,0,0,null,null,0,null,null,0,null,null,0,null,null,0,"0"]
[{"$f":"IF(B16=\"\",\"\",SUBTOTAL(3,B$7:B16))","v":10},"الصناعة الجلدية","CPX1801","خياطة، تركيب الأحذية المنتجات الجلدية و الألبسة الجلدية",null,1,null,null,null,null,null,null,0,null,null,0,null,null,0,null,null,0,null,null,0,0,0,0,null,null,0,null,null,0,null,null,0,0,0,0,null,null,0,null,null,0,null,null,0,null,null,0,"0"]
[{"$f":"IF(B17=\"\",\"\",SUBTOTAL(3,B$7:B17))","v":11},"الصناعة الجلدية","CPX1802","تركيب وتشطيب الأحذية",null,1,null,null,null,null,null,null,0,null,null,0,null,null,0,null,null,0,null,null,0,0,0,0,null,null,0,null,null,0,null,null,0,0,0,0,null,null,0,null,null,0,null,null,0,null,null,0,"0"]
[{"$f":"IF(B18=\"\",\"\",SUBTOTAL(3,B$7:B18))","v":12},"مهن البيئة والمياه","MEE1803","تسيير وفرز النفايات",null,1,null,null,null,null,null,null,0,null,null,0,null,null,0,null,null,0,null,null,0,0,0,0,null,null,0,null,null,0,null,null,0,0,0,0,null,null,0,null,null,0,null,null,0,null,null,0,"0"]
[{"$f":"IF(B19=\"\",\"\",SUBTOTAL(3,B$7:B19))","v":13},"حرف الخدمات","MES1201","نساجة و حياكة",null,1,null,null,null,null,null,null,0,null,null,0,null,null,0,null,null,0,null,null,0,0,0,0,null,null,0,null,null,0,null,null,0,0,0,0,null,null,0,null,null,0,null,null,0,null,null,0,"0"]
[{"$f":"IF(B20=\"\",\"\",SUBTOTAL(3,B$7:B20))","v":14},"ميكانيك المحركات والآليات","MME0702","الفلكنة و هندسة العجلات",null,1,null,null,null,null,null,null,0,null,null,0,null,null,0,null,null,0,null,null,0,0,0,0,null,null,0,null,null,0,null,null,0,0,0,0,null,null,0,null,null,0,null,null,0,null,null,0,"0"]
[{"$f":"IF(B21=\"\",\"\",SUBTOTAL(3,B$7:B21))","v":15},"ميكانيك المحركات والآليات","MME1201","توازي وموازنة العجلات",null,1,null,null,null,null,null,null,0,null,null,0,null,null,0,null,null,0,null,null,0,0,0,0,null,null,0,null,null,0,null,null,0,0,0,0,null,null,0,null,null,0,null,null,0,null,null,0,"0"]
[{"$f":"IF(B22=\"\",\"\",SUBTOTAL(3,B$7:B22))","v":16},"الصيد البحري وتربية المائيات","PEC1201","تربية الأسماك في الأحواض",null,1,null,null,null,null,null,null,0,null,null,0,null,null,0,null,null,0,null,null,0,0,0,0,null,null,0,null,null,0,null,null,0,0,0,0,null,null,0,null,null,0,null,null,0,null,null,0,"0"]
[{"$f":"IF(B23=\"\",\"\",SUBTOTAL(3,B$7:B23))","v":17},"الصيد البحري وتربية المائيات","PEC1202","تربية المحار",null,1,null,null,null,null,null,null,0,null,null,0,null,null,0,null,null,0,null,null,0,0,0,0,null,null,0,null,null,0,null,null,0,0,0,0,null,null,0,null,null,0,null,null,0,null,null,0,"0"]
[{"$f":"IF(B24=\"\",\"\",SUBTOTAL(3,B$7:B24))","v":18},"الصيد البحري وتربية المائيات","PEC1801","معالجة المنتجات السمكية",null,1,null,null,null,null,null,null,0,null,null,0,null,null,0,null,null,0,null,null,0,0,0,0,null,null,0,null,null,0,null,null,0,0,0,0,null,null,0,null,null,0,null,null,0,null,null,0,"0"]
[{"$f":"IF(B25=\"\",\"\",SUBTOTAL(3,B$7:B25))","v":19},"تقنيات الادارة والتسيير","TAG1201","عامل المقسم الهاتفي",null,1,null,null,null,null,null,null,0,null,null,0,null,null,0,null,null,0,null,null,0,0,0,0,null,null,0,null,null,0,null,null,0,0,0,0,null,null,0,null,null,0,null,null,0,null,null,0,"0"]
[{"$f":"IF(B26=\"\",\"\",SUBTOTAL(3,B$7:B26))","v":20},"النسيج والألبسة","THC1202","إنتاج النسيج/ خيار: الحياكة",null,1,null,null,null,null,null,null,0,null,null,0,null,null,0,null,null,0,null,null,0,0,0,0,null,null,0,null,null,0,null,null,0,0,0,0,null,null,0,null,null,0,null,null,0,null,null,0,"0"]
[{"$f":"IF(B27=\"\",\"\",SUBTOTAL(3,B$7:B27))","v":21},"النسيج والألبسة","THC1203","إنتاج النسيج/ خيار: الغزل",null,1,null,null,null,null,null,null,0,null,null,0,null,null,0,null,null,0,null,null,0,0,0,0,null,null,0,null,null,0,null,null,0,0,0,0,null,null,0,null,null,0,null,null,0,null,null,0,"0"]
[{"$f":"IF(B28=\"\",\"\",SUBTOTAL(3,B$7:B28))","v":22},"النسيج والألبسة","THC1204","إنتاج النسيج/ خيار: التلفيف، التجميع و إعادة الفتل",null,1,null,null,null,null,null,null,0,null,null,0,null,null,0,null,null,0,null,null,0,0,0,0,null,null,0,null,null,0,null,null,0,0,0,0,null,null,0,null,null,0,null,null,0,null,null,0,"0"]
[{"$f":"IF(B29=\"\",\"\",SUBTOTAL(3,B$7:B29))","v":23},"النسيج والألبسة","THC1205","إنتاج النسيج/ خيار: تحضير الغزل",null,1,null,null,null,null,null,null,0,null,null,0,null,null,0,null,null,0,null,null,0,0,0,0,null,null,0,null,null,0,null,null,0,0,0,0,null,null,0,null,null,0,null,null,0,null,null,0,"0"]
[{"$f":"IF(B30=\"\",\"\",SUBTOTAL(3,B$7:B30))","v":24},"النسيج والألبسة","THC1206","إنتاج النسيج/ خيار: التسدية-التبويش",null,1,null,null,null,null,null,null,0,null,null,0,null,null,0,null,null,0,null,null,0,0,0,0,null,null,0,null,null,0,null,null,0,0,0,0,null,null,0,null,null,0,null,null,0,null,null,0,"0"]
[{"$f":"IF(B31=\"\",\"\",SUBTOTAL(3,B$7:B31))","v":25},"النسيج والألبسة","THC1207","إنتاج النسيج/ خيار:عاقد- مركب",null,1,null,null,null,null,null,null,0,null,null,0,null,null,0,null,null,0,null,null,0,0,0,0,null,null,0,null,null,0,null,null,0,0,0,0,null,null,0,null,null,0,null,null,0,null,null,0,"0"]
[{"$f":"IF(B32=\"\",\"\",SUBTOTAL(3,B$7:B32))","v":26},"النسيج والألبسة","THC1208","إنتاج النسيج/ خيار: مركب السلسلة",null,1,null,null,null,null,null,null,0,null,null,0,null,null,0,null,null,0,null,null,0,0,0,0,null,null,0,null,null,0,null,null,0,0,0,0,null,null,0,null,null,0,null,null,0,null,null,0,"0"]
[{"$f":"IF(B33=\"\",\"\",SUBTOTAL(3,B$7:B33))","v":27},"النسيج والألبسة","THC1209","منظف و مشحم تجهيزات الغزل",null,1,null,null,null,null,null,null,0,null,null,0,null,null,0,null,null,0,null,null,0,0,0,0,null,null,0,null,null,0,null,null,0,0,0,0,null,null,0,null,null,0,null,null,0,null,null,0,"0"]
[{"$f":"IF(B34=\"\",\"\",SUBTOTAL(3,B$7:B34))","v":28},"النسيج والألبسة","THC1210","منظف مشحم تجهيزات النسيج",null,1,null,null,null,null,null,null,0,null,null,0,null,null,0,null,null,0,null,null,0,0,0,0,null,null,0,null,null,0,null,null,0,0,0,0,null,null,0,null,null,0,null,null,0,null,null,0,"0"]
[{"$f":"IF(B35=\"\",\"\",SUBTOTAL(3,B$7:B35))","v":29},"الفلاحة ","AGR0701","زراعة الخضروات",null,2,null,null,null,null,null,null,0,null,null,0,null,null,0,null,null,0,null,null,0,0,0,0,null,null,0,null,null,0,null,null,0,0,0,0,null,null,0,null,null,0,null,null,0,null,null,0,"0"]
[{"$f":"IF(B36=\"\",\"\",SUBTOTAL(3,B$7:B36))","v":30},"الفلاحة ","AGR0702","زراعة الأشجار المُـثـمرة",null,2,null,null,null,null,null,null,0,null,null,0,null,null,0,null,null,0,null,null,0,0,0,0,null,null,0,null,null,0,null,null,0,0,0,0,null,null,0,null,null,0,null,null,0,null,null,0,"0"]
[{"$f":"IF(B37=\"\",\"\",SUBTOTAL(3,B$7:B37))","v":31},"الفلاحة ","AGR0703","البـسـتـنـة",null,2,null,null,null,null,null,null,0,null,null,0,null,null,0,null,null,0,null,null,0,0,0,0,null,null,0,null,null,0,null,null,0,0,0,0,null,null,0,null,null,0,null,null,0,null,null,0,"0"]
[{"$f":"IF(B38=\"\",\"\",SUBTOTAL(3,B$7:B38))","v":32},"الفلاحة ","AGR0704","الزراعات الكبـرى",null,2,null,null,null,null,null,null,0,null,null,0,null,null,0,null,null,0,null,null,0,0,0,0,null,null,0,null,null,0,null,null,0,0,0,0,null,null,0,null,null,0,null,null,0,null,null,0,"0"]
[{"$f":"IF(B39=\"\",\"\",SUBTOTAL(3,B$7:B39))","v":33},"الفلاحة ","AGR0705","الزراعــات الصحراوية",null,2,null,null,null,null,null,null,0,null,null,0,null,null,0,null,null,0,null,null,0,0,0,0,null,null,0,null,null,0,null,null,0,0,0,0,null,null,0,null,null,0,null,null,0,null,null,0,"0"]
[{"$f":"IF(B40=\"\",\"\",SUBTOTAL(3,B$7:B40))","v":34},"الفلاحة ","AGR0706","المشتـلـة",null,2,null,null,null,null,null,null,0,null,null,0,null,null,0,null,null,0,null,null,0,0,0,0,null,null,0,null,null,0,null,null,0,0,0,0,null,null,0,null,null,0,null,null,0,null,null,0,"0"]
[{"$f":"IF(B41=\"\",\"\",SUBTOTAL(3,B$7:B41))","v":35},"الفلاحة ","AGR0707","تـربيــة الخـيــول",null,2,null,null,null,null,null,null,0,null,null,0,null,null,0,null,null,0,null,null,0,0,0,0,null,null,0,null,null,0,null,null,0,0,0,0,null,null,0,null,null,0,null,null,0,null,null,0,"0"]
[{"$f":"IF(B42=\"\",\"\",SUBTOTAL(3,B$7:B42))","v":36},"الفلاحة ","AGR0713","تربية النحـل",null,2,null,null,null,null,null,null,0,null,null,0,null,null,0,null,null,0,null,null,0,0,0,0,null,null,0,null,null,0,null,null,0,0,0,0,null,null,0,null,null,0,null,null,0,null,null,0,"0"]
[{"$f":"IF(B43=\"\",\"\",SUBTOTAL(3,B$7:B43))","v":37},"الفلاحة ","AGR0714","تربية الحيوانات المجترة",null,2,null,null,null,null,null,null,0,null,null,0,null,null,0,null,null,0,null,null,0,0,0,0,null,null,0,null,null,0,null,null,0,0,0,0,null,null,0,null,null,0,null,null,0,null,null,0,"0"]
[{"$f":"IF(B44=\"\",\"\",SUBTOTAL(3,B$7:B44))","v":38},"الفلاحة ","AGR0715","تـربيــة الحيـوانات الصغيـرة",null,2,null,null,null,null,null,null,0,null,null,0,null,null,0,null,null,0,null,null,0,0,0,0,null,null,0,null,null,0,null,null,0,0,0,0,null,null,0,null,null,0,null,null,0,null,null,0,"0"]
[{"$f":"IF(B45=\"\",\"\",SUBTOTAL(3,B$7:B45))","v":39},"الفلاحة ","AGR1203","زراعة الحبــوب",null,2,null,null,null,null,null,null,0,null,null,0,null,null,0,null,null,0,null,null,0,0,0,0,null,null,0,null,null,0,null,null,0,0,0,0,null,null,0,null,null,0,null,null,0,null,null,0,"0"]
[{"$f":"IF(B46=\"\",\"\",SUBTOTAL(3,B$7:B46))","v":40},"الفلاحة ","AGR1205","زراعة الكـروم",null,2,null,null,null,null,null,null,0,null,null,0,null,null,0,null,null,0,null,null,0,0,0,0,null,null,0,null,null,0,null,null,0,0,0,0,null,null,0,null,null,0,null,null,0,null,null,0,"0"]
[{"$f":"IF(B47=\"\",\"\",SUBTOTAL(3,B$7:B47))","v":41},"الفلاحة ","AGR1206","زراعة الغابـات",null,2,null,null,null,null,null,null,0,null,null,0,null,null,0,null,null,0,null,null,0,0,0,0,null,null,0,null,null,0,null,null,0,0,0,0,null,null,0,null,null,0,null,null,0,null,null,0,"0"]
[{"$f":"IF(B48=\"\",\"\",SUBTOTAL(3,B$7:B48))","v":42},"الفلاحة ","AGR1207","زراعة النباتات الطبية ،العطرية و الأعشاب",null,2,null,null,null,null,null,null,0,null,null,0,null,null,0,null,null,0,null,null,0,0,0,0,null,null,0,null,null,0,null,null,0,0,0,0,null,null,0,null,null,0,null,null,0,null,null,0,"0"]
[{"$f":"IF(B49=\"\",\"\",SUBTOTAL(3,B$7:B49))","v":43},"الفلاحة ","AGR1208","تـربيــة الأبـقــار",null,2,null,null,null,null,null,null,0,null,null,0,null,null,0,null,null,0,null,null,0,0,0,0,null,null,0,null,null,0,null,null,0,0,0,0,null,null,0,null,null,0,null,null,0,null,null,0,"0"]
[{"$f":"IF(B50=\"\",\"\",SUBTOTAL(3,B$7:B50))","v":44},"الفلاحة ","AGR1209","تـربيــة الأغنــام والمعــز",null,2,null,null,null,null,null,null,0,null,null,0,null,null,0,null,null,0,null,null,0,0,0,0,null,null,0,null,null,0,null,null,0,0,0,0,null,null,0,null,null,0,null,null,0,null,null,0,"0"]
[{"$f":"IF(B51=\"\",\"\",SUBTOTAL(3,B$7:B51))","v":45},"الفلاحة ","AGR1901","المحاصيل تحت الدفيئة",null,2,null,null,null,null,null,null,0,null,null,0,null,null,0,null,null,0,null,null,0,0,0,0,null,null,0,null,null,0,null,null,0,0,0,0,null,null,0,null,null,0,null,null,0,null,null,0,"0"]
[{"$f":"IF(B52=\"\",\"\",SUBTOTAL(3,B$7:B52))","v":46},"الفلاحة ","AGR1902","زراعة النخيل",null,2,null,null,null,null,null,null,0,null,null,0,null,null,0,null,null,0,null,null,0,0,0,0,null,null,0,null,null,0,null,null,0,0,0,0,null,null,0,null,null,0,null,null,0,null,null,0,"0"]
[{"$f":"IF(B53=\"\",\"\",SUBTOTAL(3,B$7:B53))","v":47},"الفنون والصناعة المطبعية","AIG0701","تشغيل آلات الطبع هيليو",null,2,null,null,null,null,null,null,0,null,null,0,null,null,0,null,null,0,null,null,0,0,0,0,null,null,0,null,null,0,null,null,0,0,0,0,null,null,0,null,null,0,null,null,0,null,null,0,"0"]
[{"$f":"IF(B54=\"\",\"\",SUBTOTAL(3,B$7:B54))","v":48},"الفنون والصناعة المطبعية","AIG0702","تشغيل آلات الطبع فليكسو",null,2,null,null,null,null,null,null,0,null,null,0,null,null,0,null,null,0,null,null,0,0,0,0,null,null,0,null,null,0,null,null,0,0,0,0,null,null,0,null,null,0,null,null,0,null,null,0,"0"]
[{"$f":"IF(B55=\"\",\"\",SUBTOTAL(3,B$7:B55))","v":49},"الفنون والصناعة المطبعية","AIG0703","تشغيل آلات الطبع  أوفست",null,2,null,null,null,null,null,null,0,null,null,0,null,null,0,null,null,0,null,null,0,0,0,0,null,null,0,null,null,0,null,null,0,0,0,0,null,null,0,null,null,0,null,null,0,null,null,0,"0"]
[{"$f":"IF(B56=\"\",\"\",SUBTOTAL(3,B$7:B56))","v":50},"الحرف التقليدية","ART0701","النقش على الخشب",null,2,null,null,null,null,null,null,0,null,null,0,null,null,0,null,null,0,null,null,0,0,0,0,null,null,0,null,null,0,null,null,0,0,0,0,null,null,0,null,null,0,null,null,0,null,null,0,"0"]
[{"$f":"IF(B57=\"\",\"\",SUBTOTAL(3,B$7:B57))","v":51},"الحرف التقليدية","ART0702","الحدادة الفنية",null,2,null,null,null,null,null,null,0,null,null,0,null,null,0,null,null,0,null,null,0,0,0,0,null,null,0,null,null,0,null,null,0,0,0,0,null,null,0,null,null,0,null,null,0,null,null,0,"0"]
[{"$f":"IF(B58=\"\",\"\",SUBTOTAL(3,B$7:B58))","v":52},"الحرف التقليدية","ART0703","نقش على الجبس",null,2,null,null,null,null,null,null,0,null,null,0,null,null,0,null,null,0,null,null,0,0,0,0,null,null,0,null,null,0,null,null,0,0,0,0,null,null,0,null,null,0,null,null,0,null,null,0,"0"]
[{"$f":"IF(B59=\"\",\"\",SUBTOTAL(3,B$7:B59))","v":53},"الحرف التقليدية","ART0704","صناعة الخزف / تخصص فخار",null,2,null,null,null,null,null,null,0,null,null,0,null,null,0,null,null,0,null,null,0,0,0,0,null,null,0,null,null,0,null,null,0,0,0,0,null,null,0,null,null,0,null,null,0,null,null,0,"0"]
[{"$f":"IF(B60=\"\",\"\",SUBTOTAL(3,B$7:B60))","v":54},"الحرف التقليدية","ART0705","النسيج التقليدي",null,2,null,null,null,null,null,null,0,null,null,0,null,null,0,null,null,0,null,null,0,0,0,0,null,null,0,null,null,0,null,null,0,0,0,0,null,null,0,null,null,0,null,null,0,null,null,0,"0"]
[{"$f":"IF(B61=\"\",\"\",SUBTOTAL(3,B$7:B61))","v":55},"الحرف التقليدية","ART0706","النُحاسيات",null,2,null,null,null,null,null,null,0,null,null,0,null,null,0,null,null,0,null,null,0,0,0,0,null,null,0,null,null,0,null,null,0,0,0,0,null,null,0,null,null,0,null,null,0,null,null,0,"0"]
[{"$f":"IF(B62=\"\",\"\",SUBTOTAL(3,B$7:B62))","v":56},"الحرف التقليدية","ART0707","السلالة",null,2,null,null,null,null,null,null,0,null,null,0,null,null,0,null,null,0,null,null,0,0,0,0,null,null,0,null,null,0,null,null,0,0,0,0,null,null,0,null,null,0,null,null,0,null,null,0,"0"]
[{"$f":"IF(B63=\"\",\"\",SUBTOTAL(3,B$7:B63))","v":57},"الحرف التقليدية","ART0708","النقش على الرخام و الحجر",null,2,null,null,null,null,null,null,0,null,null,0,null,null,0,null,null,0,null,null,0,0,0,0,null,null,0,null,null,0,null,null,0,0,0,0,null,null,0,null,null,0,null,null,0,null,null,0,"0"]
[{"$f":"IF(B64=\"\",\"\",SUBTOTAL(3,B$7:B64))","v":58},"الحرف التقليدية","ART0709","صناعة الحلي التقليدي",null,2,null,null,null,null,null,null,0,null,null,0,null,null,0,null,null,0,null,null,0,0,0,0,null,null,0,null,null,0,null,null,0,0,0,0,null,null,0,null,null,0,null,null,0,null,null,0,"0"]
[{"$f":"IF(B65=\"\",\"\",SUBTOTAL(3,B$7:B65))","v":59},"الحرف التقليدية","ART0710","الطرز",null,2,null,null,null,null,null,null,0,null,null,0,null,null,0,null,null,0,null,null,0,0,0,0,null,null,0,null,null,0,null,null,0,0,0,0,null,null,0,null,null,0,null,null,0,null,null,0,"0"]
[{"$f":"IF(B66=\"\",\"\",SUBTOTAL(3,B$7:B66))","v":60},"الحرف التقليدية","ART0711","طلاء، حروف و زخرفة",null,2,null,null,null,null,null,null,0,null,null,0,null,null,0,null,null,0,null,null,0,0,0,0,null,null,0,null,null,0,null,null,0,0,0,0,null,null,0,null,null,0,null,null,0,null,null,0,"0"]
[{"$f":"IF(B67=\"\",\"\",SUBTOTAL(3,B$7:B67))","v":61},"الحرف التقليدية","ART0712","الزخرفة على الزجاج",null,2,null,null,null,null,null,null,0,null,null,0,null,null,0,null,null,0,null,null,0,0,0,0,null,null,0,null,null,0,null,null,0,0,0,0,null,null,0,null,null,0,null,null,0,null,null,0,"0"]
[{"$f":"IF(B68=\"\",\"\",SUBTOTAL(3,B$7:B68))","v":62},"الحرف التقليدية","ART0713","صناعة الخزف / تخصص الزليج",null,2,null,null,null,null,null,null,0,null,null,0,null,null,0,null,null,0,null,null,0,0,0,0,null,null,0,null,null,0,null,null,0,0,0,0,null,null,0,null,null,0,null,null,0,null,null,0,"0"]
[{"$f":"IF(B69=\"\",\"\",SUBTOTAL(3,B$7:B69))","v":63},"الحرف التقليدية","ART1201","المنسوج",null,2,null,null,null,null,null,null,0,null,null,0,null,null,0,null,null,0,null,null,0,0,0,0,null,null,0,null,null,0,null,null,0,0,0,0,null,null,0,null,null,0,null,null,0,null,null,0,"0"]
[{"$f":"IF(B70=\"\",\"\",SUBTOTAL(3,B$7:B70))","v":64},"الحرف التقليدية","ART1202","الفريدة",null,2,null,null,null,null,null,null,0,null,null,0,null,null,0,null,null,0,null,null,0,0,0,0,null,null,0,null,null,0,null,null,0,0,0,0,null,null,0,null,null,0,null,null,0,null,null,0,"0"]
[{"$f":"IF(B71=\"\",\"\",SUBTOTAL(3,B$7:B71))","v":65},"الحرف التقليدية","ART1203","الطرز التقليدي",null,2,null,null,null,null,null,null,0,null,null,0,null,null,0,null,null,0,null,null,0,0,0,0,null,null,0,null,null,0,null,null,0,0,0,0,null,null,0,null,null,0,null,null,0,null,null,0,"0"]
[{"$f":"IF(B72=\"\",\"\",SUBTOTAL(3,B$7:B72))","v":66},"الحرف التقليدية","ART1204","الفخار التقليدي",null,2,null,null,null,null,null,null,{"$f":"J72+I72+H72+G72","v":0},null,null,{"$f":"O72+N72","v":0},null,null,{"$f":"R72+Q72","v":0},null,null,{"$f":"U72+T72","v":0},null,null,{"$f":"X72+W72","v":0},{"$f":"(N72+Q72)-(W72+T72)","v":0},{"$f":"(O72+R72)-(X72+U72)","v":0},{"$f":"(P72+S72)-(Y72+V72)","v":0},null,null,{"$f":"AD72+AC72","v":0},null,null,{"$f":"AG72+AF72","v":0},null,null,{"$f":"AJ72+AI72","v":0},{"$f":"(AC72)-(AF72)-(AI72)","v":0},{"$f":"(AD72)-(AG72)-(AJ72)","v":0},{"$f":"AM72+AL72","v":0},null,null,{"$f":"AP72+AO72","v":0},null,null,{"$f":"AS72+AR72","v":0},null,null,{"$f":"AV72+AU72","v":0},null,null,{"$f":"AY72+AX72","v":0},{"$f":"IFERROR((AK72)/AE72,\"0\")","v":"0"}]
[{"$f":"IF(B73=\"\",\"\",SUBTOTAL(3,B$7:B73))","v":67},"الحرف التقليدية","ART1205","صناعة السروج",null,2,null,null,null,null,null,null,0,null,null,0,null,null,0,null,null,0,null,null,0,0,0,0,null,null,0,null,null,0,null,null,0,0,0,0,null,null,0,null,null,0,null,null,0,null,null,0,"0"]
[{"$f":"IF(B74=\"\",\"\",SUBTOTAL(3,B$7:B74))","v":68},"الحرف التقليدية","ART1206","المنتجات الجلدية التقليدية",null,2,null,null,null,null,null,null,0,null,null,0,null,null,0,null,null,0,null,null,0,0,0,0,null,null,0,null,null,0,null,null,0,0,0,0,null,null,0,null,null,0,null,null,0,null,null,0,"0"]
[{"$f":"IF(B75=\"\",\"\",SUBTOTAL(3,B$7:B75))","v":69},"الحرف التقليدية","ART1210","النفخ على الزجاج",null,2,null,null,null,null,null,null,0,null,null,0,null,null,0,null,null,0,null,null,0,0,0,0,null,null,0,null,null,0,null,null,0,0,0,0,null,null,0,null,null,0,null,null,0,null,null,0,"0"]
[{"$f":"IF(B76=\"\",\"\",SUBTOTAL(3,B$7:B76))","v":70},"الحرف التقليدية","ART1801","تنجيد",null,2,null,null,null,null,null,null,0,null,null,0,null,null,0,null,null,0,null,null,0,0,0,0,null,null,0,null,null,0,null,null,0,0,0,0,null,null,0,null,null,0,null,null,0,null,null,0,"0"]
[{"$f":"IF(B77=\"\",\"\",SUBTOTAL(3,B$7:B77))","v":71},"الخشب والتأثيث","BAM0701","النجارة المعمارية",null,2,null,null,null,null,null,null,0,null,null,0,null,null,0,null,null,0,null,null,0,0,0,0,null,null,0,null,null,0,null,null,0,0,0,0,null,null,0,null,null,0,null,null,0,null,null,0,"0"]
[{"$f":"IF(B78=\"\",\"\",SUBTOTAL(3,B$7:B78))","v":72},"الخشب والتأثيث","BAM0702","هياكل البناء الخشبية",null,2,null,null,null,null,null,null,0,null,null,0,null,null,0,null,null,0,null,null,0,0,0,0,null,null,0,null,null,0,null,null,0,0,0,0,null,null,0,null,null,0,null,null,0,null,null,0,"0"]
[{"$f":"IF(B79=\"\",\"\",SUBTOTAL(3,B$7:B79))","v":73},"البناء والأشغال العمومية","BTP0701","البنــاء",null,2,null,null,null,null,null,null,0,null,null,0,null,null,0,null,null,0,null,null,0,0,0,0,null,null,0,null,null,0,null,null,0,0,0,0,null,null,0,null,null,0,null,null,0,null,null,0,"0"]
[{"$f":"IF(B80=\"\",\"\",SUBTOTAL(3,B$7:B80))","v":74},"البناء والأشغال العمومية","BTP0702","التجصيص",null,2,null,null,null,null,null,null,0,null,null,0,null,null,0,null,null,0,null,null,0,0,0,0,null,null,0,null,null,0,null,null,0,0,0,0,null,null,0,null,null,0,null,null,0,null,null,0,"0"]
[{"$f":"IF(B81=\"\",\"\",SUBTOTAL(3,B$7:B81))","v":75},"البناء والأشغال العمومية","BTP0703","طلاء و تركيب الزجاج",null,2,null,null,null,null,null,null,0,null,null,0,null,null,0,null,null,0,null,null,0,0,0,0,null,null,0,null,null,0,null,null,0,0,0,0,null,null,0,null,null,0,null,null,0,null,null,0,"0"]
[{"$f":"IF(B82=\"\",\"\",SUBTOTAL(3,B$7:B82))","v":76},"البناء والأشغال العمومية","BTP0705","البلاط ، الخزف و الفسيفساء",null,2,null,null,null,null,null,null,0,null,null,0,null,null,0,null,null,0,null,null,0,0,0,0,null,null,0,null,null,0,null,null,0,0,0,0,null,null,0,null,null,0,null,null,0,null,null,0,"0"]
[{"$f":"IF(B83=\"\",\"\",SUBTOTAL(3,B$7:B83))","v":77},"البناء والأشغال العمومية","BTP0706","التركيب الصحي و الغـاز",null,2,null,null,null,null,null,null,0,null,null,0,null,null,0,null,null,0,null,null,0,0,0,0,null,null,0,null,null,0,null,null,0,0,0,0,null,null,0,null,null,0,null,null,0,null,null,0,"0"]
[{"$f":"IF(B84=\"\",\"\",SUBTOTAL(3,B$7:B84))","v":78},"البناء والأشغال العمومية","BTP0707","التدفـئة المركزية",null,2,null,null,null,null,null,null,0,null,null,0,null,null,0,null,null,0,null,null,0,0,0,0,null,null,0,null,null,0,null,null,0,0,0,0,null,null,0,null,null,0,null,null,0,null,null,0,"0"]
[{"$f":"IF(B85=\"\",\"\",SUBTOTAL(3,B$7:B85))","v":79},"البناء والأشغال العمومية","BTP0708","القولبة والتسليح",null,2,null,null,null,null,null,null,0,null,null,0,null,null,0,null,null,0,null,null,0,0,0,0,null,null,0,null,null,0,null,null,0,0,0,0,null,null,0,null,null,0,null,null,0,null,null,0,"0"]
[{"$f":"IF(B86=\"\",\"\",SUBTOTAL(3,B$7:B86))","v":80},"البناء والأشغال العمومية","BTP0709","المساكة",null,2,null,null,null,null,null,null,0,null,null,0,null,null,0,null,null,0,null,null,0,0,0,0,null,null,0,null,null,0,null,null,0,0,0,0,null,null,0,null,null,0,null,null,0,null,null,0,"0"]
[{"$f":"IF(B87=\"\",\"\",SUBTOTAL(3,B$7:B87))","v":81},"البناء والأشغال العمومية","BTP0710","نحت و تركـيـب الحجر والرخام",null,2,null,null,null,null,null,null,0,null,null,0,null,null,0,null,null,0,null,null,0,0,0,0,null,null,0,null,null,0,null,null,0,0,0,0,null,null,0,null,null,0,null,null,0,null,null,0,"0"]
[{"$f":"IF(B88=\"\",\"\",SUBTOTAL(3,B$7:B88))","v":82},"البناء والأشغال العمومية","BTP1901","دهن الإيبوكسي للأرضيات و الجدران",null,2,null,null,null,null,null,null,0,null,null,0,null,null,0,null,null,0,null,null,0,0,0,0,null,null,0,null,null,0,null,null,0,0,0,0,null,null,0,null,null,0,null,null,0,null,null,0,"0"]
[{"$f":"IF(B89=\"\",\"\",SUBTOTAL(3,B$7:B89))","v":83},"الكيمياء الصناعية والبلاستيك","CIP0701","تصفيح راتنج بوليستر",null,2,null,null,null,null,null,null,0,null,null,0,null,null,0,null,null,0,null,null,0,0,0,0,null,null,0,null,null,0,null,null,0,0,0,0,null,null,0,null,null,0,null,null,0,null,null,0,"0"]
[{"$f":"IF(B90=\"\",\"\",SUBTOTAL(3,B$7:B90))","v":84},"الكيمياء الصناعية والبلاستيك","CIP1801","صناعة التجهيزات و قطع الغيار الخاصة بمادة البوليستر المقوى بألياف الزجاج",null,2,null,null,null,null,null,null,0,null,null,0,null,null,0,null,null,0,null,null,0,0,0,0,null,null,0,null,null,0,null,null,0,0,0,0,null,null,0,null,null,0,null,null,0,null,null,0,"0"]
[{"$f":"IF(B91=\"\",\"\",SUBTOTAL(3,B$7:B91))","v":85},"الكيمياء الصناعية والبلاستيك","CIP1901","صناعة البلاستيك",null,2,null,null,null,null,null,null,0,null,null,0,null,null,0,null,null,0,null,null,0,0,0,0,null,null,0,null,null,0,null,null,0,0,0,0,null,null,0,null,null,0,null,null,0,null,null,0,"0"]
[{"$f":"IF(B92=\"\",\"\",SUBTOTAL(3,B$7:B92))","v":86},"الإنشاءات المعدنية","CML0701","تلحيم",null,2,null,null,null,null,null,null,0,null,null,0,null,null,0,null,null,0,null,null,0,0,0,0,null,null,0,null,null,0,null,null,0,0,0,0,null,null,0,null,null,0,null,null,0,null,null,0,"0"]
[{"$f":"IF(B93=\"\",\"\",SUBTOTAL(3,B$7:B93))","v":87},"الإنشاءات المعدنية","CML0702","مطالة ، هياكل المركبات و الطلاء",null,2,null,null,null,null,null,null,0,null,null,0,null,null,0,null,null,0,null,null,0,0,0,0,null,null,0,null,null,0,null,null,0,0,0,0,null,null,0,null,null,0,null,null,0,null,null,0,"0"]
[{"$f":"IF(B94=\"\",\"\",SUBTOTAL(3,B$7:B94))","v":88},"الإنشاءات المعدنية","CML0703","نجارة المعدنية",null,2,null,null,null,null,null,null,0,null,null,0,null,null,0,null,null,0,null,null,0,0,0,0,null,null,0,null,null,0,null,null,0,0,0,0,null,null,0,null,null,0,null,null,0,null,null,0,"0"]
[{"$f":"IF(B95=\"\",\"\",SUBTOTAL(3,B$7:B95))","v":89},"الإنشاءات المعدنية","CML0704","نجارة الألومينيوم والمواد البلاستيكية (PVC)",null,2,null,null,null,null,null,null,0,null,null,0,null,null,0,null,null,0,null,null,0,0,0,0,null,null,0,null,null,0,null,null,0,0,0,0,null,null,0,null,null,0,null,null,0,null,null,0,"0"]
[{"$f":"IF(B96=\"\",\"\",SUBTOTAL(3,B$7:B96))","v":90},"الإنشاءات المعدنية","CML0705","هـيكلة المعدنية",null,2,null,null,null,null,null,null,0,null,null,0,null,null,0,null,null,0,null,null,0,0,0,0,null,null,0,null,null,0,null,null,0,0,0,0,null,null,0,null,null,0,null,null,0,null,null,0,"0"]
[{"$f":"IF(B97=\"\",\"\",SUBTOTAL(3,B$7:B97))","v":91},"الإنشاءات المعدنية","CML0706","عامل في الطلاء الصناعي",null,2,null,null,null,null,null,null,0,null,null,0,null,null,0,null,null,0,null,null,0,0,0,0,null,null,0,null,null,0,null,null,0,0,0,0,null,null,0,null,null,0,null,null,0,null,null,0,"0"]
[{"$f":"IF(B98=\"\",\"\",SUBTOTAL(3,B$7:B98))","v":92},"الإنشاءات الميكانيكية والصناعة الحديدية\n","CMS0701","الـخراطة",null,2,null,null,null,null,null,null,0,null,null,0,null,null,0,null,null,0,null,null,0,0,0,0,null,null,0,null,null,0,null,null,0,0,0,0,null,null,0,null,null,0,null,null,0,null,null,0,"0"]
[{"$f":"IF(B99=\"\",\"\",SUBTOTAL(3,B$7:B99))","v":93},"الإنشاءات الميكانيكية والصناعة الحديدية\n","CMS0702","تفريز",null,2,null,null,null,null,null,null,0,null,null,0,null,null,0,null,null,0,null,null,0,0,0,0,null,null,0,null,null,0,null,null,0,0,0,0,null,null,0,null,null,0,null,null,0,null,null,0,"0"]
[{"$f":"IF(B100=\"\",\"\",SUBTOTAL(3,B$7:B100))","v":94},"الإنشاءات الميكانيكية والصناعة الحديدية\n","CMS0703","شـحْـذ",null,2,null,null,null,null,null,null,0,null,null,0,null,null,0,null,null,0,null,null,0,0,0,0,null,null,0,null,null,0,null,null,0,0,0,0,null,null,0,null,null,0,null,null,0,null,null,0,"0"]
[{"$f":"IF(B101=\"\",\"\",SUBTOTAL(3,B$7:B101))","v":95},"الإنشاءات الميكانيكية والصناعة الحديدية\n","CMS0704","القولبة في السباكة",null,2,null,null,null,null,null,null,0,null,null,0,null,null,0,null,null,0,null,null,0,0,0,0,null,null,0,null,null,0,null,null,0,0,0,0,null,null,0,null,null,0,null,null,0,null,null,0,"0"]
[{"$f":"IF(B102=\"\",\"\",SUBTOTAL(3,B$7:B102))","v":96},"الصناعة الجلدية","CPX0701","الـسكافة وتصليح  منتجات المواد الليّنة",null,2,null,null,null,null,null,null,0,null,null,0,null,null,0,null,null,0,null,null,0,0,0,0,null,null,0,null,null,0,null,null,0,0,0,0,null,null,0,null,null,0,null,null,0,null,null,0,"0"]
[{"$f":"IF(B103=\"\",\"\",SUBTOTAL(3,B$7:B103))","v":97},"الصناعة الجلدية","CPX0702","التجهيز و التأثيث الداخلي للمركبات",null,2,null,null,null,null,null,null,0,null,null,0,null,null,0,null,null,0,null,null,0,0,0,0,null,null,0,null,null,0,null,null,0,0,0,0,null,null,0,null,null,0,null,null,0,null,null,0,"0"]
[{"$f":"IF(B104=\"\",\"\",SUBTOTAL(3,B$7:B104))","v":98},"الصناعة الجلدية","CPX0703","مشغل الآلات الميكانيكية للدباغة",null,2,null,null,null,null,null,null,0,null,null,0,null,null,0,null,null,0,null,null,0,0,0,0,null,null,0,null,null,0,null,null,0,0,0,0,null,null,0,null,null,0,null,null,0,null,null,0,"0"]
[{"$f":"IF(B105=\"\",\"\",SUBTOTAL(3,B$7:B105))","v":99},"الصناعة الجلدية","CPX0704","المنتجات الجلدية الصناعية",null,2,null,null,null,null,null,null,0,null,null,0,null,null,0,null,null,0,null,null,0,0,0,0,null,null,0,null,null,0,null,null,0,0,0,0,null,null,0,null,null,0,null,null,0,null,null,0,"0"]
[{"$f":"IF(B106=\"\",\"\",SUBTOTAL(3,B$7:B106))","v":100},"الصناعة الجلدية","CPX0705","عامل في تحضير الدباغــة",null,2,null,null,null,null,null,null,0,null,null,0,null,null,0,null,null,0,null,null,0,0,0,0,null,null,0,null,null,0,null,null,0,0,0,0,null,null,0,null,null,0,null,null,0,null,null,0,"0"]
[{"$f":"IF(B107=\"\",\"\",SUBTOTAL(3,B$7:B107))","v":101},"الصناعة الجلدية","CPX1201","مفصل، محضر الأحذية، المنتجات الجلدية، القفاز و الملابس الجلدية",null,2,null,null,null,null,null,null,0,null,null,0,null,null,0,null,null,0,null,null,0,0,0,0,null,null,0,null,null,0,null,null,0,0,0,0,null,null,0,null,null,0,null,null,0,null,null,0,"0"]
[{"$f":"IF(B108=\"\",\"\",SUBTOTAL(3,B$7:B108))","v":102},"الكهرباء – الإلكترونيك والطاقة","ELE0701","كهرباء السيارات",null,2,null,null,null,null,null,null,0,null,null,0,null,null,0,null,null,0,null,null,0,0,0,0,null,null,0,null,null,0,null,null,0,0,0,0,null,null,0,null,null,0,null,null,0,null,null,0,"0"]
[{"$f":"IF(B109=\"\",\"\",SUBTOTAL(3,B$7:B109))","v":103},"الكهرباء – الإلكترونيك والطاقة","ELE0702","الكهرباء الصناعية",null,2,null,null,null,null,null,null,0,null,null,0,null,null,0,null,null,0,null,null,0,0,0,0,null,null,0,null,null,0,null,null,0,0,0,0,null,null,0,null,null,0,null,null,0,null,null,0,"0"]
[{"$f":"IF(B110=\"\",\"\",SUBTOTAL(3,B$7:B110))","v":104},"الكهرباء – الإلكترونيك والطاقة","ELE0703","الكهرباء المعمارية",null,2,null,null,null,null,null,null,0,null,null,0,null,null,0,null,null,0,null,null,0,0,0,0,null,null,0,null,null,0,null,null,0,0,0,0,null,null,0,null,null,0,null,null,0,null,null,0,"0"]
[{"$f":"IF(B111=\"\",\"\",SUBTOTAL(3,B$7:B111))","v":105},"الكهرباء – الإلكترونيك والطاقة","ELE1201","تركيب الألواح الشمسية، الضوئية و الحرارية",null,2,null,null,null,null,null,null,0,null,null,0,null,null,0,null,null,0,null,null,0,0,0,0,null,null,0,null,null,0,null,null,0,0,0,0,null,null,0,null,null,0,null,null,0,null,null,0,"0"]
[{"$f":"IF(B112=\"\",\"\",SUBTOTAL(3,B$7:B112))","v":106},"الفندقة -الإطعام والسياحة","HRT0701","صناعة الحلويات",null,2,null,null,null,null,null,null,0,null,null,0,null,null,0,null,null,0,null,null,0,0,0,0,null,null,0,null,null,0,null,null,0,0,0,0,null,null,0,null,null,0,null,null,0,null,null,0,"0"]
[{"$f":"IF(B113=\"\",\"\",SUBTOTAL(3,B$7:B113))","v":107},"الفندقة -الإطعام والسياحة","HRT0702","الخبازة و الفطائر",null,2,null,null,null,null,null,null,0,null,null,0,null,null,0,null,null,0,null,null,0,0,0,0,null,null,0,null,null,0,null,null,0,0,0,0,null,null,0,null,null,0,null,null,0,null,null,0,"0"]
[{"$f":"IF(B114=\"\",\"\",SUBTOTAL(3,B$7:B114))","v":108},"الفندقة -الإطعام والسياحة","HRT0703","الإطعام / خيار: الطبخ التقليدي",null,2,null,null,null,null,null,null,0,null,null,0,null,null,0,null,null,0,null,null,0,0,0,0,null,null,0,null,null,0,null,null,0,0,0,0,null,null,0,null,null,0,null,null,0,null,null,0,"0"]
[{"$f":"IF(B115=\"\",\"\",SUBTOTAL(3,B$7:B115))","v":109},"الفندقة -الإطعام والسياحة","HRT0704","الإطعام / خيار : الطبخ الجماعي",null,2,null,null,null,null,null,null,0,null,null,0,null,null,0,null,null,0,null,null,0,0,0,0,null,null,0,null,null,0,null,null,0,0,0,0,null,null,0,null,null,0,null,null,0,null,null,0,"0"]
[{"$f":"IF(B116=\"\",\"\",SUBTOTAL(3,B$7:B116))","v":110},"الفندقة -الإطعام والسياحة","HRT0705","الفندقة - الإطعام / خيار : الإطعام",null,2,null,null,null,null,null,null,0,null,null,0,null,null,0,null,null,0,null,null,0,0,0,0,null,null,0,null,null,0,null,null,0,0,0,0,null,null,0,null,null,0,null,null,0,null,null,0,"0"]
[{"$f":"IF(B117=\"\",\"\",SUBTOTAL(3,B$7:B117))","v":111},"الفندقة -الإطعام والسياحة","HRT0706","الفندقة - الإطعام / خيار : الطبخ",null,2,null,null,null,null,null,null,0,null,null,0,null,null,0,null,null,0,null,null,0,0,0,0,null,null,0,null,null,0,null,null,0,0,0,0,null,null,0,null,null,0,null,null,0,null,null,0,"0"]
[{"$f":"IF(B118=\"\",\"\",SUBTOTAL(3,B$7:B118))","v":112},"الفندقة -الإطعام والسياحة","HRT0707","الفندقة / خيار : الاستقبال",null,2,null,null,null,null,null,null,0,null,null,0,null,null,0,null,null,0,null,null,0,0,0,0,null,null,0,null,null,0,null,null,0,0,0,0,null,null,0,null,null,0,null,null,0,null,null,0,"0"]
[{"$f":"IF(B119=\"\",\"\",SUBTOTAL(3,B$7:B119))","v":113},"الفندقة -الإطعام والسياحة","HRT1801","الفندقة - الإطعام / خيار : خدمات المقهى",null,2,null,null,null,null,null,null,0,null,null,0,null,null,0,null,null,0,null,null,0,0,0,0,null,null,0,null,null,0,null,null,0,0,0,0,null,null,0,null,null,0,null,null,0,null,null,0,"0"]
[{"$f":"IF(B120=\"\",\"\",SUBTOTAL(3,B$7:B120))","v":114},"الفندقة -الإطعام والسياحة","HRT1802","الفندقة / خيار : خدمات فندقية",null,2,null,null,null,null,null,null,0,null,null,0,null,null,0,null,null,0,null,null,0,0,0,0,null,null,0,null,null,0,null,null,0,0,0,0,null,null,0,null,null,0,null,null,0,null,null,0,"0"]
[{"$f":"IF(B121=\"\",\"\",SUBTOTAL(3,B$7:B121))","v":115},"صناعة الأغذية الز ا رعية","IAA0701","تحضير المشروبات و المعلبات",null,2,null,null,null,null,null,null,0,null,null,0,null,null,0,null,null,0,null,null,0,0,0,0,null,null,0,null,null,0,null,null,0,0,0,0,null,null,0,null,null,0,null,null,0,null,null,0,"0"]
[{"$f":"IF(B122=\"\",\"\",SUBTOTAL(3,B$7:B122))","v":116},"صناعة الأغذية الز ا رعية","IAA0702","إنتاج زيت الزيتون",null,2,null,null,null,null,null,null,0,null,null,0,null,null,0,null,null,0,null,null,0,0,0,0,null,null,0,null,null,0,null,null,0,0,0,0,null,null,0,null,null,0,null,null,0,null,null,0,"0"]
[{"$f":"IF(B123=\"\",\"\",SUBTOTAL(3,B$7:B123))","v":117},"صناعة الأغذية الز ا رعية","IAA0703","تحضير المواد الدسمة",null,2,null,null,null,null,null,null,0,null,null,0,null,null,0,null,null,0,null,null,0,0,0,0,null,null,0,null,null,0,null,null,0,0,0,0,null,null,0,null,null,0,null,null,0,null,null,0,"0"]
[{"$f":"IF(B124=\"\",\"\",SUBTOTAL(3,B$7:B124))","v":118},"صناعة الأغذية الز ا رعية","IAA0704","تحضير الحلويات ، الشكولاطة و البسكويت",null,2,null,null,null,null,null,null,0,null,null,0,null,null,0,null,null,0,null,null,0,0,0,0,null,null,0,null,null,0,null,null,0,0,0,0,null,null,0,null,null,0,null,null,0,null,null,0,"0"]
[{"$f":"IF(B125=\"\",\"\",SUBTOTAL(3,B$7:B125))","v":119},"صناعة الأغذية الز ا رعية","IAA0705","جزارة و منتجات اللحوم",null,2,null,null,null,null,null,null,0,null,null,0,null,null,0,null,null,0,null,null,0,0,0,0,null,null,0,null,null,0,null,null,0,0,0,0,null,null,0,null,null,0,null,null,0,null,null,0,"0"]
[{"$f":"IF(B126=\"\",\"\",SUBTOTAL(3,B$7:B126))","v":120},"صناعة الأغذية الز ا رعية","IAA0706","تحويل التمور",null,2,null,null,null,null,null,null,0,null,null,0,null,null,0,null,null,0,null,null,0,0,0,0,null,null,0,null,null,0,null,null,0,0,0,0,null,null,0,null,null,0,null,null,0,null,null,0,"0"]
[{"$f":"IF(B127=\"\",\"\",SUBTOTAL(3,B$7:B127))","v":121},"صناعة الأغذية الز ا رعية","IAA0707","حفـظ وتحويل منتجات الصيد البحري",null,2,null,null,null,null,null,null,0,null,null,0,null,null,0,null,null,0,null,null,0,0,0,0,null,null,0,null,null,0,null,null,0,0,0,0,null,null,0,null,null,0,null,null,0,null,null,0,"0"]
[{"$f":"IF(B128=\"\",\"\",SUBTOTAL(3,B$7:B128))","v":122},"صناعة الأغذية الز ا رعية","IAA1901","صناعة الأجبان",null,2,null,null,null,null,null,null,0,null,null,0,null,null,0,null,null,0,null,null,0,0,0,0,null,null,0,null,null,0,null,null,0,0,0,0,null,null,0,null,null,0,null,null,0,null,null,0,"0"]
[{"$f":"IF(B129=\"\",\"\",SUBTOTAL(3,B$7:B129))","v":123},"المعلوماتية-الرقمنة و الإتصالات","INT1201","تصليح الهواتف الثابتة و النقالة",null,2,null,null,null,null,null,null,0,null,null,0,null,null,0,null,null,0,null,null,0,0,0,0,null,null,0,null,null,0,null,null,0,0,0,0,null,null,0,null,null,0,null,null,0,null,null,0,"0"]
[{"$f":"IF(B130=\"\",\"\",SUBTOTAL(3,B$7:B130))","v":124},"مهن البيئة والمياه","MEE1201","تركيب القنوات",null,2,null,null,null,null,null,null,0,null,null,0,null,null,0,null,null,0,null,null,0,0,0,0,null,null,0,null,null,0,null,null,0,0,0,0,null,null,0,null,null,0,null,null,0,null,null,0,"0"]
[{"$f":"IF(B131=\"\",\"\",SUBTOTAL(3,B$7:B131))","v":125},"مهن البيئة والمياه","MEE1804","الصرف الصحي وجمع النفايات الخاصة",null,2,null,null,null,null,null,null,0,null,null,0,null,null,0,null,null,0,null,null,0,0,0,0,null,null,0,null,null,0,null,null,0,0,0,0,null,null,0,null,null,0,null,null,0,null,null,0,"0"]
[{"$f":"IF(B132=\"\",\"\",SUBTOTAL(3,B$7:B132))","v":126},"مهن البيئة والمياه","MEE1902","تسيير النفايات الخطيرة",null,2,null,null,null,null,null,null,0,null,null,0,null,null,0,null,null,0,null,null,0,0,0,0,null,null,0,null,null,0,null,null,0,0,0,0,null,null,0,null,null,0,null,null,0,null,null,0,"0"]
[{"$f":"IF(B133=\"\",\"\",SUBTOTAL(3,B$7:B133))","v":127},"حرف الخدمات","MES0701","حِلاقـة النساء",null,2,null,null,null,null,null,null,0,null,null,0,null,null,0,null,null,0,null,null,0,0,0,0,null,null,0,null,null,0,null,null,0,0,0,0,null,null,0,null,null,0,null,null,0,null,null,0,"0"]
[{"$f":"IF(B134=\"\",\"\",SUBTOTAL(3,B$7:B134))","v":128},"حرف الخدمات","MES0702","حلاقـة الرجال",null,2,null,null,null,null,null,null,0,null,null,0,null,null,0,null,null,0,null,null,0,0,0,0,null,null,0,null,null,0,null,null,0,0,0,0,null,null,0,null,null,0,null,null,0,null,null,0,"0"]
[{"$f":"IF(B135=\"\",\"\",SUBTOTAL(3,B$7:B135))","v":129},"حرف الخدمات","MES0703","تركيب و تصليح الـنظارات",null,2,null,null,null,null,null,null,0,null,null,0,null,null,0,null,null,0,null,null,0,0,0,0,null,null,0,null,null,0,null,null,0,0,0,0,null,null,0,null,null,0,null,null,0,null,null,0,"0"]
[{"$f":"IF(B136=\"\",\"\",SUBTOTAL(3,B$7:B136))","v":130},"حرف الخدمات","MES0704","تصليح الساعات",null,2,null,null,null,null,null,null,{"$f":"J136+I136+H136+G136","v":0},null,null,{"$f":"O136+N136","v":0},null,null,{"$f":"R136+Q136","v":0},null,null,{"$f":"U136+T136","v":0},null,null,{"$f":"X136+W136","v":0},{"$f":"(N136+Q136)-(W136+T136)","v":0},{"$f":"(O136+R136)-(X136+U136)","v":0},{"$f":"(P136+S136)-(Y136+V136)","v":0},null,null,{"$f":"AD136+AC136","v":0},null,null,{"$f":"AG136+AF136","v":0},null,null,{"$f":"AJ136+AI136","v":0},{"$f":"(AC136)-(AF136)-(AI136)","v":0},{"$f":"(AD136)-(AG136)-(AJ136)","v":0},{"$f":"AM136+AL136","v":0},null,null,{"$f":"AP136+AO136","v":0},null,null,{"$f":"AS136+AR136","v":0},null,null,{"$f":"AV136+AU136","v":0},null,null,{"$f":"AY136+AX136","v":0},{"$f":"IFERROR((AK136)/AE136,\"0\")","v":"0"}]
[{"$f":"IF(B137=\"\",\"\",SUBTOTAL(3,B$7:B137))","v":131},"حرف الخدمات","MES0705","مغسلة و التنظيف الجاف",null,2,null,null,null,null,null,null,0,null,null,0,null,null,0,null,null,0,null,null,0,0,0,0,null,null,0,null,null,0,null,null,0,0,0,0,null,null,0,null,null,0,null,null,0,null,null,0,"0"]
[{"$f":"IF(B138=\"\",\"\",SUBTOTAL(3,B$7:B138))","v":132},"المناجم والمحاجر","MIC1802","مفتت في المناجم",null,2,null,null,null,null,null,null,0,null,null,0,null,null,0,null,null,0,null,null,0,0,0,0,null,null,0,null,null,0,null,null,0,0,0,0,null,null,0,null,null,0,null,null,0,null,null,0,"0"]
[{"$f":"IF(B139=\"\",\"\",SUBTOTAL(3,B$7:B139))","v":133},"المناجم والمحاجر","MIC1901","الوقاية و الأمن المنجمي",null,2,null,null,null,null,null,null,0,null,null,0,null,null,0,null,null,0,null,null,0,0,0,0,null,null,0,null,null,0,null,null,0,0,0,0,null,null,0,null,null,0,null,null,0,null,null,0,"0"]
[{"$f":"IF(B140=\"\",\"\",SUBTOTAL(3,B$7:B140))","v":134},"المناجم والمحاجر","MIC1902","سائق آليات إستغلال المناجم",null,2,null,null,null,null,null,null,0,null,null,0,null,null,0,null,null,0,null,null,0,0,0,0,null,null,0,null,null,0,null,null,0,0,0,0,null,null,0,null,null,0,null,null,0,null,null,0,"0"]
[{"$f":"IF(B141=\"\",\"\",SUBTOTAL(3,B$7:B141))","v":135},"ميكانيك المحركات والآليات","MME0703","ميكانيك تصليح آليات الورشات",null,2,null,null,null,null,null,null,0,null,null,0,null,null,0,null,null,0,null,null,0,0,0,0,null,null,0,null,null,0,null,null,0,0,0,0,null,null,0,null,null,0,null,null,0,null,null,0,"0"]
[{"$f":"IF(B142=\"\",\"\",SUBTOTAL(3,B$7:B142))","v":136},"ميكانيك المحركات والآليات","MME0704","ميكانيك تصليح الآلات الفلاحية",null,2,null,null,null,null,null,null,0,null,null,0,null,null,0,null,null,0,null,null,0,0,0,0,null,null,0,null,null,0,null,null,0,0,0,0,null,null,0,null,null,0,null,null,0,null,null,0,"0"]
[{"$f":"IF(B143=\"\",\"\",SUBTOTAL(3,B$7:B143))","v":137},"ميكانيك المحركات والآليات","MME0705","ميكانيك تصليح قوارب الصيد و اليخت",null,2,null,null,null,null,null,null,0,null,null,0,null,null,0,null,null,0,null,null,0,0,0,0,null,null,0,null,null,0,null,null,0,0,0,0,null,null,0,null,null,0,null,null,0,null,null,0,"0"]
[{"$f":"IF(B144=\"\",\"\",SUBTOTAL(3,B$7:B144))","v":138},"ميكانيك المحركات والآليات","MME0706","قيادة و صيانة الآلات الفلاحية",null,2,null,null,null,null,null,null,0,null,null,0,null,null,0,null,null,0,null,null,0,0,0,0,null,null,0,null,null,0,null,null,0,0,0,0,null,null,0,null,null,0,null,null,0,null,null,0,"0"]
[{"$f":"IF(B145=\"\",\"\",SUBTOTAL(3,B$7:B145))","v":139},"ميكانيك المحركات والآليات","MME0707","قيادة و صيانة آليات الورشات",null,2,null,null,null,null,null,null,0,null,null,0,null,null,0,null,null,0,null,null,0,0,0,0,null,null,0,null,null,0,null,null,0,0,0,0,null,null,0,null,null,0,null,null,0,null,null,0,"0"]
[{"$f":"IF(B146=\"\",\"\",SUBTOTAL(3,B$7:B146))","v":140},"ميكانيك المحركات والآليات","MME0708","ميكانيك تصليح عـتاد الرّي",null,2,null,null,null,null,null,null,0,null,null,0,null,null,0,null,null,0,null,null,0,0,0,0,null,null,0,null,null,0,null,null,0,0,0,0,null,null,0,null,null,0,null,null,0,null,null,0,"0"]
[{"$f":"IF(B147=\"\",\"\",SUBTOTAL(3,B$7:B147))","v":141},"ميكانيك المحركات والآليات","MME1202","سائق النقالة",null,2,null,null,null,null,null,null,0,null,null,0,null,null,0,null,null,0,null,null,0,0,0,0,null,null,0,null,null,0,null,null,0,0,0,0,null,null,0,null,null,0,null,null,0,null,null,0,"0"]
[{"$f":"IF(B148=\"\",\"\",SUBTOTAL(3,B$7:B148))","v":142},"ميكانيك المحركات والآليات","MME1801","ميكانيك تصليح الدراجات العادية والنارية",null,2,null,null,null,null,null,null,0,null,null,0,null,null,0,null,null,0,null,null,0,0,0,0,null,null,0,null,null,0,null,null,0,0,0,0,null,null,0,null,null,0,null,null,0,null,null,0,"0"]
[{"$f":"IF(B149=\"\",\"\",SUBTOTAL(3,B$7:B149))","v":143},"ميكانيك المحركات والآليات","MME1802","قيادة آليات أشغال الطرقات",null,2,null,null,null,null,null,null,0,null,null,0,null,null,0,null,null,0,null,null,0,0,0,0,null,null,0,null,null,0,null,null,0,0,0,0,null,null,0,null,null,0,null,null,0,null,null,0,"0"]
[{"$f":"IF(B150=\"\",\"\",SUBTOTAL(3,B$7:B150))","v":144},"الصيد البحري وتربية المائيات","PEC0702","مُرمّم شـباك الـصيـد",null,2,null,null,null,null,null,null,0,null,null,0,null,null,0,null,null,0,null,null,0,0,0,0,null,null,0,null,null,0,null,null,0,0,0,0,null,null,0,null,null,0,null,null,0,null,null,0,"0"]
[{"$f":"IF(B151=\"\",\"\",SUBTOTAL(3,B$7:B151))","v":145},"الصيد البحري وتربية المائيات","PEC0703","تربية أسماك الزينة",null,2,null,null,null,null,null,null,0,null,null,0,null,null,0,null,null,0,null,null,0,0,0,0,null,null,0,null,null,0,null,null,0,0,0,0,null,null,0,null,null,0,null,null,0,null,null,0,"0"]
[{"$f":"IF(B152=\"\",\"\",SUBTOTAL(3,B$7:B152))","v":146},"الصيد البحري وتربية المائيات","PEC1802","تربية المائيات",null,2,null,null,null,null,null,null,0,null,null,0,null,null,0,null,null,0,null,null,0,0,0,0,null,null,0,null,null,0,null,null,0,0,0,0,null,null,0,null,null,0,null,null,0,null,null,0,"0"]
[{"$f":"IF(B153=\"\",\"\",SUBTOTAL(3,B$7:B153))","v":147},"تقنيات الادارة والتسيير","TAG0701","أمين مخزن",null,2,null,null,null,null,null,null,0,null,null,0,null,null,0,null,null,0,null,null,0,0,0,0,null,null,0,null,null,0,null,null,0,0,0,0,null,null,0,null,null,0,null,null,0,null,null,0,"0"]
[{"$f":"IF(B154=\"\",\"\",SUBTOTAL(3,B$7:B154))","v":148},"تقنيات الادارة والتسيير","TAG1202","مساعد تقني متخصص في المكتبات، التوثيق و الأرشيف",null,2,null,null,null,null,null,null,0,null,null,0,null,null,0,null,null,0,null,null,0,0,0,0,null,null,0,null,null,0,null,null,0,0,0,0,null,null,0,null,null,0,null,null,0,null,null,0,"0"]
[{"$f":"IF(B155=\"\",\"\",SUBTOTAL(3,B$7:B155))","v":149},"تقنيات الادارة والتسيير","TAG1203","عون ادراج المعلومات",null,2,null,null,null,null,null,null,0,null,null,0,null,null,0,null,null,0,null,null,0,0,0,0,null,null,0,null,null,0,null,null,0,0,0,0,null,null,0,null,null,0,null,null,0,null,null,0,"0"]
[{"$f":"IF(B156=\"\",\"\",SUBTOTAL(3,B$7:B156))","v":150},"النسيج والألبسة","THC0701","الخـيـاطــة",null,2,null,null,null,null,null,null,0,null,null,0,null,null,0,null,null,0,null,null,0,0,0,0,null,null,0,null,null,0,null,null,0,0,0,0,null,null,0,null,null,0,null,null,0,null,null,0,"0"]
[{"$f":"IF(B157=\"\",\"\",SUBTOTAL(3,B$7:B157))","v":151},"النسيج والألبسة","THC0703","ميكانيك تصليح آلات الغرز",null,2,null,null,null,null,null,null,0,null,null,0,null,null,0,null,null,0,null,null,0,0,0,0,null,null,0,null,null,0,null,null,0,0,0,0,null,null,0,null,null,0,null,null,0,null,null,0,"0"]
[{"$f":"IF(B158=\"\",\"\",SUBTOTAL(3,B$7:B158))","v":152},"النسيج والألبسة","THC1211","التفصيل الصناعي",null,2,null,null,null,null,null,null,0,null,null,0,null,null,0,null,null,0,null,null,0,0,0,0,null,null,0,null,null,0,null,null,0,0,0,0,null,null,0,null,null,0,null,null,0,null,null,0,"0"]
[{"$f":"IF(B159=\"\",\"\",SUBTOTAL(3,B$7:B159))","v":153},"النسيج والألبسة","THC1212","ميكانيك تصليح آلات الخياطة و الحياكة",null,2,null,null,null,null,null,null,0,null,null,0,null,null,0,null,null,0,null,null,0,0,0,0,null,null,0,null,null,0,null,null,0,0,0,0,null,null,0,null,null,0,null,null,0,null,null,0,"0"]
[{"$f":"IF(B160=\"\",\"\",SUBTOTAL(3,B$7:B160))","v":154},"الفلاحة ","AGR0701P","زراعة الخضروات",null,2,null,null,null,null,null,null,0,null,null,0,null,null,0,null,null,0,null,null,0,0,0,0,null,null,0,null,null,0,null,null,0,0,0,0,null,null,0,null,null,0,null,null,0,null,null,0,"0"]
[{"$f":"IF(B161=\"\",\"\",SUBTOTAL(3,B$7:B161))","v":155},"الفلاحة ","AGR0703P","البـسـتـنـة",null,2,null,null,null,null,null,null,0,null,null,0,null,null,0,null,null,0,null,null,0,0,0,0,null,null,0,null,null,0,null,null,0,0,0,0,null,null,0,null,null,0,null,null,0,null,null,0,"0"]
[{"$f":"IF(B162=\"\",\"\",SUBTOTAL(3,B$7:B162))","v":156},"الفلاحة ","AGR0706P","المشتـلـة",null,2,null,null,null,null,null,null,0,null,null,0,null,null,0,null,null,0,null,null,0,0,0,0,null,null,0,null,null,0,null,null,0,0,0,0,null,null,0,null,null,0,null,null,0,null,null,0,"0"]
[{"$f":"IF(B163=\"\",\"\",SUBTOTAL(3,B$7:B163))","v":157},"الفلاحة ","AGR0714P","تربية الحيوانات المجترة",null,2,null,null,null,null,null,null,0,null,null,0,null,null,0,null,null,0,null,null,0,0,0,0,null,null,0,null,null,0,null,null,0,0,0,0,null,null,0,null,null,0,null,null,0,null,null,0,"0"]
[{"$f":"IF(B164=\"\",\"\",SUBTOTAL(3,B$7:B164))","v":158},"الفلاحة ","AGR0715P","تـربيــة الحيـوانات الصغيـرة",null,2,null,null,null,null,null,null,0,null,null,0,null,null,0,null,null,0,null,null,0,0,0,0,null,null,0,null,null,0,null,null,0,0,0,0,null,null,0,null,null,0,null,null,0,null,null,0,"0"]
[{"$f":"IF(B165=\"\",\"\",SUBTOTAL(3,B$7:B165))","v":159},"الحرف التقليدية","ART0702P","الحدادة الفنية",null,2,null,null,null,null,null,null,0,null,null,0,null,null,0,null,null,0,null,null,0,0,0,0,null,null,0,null,null,0,null,null,0,0,0,0,null,null,0,null,null,0,null,null,0,null,null,0,"0"]
[{"$f":"IF(B166=\"\",\"\",SUBTOTAL(3,B$7:B166))","v":160},"البناء والأشغال العمومية","BTP0706P","التركيب الصحي و الغـاز",null,2,null,null,null,null,null,null,0,null,null,0,null,null,0,null,null,0,null,null,0,0,0,0,null,null,0,null,null,0,null,null,0,0,0,0,null,null,0,null,null,0,null,null,0,null,null,0,"0"]
[{"$f":"IF(B167=\"\",\"\",SUBTOTAL(3,B$7:B167))","v":161},"الإنشاءات المعدنية","CML0702P","المطالة ، هياكل المركبات و الطلاء",null,2,null,null,null,null,null,null,0,null,null,0,null,null,0,null,null,0,null,null,0,0,0,0,null,null,0,null,null,0,null,null,0,0,0,0,null,null,0,null,null,0,null,null,0,null,null,0,"0"]
[{"$f":"IF(B168=\"\",\"\",SUBTOTAL(3,B$7:B168))","v":162},"الصناعة الجلدية","CPX0704P","التجليد الصناعي",null,2,null,null,null,null,null,null,0,null,null,0,null,null,0,null,null,0,null,null,0,0,0,0,null,null,0,null,null,0,null,null,0,0,0,0,null,null,0,null,null,0,null,null,0,null,null,0,"0"]
[{"$f":"IF(B169=\"\",\"\",SUBTOTAL(3,B$7:B169))","v":163},"الصناعة الجلدية","CPX1201P","قطع و تحضير الأحذية ، والسلع الجلدية ، والقفازات و الملابس الجلدية",null,2,null,null,null,null,null,null,0,null,null,0,null,null,0,null,null,0,null,null,0,0,0,0,null,null,0,null,null,0,null,null,0,0,0,0,null,null,0,null,null,0,null,null,0,null,null,0,"0"]
[{"$f":"IF(B170=\"\",\"\",SUBTOTAL(3,B$7:B170))","v":164},"صناعة الأغذية الز ا رعية","IAA0707P","حفـظ وتحويل منتجات الصيد البحري",null,2,null,null,null,null,null,null,0,null,null,0,null,null,0,null,null,0,null,null,0,0,0,0,null,null,0,null,null,0,null,null,0,0,0,0,null,null,0,null,null,0,null,null,0,null,null,0,"0"]
[{"$f":"IF(B171=\"\",\"\",SUBTOTAL(3,B$7:B171))","v":165},"مهن البيئة والمياه","MEE1804P","الصرف الصحي وجمع النفايات الخاصة",null,2,null,null,null,null,null,null,0,null,null,0,null,null,0,null,null,0,null,null,0,0,0,0,null,null,0,null,null,0,null,null,0,0,0,0,null,null,0,null,null,0,null,null,0,null,null,0,"0"]
[{"$f":"IF(B172=\"\",\"\",SUBTOTAL(3,B$7:B172))","v":166},"فن - ثقافة والتراث","ACP1801","بناء في التراث المبني",null,3,null,null,null,null,null,null,0,null,null,0,null,null,0,null,null,0,null,null,0,0,0,0,null,null,0,null,null,0,null,null,0,0,0,0,null,null,0,null,null,0,null,null,0,null,null,0,"0"]
[{"$f":"IF(B173=\"\",\"\",SUBTOTAL(3,B$7:B173))","v":167},"فن - ثقافة والتراث","ACP1802","تقنية الحفاظ على التراث المبني",null,3,null,null,null,null,null,null,0,null,null,0,null,null,0,null,null,0,null,null,0,0,0,0,null,null,0,null,null,0,null,null,0,0,0,0,null,null,0,null,null,0,null,null,0,null,null,0,"0"]
[{"$f":"IF(B174=\"\",\"\",SUBTOTAL(3,B$7:B174))","v":168},"الفلاحة ","AGR0719","تركيب وصيانة العشب الرياضي",null,3,null,null,null,null,null,null,0,null,null,0,null,null,0,null,null,0,null,null,0,0,0,0,null,null,0,null,null,0,null,null,0,0,0,0,null,null,0,null,null,0,null,null,0,null,null,0,"0"]
[{"$f":"IF(B175=\"\",\"\",SUBTOTAL(3,B$7:B175))","v":169},"الفنون والصناعة المطبعية","AIG0704","تشغيل آلات التجليد الصناعي",null,3,null,null,null,null,null,null,0,null,null,0,null,null,0,null,null,0,null,null,0,0,0,0,null,null,0,null,null,0,null,null,0,0,0,0,null,null,0,null,null,0,null,null,0,null,null,0,"0"]
[{"$f":"IF(B176=\"\",\"\",SUBTOTAL(3,B$7:B176))","v":170},"الفنون والصناعة المطبعية","AIG0705","الطبع الحريري",null,3,null,null,null,null,null,null,0,null,null,0,null,null,0,null,null,0,null,null,0,0,0,0,null,null,0,null,null,0,null,null,0,0,0,0,null,null,0,null,null,0,null,null,0,null,null,0,"0"]
[{"$f":"IF(B177=\"\",\"\",SUBTOTAL(3,B$7:B177))","v":171},"الفنون والصناعة المطبعية","AIG1201","تشغيل وسائل الطبع / خيار : فليكسو و هيليو",null,3,null,null,null,null,null,null,0,null,null,0,null,null,0,null,null,0,null,null,0,0,0,0,null,null,0,null,null,0,null,null,0,0,0,0,null,null,0,null,null,0,null,null,0,null,null,0,"0"]
[{"$f":"IF(B178=\"\",\"\",SUBTOTAL(3,B$7:B178))","v":172},"الحرف التقليدية","ART0714","الألبسة التقليدية",null,3,null,null,null,null,null,null,0,null,null,0,null,null,0,null,null,0,null,null,0,0,0,0,null,null,0,null,null,0,null,null,0,0,0,0,null,null,0,null,null,0,null,null,0,null,null,0,"0"]
[{"$f":"IF(B179=\"\",\"\",SUBTOTAL(3,B$7:B179))","v":173},"الحرف التقليدية","ART0715","صياغة المجوهرات",null,3,null,null,null,null,null,null,0,null,null,0,null,null,0,null,null,0,null,null,0,0,0,0,null,null,0,null,null,0,null,null,0,0,0,0,null,null,0,null,null,0,null,null,0,null,null,0,"0"]
[{"$f":"IF(B180=\"\",\"\",SUBTOTAL(3,B$7:B180))","v":174},"الحرف التقليدية","ART0716"," صناعة و صيانة الآلات الموسيقية الوترية",null,3,null,null,null,null,null,null,0,null,null,0,null,null,0,null,null,0,null,null,0,0,0,0,null,null,0,null,null,0,null,null,0,0,0,0,null,null,0,null,null,0,null,null,0,null,null,0,"0"]
[{"$f":"IF(B181=\"\",\"\",SUBTOTAL(3,B$7:B181))","v":175},"الخشب والتأثيث","BAM0703","نجارة الهياكل البحرية",null,3,null,null,null,null,null,null,0,null,null,0,null,null,0,null,null,0,null,null,0,0,0,0,null,null,0,null,null,0,null,null,0,0,0,0,null,null,0,null,null,0,null,null,0,null,null,0,"0"]
[{"$f":"IF(B182=\"\",\"\",SUBTOTAL(3,B$7:B182))","v":176},"الخشب والتأثيث","BAM0704","نجارة الأثاث",null,3,null,null,null,null,null,null,0,null,null,0,null,null,0,null,null,0,null,null,0,0,0,0,null,null,0,null,null,0,null,null,0,0,0,0,null,null,0,null,null,0,null,null,0,null,null,0,"0"]
[{"$f":"IF(B183=\"\",\"\",SUBTOTAL(3,B$7:B183))","v":177},"الخشب والتأثيث","BAM0705","نجارة التنضيد",null,3,null,null,null,null,null,null,0,null,null,0,null,null,0,null,null,0,null,null,0,0,0,0,null,null,0,null,null,0,null,null,0,0,0,0,null,null,0,null,null,0,null,null,0,null,null,0,"0"]
[{"$f":"IF(B184=\"\",\"\",SUBTOTAL(3,B$7:B184))","v":178},"البناء والأشغال العمومية","BTP0711","عامل في مخبر ميكانيك التربة",null,3,null,null,null,null,null,null,0,null,null,0,null,null,0,null,null,0,null,null,0,0,0,0,null,null,0,null,null,0,null,null,0,0,0,0,null,null,0,null,null,0,null,null,0,null,null,0,"0"]
[{"$f":"IF(B185=\"\",\"\",SUBTOTAL(3,B$7:B185))","v":179},"البناء والأشغال العمومية","BTP0712","البنــاء المــوسّـع",null,3,null,null,null,null,null,null,0,null,null,0,null,null,0,null,null,0,null,null,0,0,0,0,null,null,0,null,null,0,null,null,0,0,0,0,null,null,0,null,null,0,null,null,0,null,null,0,"0"]
[{"$f":"IF(B186=\"\",\"\",SUBTOTAL(3,B$7:B186))","v":180},"البناء والأشغال العمومية","BTP0713","هياكل البناء  الخشبية والسقوف",null,3,null,null,null,null,null,null,0,null,null,0,null,null,0,null,null,0,null,null,0,0,0,0,null,null,0,null,null,0,null,null,0,0,0,0,null,null,0,null,null,0,null,null,0,null,null,0,"0"]
[{"$f":"IF(B187=\"\",\"\",SUBTOTAL(3,B$7:B187))","v":181},"البناء والأشغال العمومية","BTP0714","تلبيس الأرضيات الرياضية",null,3,null,null,null,null,null,null,0,null,null,0,null,null,0,null,null,0,null,null,0,0,0,0,null,null,0,null,null,0,null,null,0,0,0,0,null,null,0,null,null,0,null,null,0,null,null,0,"0"]
[{"$f":"IF(B188=\"\",\"\",SUBTOTAL(3,B$7:B188))","v":182},"البناء والأشغال العمومية","BTP1201","التجصيص و تركّيب الصفائح الجصية",null,3,null,null,null,null,null,null,0,null,null,0,null,null,0,null,null,0,null,null,0,0,0,0,null,null,0,null,null,0,null,null,0,0,0,0,null,null,0,null,null,0,null,null,0,null,null,0,"0"]
[{"$f":"IF(B189=\"\",\"\",SUBTOTAL(3,B$7:B189))","v":183},"البناء والأشغال العمومية","BTP1802","تلبيس الأرضيات",null,3,null,null,null,null,null,null,0,null,null,0,null,null,0,null,null,0,null,null,0,0,0,0,null,null,0,null,null,0,null,null,0,0,0,0,null,null,0,null,null,0,null,null,0,null,null,0,"0"]
[{"$f":"IF(B190=\"\",\"\",SUBTOTAL(3,B$7:B190))","v":184},"البناء والأشغال العمومية","BTP1902","تركيب و كساء الواجهات",null,3,null,null,null,null,null,null,0,null,null,0,null,null,0,null,null,0,null,null,0,0,0,0,null,null,0,null,null,0,null,null,0,0,0,0,null,null,0,null,null,0,null,null,0,null,null,0,"0"]
[{"$f":"IF(B191=\"\",\"\",SUBTOTAL(3,B$7:B191))","v":185},"الكيمياء الصناعية والبلاستيك","CIP0702","تشكيل المطاط الاصطناعي",null,3,null,null,null,null,null,null,0,null,null,0,null,null,0,null,null,0,null,null,0,0,0,0,null,null,0,null,null,0,null,null,0,0,0,0,null,null,0,null,null,0,null,null,0,null,null,0,"0"]
[{"$f":"IF(B192=\"\",\"\",SUBTOTAL(3,B$7:B192))","v":186},"الإنشاءات المعدنية","CML0707","صناعة القدور المعدنية",null,3,null,null,null,null,null,null,0,null,null,0,null,null,0,null,null,0,null,null,0,0,0,0,null,null,0,null,null,0,null,null,0,0,0,0,null,null,0,null,null,0,null,null,0,null,null,0,"0"]
[{"$f":"IF(B193=\"\",\"\",SUBTOTAL(3,B$7:B193))","v":187},"الإنشاءات المعدنية","CML0708","تلحيم الأنابيب",null,3,null,null,null,null,null,null,0,null,null,0,null,null,0,null,null,0,null,null,0,0,0,0,null,null,0,null,null,0,null,null,0,0,0,0,null,null,0,null,null,0,null,null,0,null,null,0,"0"]
[{"$f":"IF(B194=\"\",\"\",SUBTOTAL(3,B$7:B194))","v":188},"الإنشاءات المعدنية","CML0709","مُراقبة النوعية البعدية في الإنشاءات المعدنية",null,3,null,null,null,null,null,null,0,null,null,0,null,null,0,null,null,0,null,null,0,0,0,0,null,null,0,null,null,0,null,null,0,0,0,0,null,null,0,null,null,0,null,null,0,null,null,0,"0"]
[{"$f":"IF(B195=\"\",\"\",SUBTOTAL(3,B$7:B195))","v":189},"الإنشاءات المعدنية","CML0710","الرسم في الإنشاءات المعدنية",null,3,null,null,null,null,null,null,0,null,null,0,null,null,0,null,null,0,null,null,0,0,0,0,null,null,0,null,null,0,null,null,0,0,0,0,null,null,0,null,null,0,null,null,0,null,null,0,"0"]
[{"$f":"IF(B196=\"\",\"\",SUBTOTAL(3,B$7:B196))","v":190},"الإنشاءات الميكانيكية والصناعة الحديدية\n","CMS0705","الصيانة الميكانيكية  في الإنشاءات الميكانيكية والصناعة الحديدية",null,3,null,null,null,null,null,null,0,null,null,0,null,null,0,null,null,0,null,null,0,0,0,0,null,null,0,null,null,0,null,null,0,0,0,0,null,null,0,null,null,0,null,null,0,null,null,0,"0"]
[{"$f":"IF(B197=\"\",\"\",SUBTOTAL(3,B$7:B197))","v":191},"الإنشاءات الميكانيكية والصناعة الحديدية\n","CMS1201","إسـتـصـنـاع",null,3,null,null,null,null,null,null,0,null,null,0,null,null,0,null,null,0,null,null,0,0,0,0,null,null,0,null,null,0,null,null,0,0,0,0,null,null,0,null,null,0,null,null,0,null,null,0,"0"]
[{"$f":"IF(B198=\"\",\"\",SUBTOTAL(3,B$7:B198))","v":192},"الإنشاءات الميكانيكية والصناعة الحديدية\n","CMS1202","تجليخ",null,3,null,null,null,null,null,null,0,null,null,0,null,null,0,null,null,0,null,null,0,0,0,0,null,null,0,null,null,0,null,null,0,0,0,0,null,null,0,null,null,0,null,null,0,null,null,0,"0"]
[{"$f":"IF(B199=\"\",\"\",SUBTOTAL(3,B$7:B199))","v":193},"الإنشاءات الميكانيكية والصناعة الحديدية\n","CMS1203","إستصناع بالمخرطـة ذات التحكم الرقمي",null,3,null,null,null,null,null,null,0,null,null,0,null,null,0,null,null,0,null,null,0,0,0,0,null,null,0,null,null,0,null,null,0,0,0,0,null,null,0,null,null,0,null,null,0,null,null,0,"0"]
[{"$f":"IF(B200=\"\",\"\",SUBTOTAL(3,B$7:B200))","v":194},"الإنشاءات الميكانيكية والصناعة الحديدية\n","CMS1801","التركيب و ضبط في الإنشاءات الميكانيكية و الصناعة الحديدية",null,3,null,null,null,null,null,null,{"$f":"J200+I200+H200+G200","v":0},null,null,{"$f":"O200+N200","v":0},null,null,{"$f":"R200+Q200","v":0},null,null,{"$f":"U200+T200","v":0},null,null,{"$f":"X200+W200","v":0},{"$f":"(N200+Q200)-(W200+T200)","v":0},{"$f":"(O200+R200)-(X200+U200)","v":0},{"$f":"(P200+S200)-(Y200+V200)","v":0},null,null,{"$f":"AD200+AC200","v":0},null,null,{"$f":"AG200+AF200","v":0},null,null,{"$f":"AJ200+AI200","v":0},{"$f":"(AC200)-(AF200)-(AI200)","v":0},{"$f":"(AD200)-(AG200)-(AJ200)","v":0},{"$f":"AM200+AL200","v":0},null,null,{"$f":"AP200+AO200","v":0},null,null,{"$f":"AS200+AR200","v":0},null,null,{"$f":"AV200+AU200","v":0},null,null,{"$f":"AY200+AX200","v":0},{"$f":"IFERROR((AK200)/AE200,\"0\")","v":"0"}]
[{"$f":"IF(B201=\"\",\"\",SUBTOTAL(3,B$7:B201))","v":195},"الصناعة الجلدية","CPX1803","نموذج تدرج للأحذية و المواد اللينة",null,3,null,null,null,null,null,null,0,null,null,0,null,null,0,null,null,0,null,null,0,0,0,0,null,null,0,null,null,0,null,null,0,0,0,0,null,null,0,null,null,0,null,null,0,null,null,0,"0"]
[{"$f":"IF(B202=\"\",\"\",SUBTOTAL(3,B$7:B202))","v":196},"الكهرباء – الإلكترونيك والطاقة","ELE0704","تركيب و صيانة أجهزة التبريد و التكييف",null,3,null,null,null,null,null,null,0,null,null,0,null,null,0,null,null,0,null,null,0,0,0,0,null,null,0,null,null,0,null,null,0,0,0,0,null,null,0,null,null,0,null,null,0,null,null,0,"0"]
[{"$f":"IF(B203=\"\",\"\",SUBTOTAL(3,B$7:B203))","v":197},"الكهرباء – الإلكترونيك والطاقة","ELE0705","الكهروميكانيكية",null,3,null,null,null,null,null,null,0,null,null,0,null,null,0,null,null,0,null,null,0,0,0,0,null,null,0,null,null,0,null,null,0,0,0,0,null,null,0,null,null,0,null,null,0,null,null,0,"0"]
[{"$f":"IF(B204=\"\",\"\",SUBTOTAL(3,B$7:B204))","v":198},"الكهرباء – الإلكترونيك والطاقة","ELE0706","تصليح الأجهزة الكهرومنزلية",null,3,null,null,null,null,null,null,0,null,null,0,null,null,0,null,null,0,null,null,0,0,0,0,null,null,0,null,null,0,null,null,0,0,0,0,null,null,0,null,null,0,null,null,0,null,null,0,"0"]
[{"$f":"IF(B205=\"\",\"\",SUBTOTAL(3,B$7:B205))","v":199},"الكهرباء – الإلكترونيك والطاقة","ELE1202","الكهروتقني",null,3,null,null,null,null,null,null,0,null,null,0,null,null,0,null,null,0,null,null,0,0,0,0,null,null,0,null,null,0,null,null,0,0,0,0,null,null,0,null,null,0,null,null,0,null,null,0,"0"]
[{"$f":"IF(B206=\"\",\"\",SUBTOTAL(3,B$7:B206))","v":200},"الكهرباء – الإلكترونيك والطاقة","ELE1203","صيانة أجهزة الإستنساخ",null,3,null,null,null,null,null,null,0,null,null,0,null,null,0,null,null,0,null,null,0,0,0,0,null,null,0,null,null,0,null,null,0,0,0,0,null,null,0,null,null,0,null,null,0,null,null,0,"0"]
[{"$f":"IF(B207=\"\",\"\",SUBTOTAL(3,B$7:B207))","v":201},"الفندقة -الإطعام والسياحة","HRT1201","الفندقة - الإطعام / خيار : جزارة فندقية",null,3,null,null,null,null,null,null,0,null,null,0,null,null,0,null,null,0,null,null,0,0,0,0,null,null,0,null,null,0,null,null,0,0,0,0,null,null,0,null,null,0,null,null,0,null,null,0,"0"]
[{"$f":"IF(B208=\"\",\"\",SUBTOTAL(3,B$7:B208))","v":202},"المعلوماتية-الرقمنة و الإتصالات","INT1202","عـامــــــل في الميكـــرو معلـوماتيـــة",null,3,null,null,null,null,null,null,0,null,null,0,null,null,0,null,null,0,null,null,0,0,0,0,null,null,0,null,null,0,null,null,0,0,0,0,null,null,0,null,null,0,null,null,0,null,null,0,"0"]
[{"$f":"IF(B209=\"\",\"\",SUBTOTAL(3,B$7:B209))","v":203},"المعلوماتية-الرقمنة و الإتصالات","INT1203","تركيب و تصليح تجهيزات الاتصال اللاسلكي",null,3,null,null,null,null,null,null,0,null,null,0,null,null,0,null,null,0,null,null,0,0,0,0,null,null,0,null,null,0,null,null,0,0,0,0,null,null,0,null,null,0,null,null,0,null,null,0,"0"]
[{"$f":"IF(B210=\"\",\"\",SUBTOTAL(3,B$7:B210))","v":204},"مهن البيئة والمياه","MEE0701","صيانة شبكات الصرف",null,3,null,null,null,null,null,null,0,null,null,0,null,null,0,null,null,0,null,null,0,0,0,0,null,null,0,null,null,0,null,null,0,0,0,0,null,null,0,null,null,0,null,null,0,null,null,0,"0"]
[{"$f":"IF(B211=\"\",\"\",SUBTOTAL(3,B$7:B211))","v":205},"مهن البيئة والمياه","MEE0702","صيانة شبكات التزويد بالماء الشروب",null,3,null,null,null,null,null,null,0,null,null,0,null,null,0,null,null,0,null,null,0,0,0,0,null,null,0,null,null,0,null,null,0,0,0,0,null,null,0,null,null,0,null,null,0,null,null,0,"0"]
[{"$f":"IF(B212=\"\",\"\",SUBTOTAL(3,B$7:B212))","v":206},"مهن البيئة والمياه","MEE1202","صيانة المسابح",null,3,null,null,null,null,null,null,0,null,null,0,null,null,0,null,null,0,null,null,0,0,0,0,null,null,0,null,null,0,null,null,0,0,0,0,null,null,0,null,null,0,null,null,0,null,null,0,"0"]
[{"$f":"IF(B213=\"\",\"\",SUBTOTAL(3,B$7:B213))","v":207},"مهن البيئة والمياه","MEE1903","إعادة تأهيل وصيانة المنشآت الهيدروتقنية",null,3,null,null,null,null,null,null,0,null,null,0,null,null,0,null,null,0,null,null,0,0,0,0,null,null,0,null,null,0,null,null,0,0,0,0,null,null,0,null,null,0,null,null,0,null,null,0,"0"]
[{"$f":"IF(B214=\"\",\"\",SUBTOTAL(3,B$7:B214))","v":208},"حرف الخدمات","MES0706","ماكياج مانيكير",null,3,null,null,null,null,null,null,0,null,null,0,null,null,0,null,null,0,null,null,0,0,0,0,null,null,0,null,null,0,null,null,0,0,0,0,null,null,0,null,null,0,null,null,0,null,null,0,"0"]
[{"$f":"IF(B215=\"\",\"\",SUBTOTAL(3,B$7:B215))","v":209},"المناجم والمحاجر","MIC1201","منجمي  في المحاجر",null,3,null,null,null,null,null,null,0,null,null,0,null,null,0,null,null,0,null,null,0,0,0,0,null,null,0,null,null,0,null,null,0,0,0,0,null,null,0,null,null,0,null,null,0,null,null,0,"0"]
[{"$f":"IF(B216=\"\",\"\",SUBTOTAL(3,B$7:B216))","v":210},"ميكانيك المحركات والآليات","MME0709","ميكانيك تصليح مركبات الوزن الخفيف",null,3,null,null,null,null,null,null,0,null,null,0,null,null,0,null,null,0,null,null,0,0,0,0,null,null,0,null,null,0,null,null,0,0,0,0,null,null,0,null,null,0,null,null,0,null,null,0,"0"]
[{"$f":"IF(B217=\"\",\"\",SUBTOTAL(3,B$7:B217))","v":211},"ميكانيك المحركات والآليات","MME0710","ميكانيك تصليح  أنظمة الضغط الهوائي و الهيدروليكية",null,3,null,null,null,null,null,null,0,null,null,0,null,null,0,null,null,0,null,null,0,0,0,0,null,null,0,null,null,0,null,null,0,0,0,0,null,null,0,null,null,0,null,null,0,null,null,0,"0"]
[{"$f":"IF(B218=\"\",\"\",SUBTOTAL(3,B$7:B218))","v":212},"ميكانيك المحركات والآليات","MME0711","ميكانيك تصليح  تجهيزات حقن الديازل",null,3,null,null,null,null,null,null,0,null,null,0,null,null,0,null,null,0,null,null,0,0,0,0,null,null,0,null,null,0,null,null,0,0,0,0,null,null,0,null,null,0,null,null,0,null,null,0,"0"]
[{"$f":"IF(B219=\"\",\"\",SUBTOTAL(3,B$7:B219))","v":213},"ميكانيك المحركات والآليات","MME0712","ميكانيك تصليح المركبات الصناعية",null,3,null,null,null,null,null,null,0,null,null,0,null,null,0,null,null,0,null,null,0,0,0,0,null,null,0,null,null,0,null,null,0,0,0,0,null,null,0,null,null,0,null,null,0,null,null,0,"0"]
[{"$f":"IF(B220=\"\",\"\",SUBTOTAL(3,B$7:B220))","v":214},"ميكانيك المحركات والآليات","MME1203","ميكانيك وتصليح اليات المناجم",null,3,null,null,null,null,null,null,0,null,null,0,null,null,0,null,null,0,null,null,0,0,0,0,null,null,0,null,null,0,null,null,0,0,0,0,null,null,0,null,null,0,null,null,0,null,null,0,"0"]
[{"$f":"IF(B221=\"\",\"\",SUBTOTAL(3,B$7:B221))","v":215},"ميكانيك المحركات والآليات","MME1204","مشغل الرافعة",null,3,null,null,null,null,null,null,0,null,null,0,null,null,0,null,null,0,null,null,0,0,0,0,null,null,0,null,null,0,null,null,0,0,0,0,null,null,0,null,null,0,null,null,0,null,null,0,"0"]
[{"$f":"IF(B222=\"\",\"\",SUBTOTAL(3,B$7:B222))","v":216},"ميكانيك المحركات والآليات","MME1205","ميكانيك وتصليح  الاليات البحرية",null,3,null,null,null,null,null,null,0,null,null,0,null,null,0,null,null,0,null,null,0,0,0,0,null,null,0,null,null,0,null,null,0,0,0,0,null,null,0,null,null,0,null,null,0,null,null,0,"0"]
[{"$f":"IF(B223=\"\",\"\",SUBTOTAL(3,B$7:B223))","v":217},"تقنيات الادارة والتسيير","TAG0702","المحاسبة",null,3,null,null,null,null,null,null,0,null,null,0,null,null,0,null,null,0,null,null,0,0,0,0,null,null,0,null,null,0,null,null,0,0,0,0,null,null,0,null,null,0,null,null,0,null,null,0,"0"]
[{"$f":"IF(B224=\"\",\"\",SUBTOTAL(3,B$7:B224))","v":218},"تقنيات الادارة والتسيير","TAG0703","البنوك",null,3,null,null,null,null,null,null,0,null,null,0,null,null,0,null,null,0,null,null,0,0,0,0,null,null,0,null,null,0,null,null,0,0,0,0,null,null,0,null,null,0,null,null,0,null,null,0,"0"]
[{"$f":"IF(B225=\"\",\"\",SUBTOTAL(3,B$7:B225))","v":219},"تقنيات الادارة والتسيير","TAG0704","التأمينات",null,3,null,null,null,null,null,null,0,null,null,0,null,null,0,null,null,0,null,null,0,0,0,0,null,null,0,null,null,0,null,null,0,0,0,0,null,null,0,null,null,0,null,null,0,null,null,0,"0"]
[{"$f":"IF(B226=\"\",\"\",SUBTOTAL(3,B$7:B226))","v":220},"تقنيات الادارة والتسيير","TAG0705","الأمانة",null,3,null,null,null,null,null,null,0,null,null,0,null,null,0,null,null,0,null,null,0,0,0,0,null,null,0,null,null,0,null,null,0,0,0,0,null,null,0,null,null,0,null,null,0,null,null,0,"0"]
[{"$f":"IF(B227=\"\",\"\",SUBTOTAL(3,B$7:B227))","v":221},"تقنيات الادارة والتسيير","TAG1204","مستشار البيع",null,3,null,null,null,null,null,null,0,null,null,0,null,null,0,null,null,0,null,null,0,0,0,0,null,null,0,null,null,0,null,null,0,0,0,0,null,null,0,null,null,0,null,null,0,null,null,0,"0"]
[{"$f":"IF(B228=\"\",\"\",SUBTOTAL(3,B$7:B228))","v":222},"تقنيات السمعي البصري","TAV0701","التصوير",null,3,null,null,null,null,null,null,0,null,null,0,null,null,0,null,null,0,null,null,0,0,0,0,null,null,0,null,null,0,null,null,0,0,0,0,null,null,0,null,null,0,null,null,0,null,null,0,"0"]
[{"$f":"IF(B229=\"\",\"\",SUBTOTAL(3,B$7:B229))","v":223},"تقنيات السمعي البصري","TAV1806","المشغل الإسقاطي",null,3,null,null,null,null,null,null,0,null,null,0,null,null,0,null,null,0,null,null,0,0,0,0,null,null,0,null,null,0,null,null,0,0,0,0,null,null,0,null,null,0,null,null,0,null,null,0,"0"]
[{"$f":"IF(B230=\"\",\"\",SUBTOTAL(3,B$7:B230))","v":224},"النسيج والألبسة","THC0702","خياطة الألبـسـة الجـاهـزة",null,3,null,null,null,null,null,null,0,null,null,0,null,null,0,null,null,0,null,null,0,0,0,0,null,null,0,null,null,0,null,null,0,0,0,0,null,null,0,null,null,0,null,null,0,null,null,0,"0"]
[{"$f":"IF(B231=\"\",\"\",SUBTOTAL(3,B$7:B231))","v":225},"النسيج والألبسة","THC0704","صناعة الأنسجة / خيار : معالجة الأنسجة ",null,3,null,null,null,null,null,null,0,null,null,0,null,null,0,null,null,0,null,null,0,0,0,0,null,null,0,null,null,0,null,null,0,0,0,0,null,null,0,null,null,0,null,null,0,null,null,0,"0"]
[{"$f":"IF(B232=\"\",\"\",SUBTOTAL(3,B$7:B232))","v":226},"النسيج والألبسة","THC1213","ميكانيك ضبط آلات النسيج",null,3,null,null,null,null,null,null,0,null,null,0,null,null,0,null,null,0,null,null,0,0,0,0,null,null,0,null,null,0,null,null,0,0,0,0,null,null,0,null,null,0,null,null,0,null,null,0,"0"]
[{"$f":"IF(B233=\"\",\"\",SUBTOTAL(3,B$7:B233))","v":227},"النسيج والألبسة","THC1214","ميكانيك ضبط آلات الغزل",null,3,null,null,null,null,null,null,0,null,null,0,null,null,0,null,null,0,null,null,0,0,0,0,null,null,0,null,null,0,null,null,0,0,0,0,null,null,0,null,null,0,null,null,0,null,null,0,"0"]
[{"$f":"IF(B234=\"\",\"\",SUBTOTAL(3,B$7:B234))","v":228},"النسيج والألبسة","THC1215","ميكانيك ضبط آلات معالجة الأنسجة",null,3,null,null,null,null,null,null,0,null,null,0,null,null,0,null,null,0,null,null,0,0,0,0,null,null,0,null,null,0,null,null,0,0,0,0,null,null,0,null,null,0,null,null,0,null,null,0,"0"]
[{"$f":"IF(B235=\"\",\"\",SUBTOTAL(3,B$7:B235))","v":229},"النسيج والألبسة","THC1216","ميكانيك ضبط آلات تحضير النسيج",null,3,null,null,null,null,null,null,0,null,null,0,null,null,0,null,null,0,null,null,0,0,0,0,null,null,0,null,null,0,null,null,0,0,0,0,null,null,0,null,null,0,null,null,0,null,null,0,"0"]
[{"$f":"IF(B236=\"\",\"\",SUBTOTAL(3,B$7:B236))","v":230},"فن - ثقافة والتراث","ACP1801P","بناء في التراث",null,3,null,null,null,null,null,null,0,null,null,0,null,null,0,null,null,0,null,null,0,0,0,0,null,null,0,null,null,0,null,null,0,0,0,0,null,null,0,null,null,0,null,null,0,null,null,0,"0"]
[{"$f":"IF(B237=\"\",\"\",SUBTOTAL(3,B$7:B237))","v":231},"الفلاحة ","AGR0719P","تركيب وصيانة العشب الرياضي",null,3,null,null,null,null,null,null,0,null,null,0,null,null,0,null,null,0,null,null,0,0,0,0,null,null,0,null,null,0,null,null,0,0,0,0,null,null,0,null,null,0,null,null,0,null,null,0,"0"]
[{"$f":"IF(B238=\"\",\"\",SUBTOTAL(3,B$7:B238))","v":232},"الفنون والصناعة المطبعية","AIG0704P","تشغيل آلات التجليد الصناعي",null,3,null,null,null,null,null,null,0,null,null,0,null,null,0,null,null,0,null,null,0,0,0,0,null,null,0,null,null,0,null,null,0,0,0,0,null,null,0,null,null,0,null,null,0,null,null,0,"0"]
[{"$f":"IF(B239=\"\",\"\",SUBTOTAL(3,B$7:B239))","v":233},"الفنون والصناعة المطبعية","AIG1201P","تشغيل وسائل الطبع / خيار : فليكسو و هيليو",null,3,null,null,null,null,null,null,0,null,null,0,null,null,0,null,null,0,null,null,0,0,0,0,null,null,0,null,null,0,null,null,0,0,0,0,null,null,0,null,null,0,null,null,0,null,null,0,"0"]
[{"$f":"IF(B240=\"\",\"\",SUBTOTAL(3,B$7:B240))","v":234},"الحرف التقليدية","ART0714P","اللباس التقليدي",null,3,null,null,null,null,null,null,0,null,null,0,null,null,0,null,null,0,null,null,0,0,0,0,null,null,0,null,null,0,null,null,0,0,0,0,null,null,0,null,null,0,null,null,0,null,null,0,"0"]
[{"$f":"IF(B241=\"\",\"\",SUBTOTAL(3,B$7:B241))","v":235},"الحرف التقليدية","ART0715P","الصياغة و صناعة الحلي",null,3,null,null,null,null,null,null,0,null,null,0,null,null,0,null,null,0,null,null,0,0,0,0,null,null,0,null,null,0,null,null,0,0,0,0,null,null,0,null,null,0,null,null,0,null,null,0,"0"]
[{"$f":"IF(B242=\"\",\"\",SUBTOTAL(3,B$7:B242))","v":236},"الخشب والتأثيث","BAM0704P","نجارة الأثاث",null,3,null,null,null,null,null,null,0,null,null,0,null,null,0,null,null,0,null,null,0,0,0,0,null,null,0,null,null,0,null,null,0,0,0,0,null,null,0,null,null,0,null,null,0,null,null,0,"0"]
[{"$f":"IF(B243=\"\",\"\",SUBTOTAL(3,B$7:B243))","v":237},"الخشب والتأثيث","BAM0705P","نجارة التنضيد",null,3,null,null,null,null,null,null,0,null,null,0,null,null,0,null,null,0,null,null,0,0,0,0,null,null,0,null,null,0,null,null,0,0,0,0,null,null,0,null,null,0,null,null,0,null,null,0,"0"]
[{"$f":"IF(B244=\"\",\"\",SUBTOTAL(3,B$7:B244))","v":238},"البناء والأشغال العمومية","BTP0712P","البنــاء المــوسّـع",null,3,null,null,null,null,null,null,0,null,null,0,null,null,0,null,null,0,null,null,0,0,0,0,null,null,0,null,null,0,null,null,0,0,0,0,null,null,0,null,null,0,null,null,0,null,null,0,"0"]
[{"$f":"IF(B245=\"\",\"\",SUBTOTAL(3,B$7:B245))","v":239},"البناء والأشغال العمومية","BTP0713P","هياكل البناء  الخشبية والسقوف",null,3,null,null,null,null,null,null,0,null,null,0,null,null,0,null,null,0,null,null,0,0,0,0,null,null,0,null,null,0,null,null,0,0,0,0,null,null,0,null,null,0,null,null,0,null,null,0,"0"]
[{"$f":"IF(B246=\"\",\"\",SUBTOTAL(3,B$7:B246))","v":240},"البناء والأشغال العمومية","BTP0714P","تلبيس الأرضيات الرياضية",null,3,null,null,null,null,null,null,0,null,null,0,null,null,0,null,null,0,null,null,0,0,0,0,null,null,0,null,null,0,null,null,0,0,0,0,null,null,0,null,null,0,null,null,0,null,null,0,"0"]
[{"$f":"IF(B247=\"\",\"\",SUBTOTAL(3,B$7:B247))","v":241},"البناء والأشغال العمومية","BTP1201P","التجصيص و تركّيب الصفائح الجصية",null,3,null,null,null,null,null,null,0,null,null,0,null,null,0,null,null,0,null,null,0,0,0,0,null,null,0,null,null,0,null,null,0,0,0,0,null,null,0,null,null,0,null,null,0,null,null,0,"0"]
[{"$f":"IF(B248=\"\",\"\",SUBTOTAL(3,B$7:B248))","v":242},"البناء والأشغال العمومية","BTP1802P","تلبيس الأرضيات",null,3,null,null,null,null,null,null,0,null,null,0,null,null,0,null,null,0,null,null,0,0,0,0,null,null,0,null,null,0,null,null,0,0,0,0,null,null,0,null,null,0,null,null,0,null,null,0,"0"]
[{"$f":"IF(B249=\"\",\"\",SUBTOTAL(3,B$7:B249))","v":243},"الإنشاءات المعدنية","CML0707P","صناعة القدور المعدنية",null,3,null,null,null,null,null,null,0,null,null,0,null,null,0,null,null,0,null,null,0,0,0,0,null,null,0,null,null,0,null,null,0,0,0,0,null,null,0,null,null,0,null,null,0,null,null,0,"0"]
[{"$f":"IF(B250=\"\",\"\",SUBTOTAL(3,B$7:B250))","v":244},"الإنشاءات المعدنية","CML0708P","تلحيم الأنابيب",null,3,null,null,null,null,null,null,0,null,null,0,null,null,0,null,null,0,null,null,0,0,0,0,null,null,0,null,null,0,null,null,0,0,0,0,null,null,0,null,null,0,null,null,0,null,null,0,"0"]
[{"$f":"IF(B251=\"\",\"\",SUBTOTAL(3,B$7:B251))","v":245},"الإنشاءات المعدنية","CML0709P","مُراقبة النوعية البعدية في الإنشاءات المعدنية",null,3,null,null,null,null,null,null,0,null,null,0,null,null,0,null,null,0,null,null,0,0,0,0,null,null,0,null,null,0,null,null,0,0,0,0,null,null,0,null,null,0,null,null,0,null,null,0,"0"]
[{"$f":"IF(B252=\"\",\"\",SUBTOTAL(3,B$7:B252))","v":246},"الإنشاءات المعدنية","CML0710P","الرسم في الإنشاءات المعدنية",null,3,null,null,null,null,null,null,0,null,null,0,null,null,0,null,null,0,null,null,0,0,0,0,null,null,0,null,null,0,null,null,0,0,0,0,null,null,0,null,null,0,null,null,0,null,null,0,"0"]
[{"$f":"IF(B253=\"\",\"\",SUBTOTAL(3,B$7:B253))","v":247},"الإنشاءات الميكانيكية والصناعة الحديدية\n","CMS1201P","إسـتـصـنـاع ",null,3,null,null,null,null,null,null,0,null,null,0,null,null,0,null,null,0,null,null,0,0,0,0,null,null,0,null,null,0,null,null,0,0,0,0,null,null,0,null,null,0,null,null,0,null,null,0,"0"]
[{"$f":"IF(B254=\"\",\"\",SUBTOTAL(3,B$7:B254))","v":248},"الإنشاءات الميكانيكية والصناعة الحديدية\n","CMS1202P","تجليخ  في الإنشاءات الميكانيكية",null,3,null,null,null,null,null,null,0,null,null,0,null,null,0,null,null,0,null,null,0,0,0,0,null,null,0,null,null,0,null,null,0,0,0,0,null,null,0,null,null,0,null,null,0,null,null,0,"0"]
[{"$f":"IF(B255=\"\",\"\",SUBTOTAL(3,B$7:B255))","v":249},"الإنشاءات الميكانيكية والصناعة الحديدية\n","CMS1203P","إستصناع بالمخرطـة ذات التحكم الرقمي",null,3,null,null,null,null,null,null,0,null,null,0,null,null,0,null,null,0,null,null,0,0,0,0,null,null,0,null,null,0,null,null,0,0,0,0,null,null,0,null,null,0,null,null,0,null,null,0,"0"]
[{"$f":"IF(B256=\"\",\"\",SUBTOTAL(3,B$7:B256))","v":250},"الإنشاءات الميكانيكية والصناعة الحديدية\n","CMS1801P ","تركيب و ضبط في الإنشاءات الميكانيكية والصناعة الحديدية ",null,3,null,null,null,null,null,null,0,null,null,0,null,null,0,null,null,0,null,null,0,0,0,0,null,null,0,null,null,0,null,null,0,0,0,0,null,null,0,null,null,0,null,null,0,null,null,0,"0"]
[{"$f":"IF(B257=\"\",\"\",SUBTOTAL(3,B$7:B257))","v":251},"الصناعة الجلدية","CPX1803P","تصميم الأحذية والمواد اللينة",null,3,null,null,null,null,null,null,0,null,null,0,null,null,0,null,null,0,null,null,0,0,0,0,null,null,0,null,null,0,null,null,0,0,0,0,null,null,0,null,null,0,null,null,0,null,null,0,"0"]
[{"$f":"IF(B258=\"\",\"\",SUBTOTAL(3,B$7:B258))","v":252},"الكهرباء – الإلكترونيك والطاقة","ELE0704P","تركيب و صيانة أجهزة التبريد و التكييف",null,3,null,null,null,null,null,null,0,null,null,0,null,null,0,null,null,0,null,null,0,0,0,0,null,null,0,null,null,0,null,null,0,0,0,0,null,null,0,null,null,0,null,null,0,null,null,0,"0"]
[{"$f":"IF(B259=\"\",\"\",SUBTOTAL(3,B$7:B259))","v":253},"الكهرباء – الإلكترونيك والطاقة","ELE0705P","الكهروميكانيكية",null,3,null,null,null,null,null,null,0,null,null,0,null,null,0,null,null,0,null,null,0,0,0,0,null,null,0,null,null,0,null,null,0,0,0,0,null,null,0,null,null,0,null,null,0,null,null,0,"0"]
[{"$f":"IF(B260=\"\",\"\",SUBTOTAL(3,B$7:B260))","v":254},"مهن البيئة والمياه","MEE0701P","صيانة شبكات التطهير",null,3,null,null,null,null,null,null,0,null,null,0,null,null,0,null,null,0,null,null,0,0,0,0,null,null,0,null,null,0,null,null,0,0,0,0,null,null,0,null,null,0,null,null,0,null,null,0,"0"]
[{"$f":"IF(B261=\"\",\"\",SUBTOTAL(3,B$7:B261))","v":255},"مهن البيئة والمياه","MEE0702P","صيانة شبكات التزويد بالماء الشروب",null,3,null,null,null,null,null,null,0,null,null,0,null,null,0,null,null,0,null,null,0,0,0,0,null,null,0,null,null,0,null,null,0,0,0,0,null,null,0,null,null,0,null,null,0,null,null,0,"0"]
[{"$f":"IF(B262=\"\",\"\",SUBTOTAL(3,B$7:B262))","v":""},null,"MES0706P","ماكياج وتشذيب الأظافر",null,3,null,null,null,null,null,null,0,null,null,0,null,null,0,null,null,0,null,null,0,0,0,0,null,null,0,null,null,0,null,null,0,0,0,0,null,null,0,null,null,0,null,null,0,null,null,0,"0"]
[{"$f":"IF(B263=\"\",\"\",SUBTOTAL(3,B$7:B263))","v":256},"تقنيات الادارة والتسيير","TAG0705P","الأمانة",null,3,null,null,null,null,null,null,0,null,null,0,null,null,0,null,null,0,null,null,0,0,0,0,null,null,0,null,null,0,null,null,0,0,0,0,null,null,0,null,null,0,null,null,0,null,null,0,"0"]
[{"$f":"IF(B264=\"\",\"\",SUBTOTAL(3,B$7:B264))","v":257},"النسيج والألبسة","THC0702P","خياطة الألبـسـة الجـاهـزة",null,3,null,null,null,null,null,null,{"$f":"J264+I264+H264+G264","v":0},null,null,{"$f":"O264+N264","v":0},null,null,{"$f":"R264+Q264","v":0},null,null,{"$f":"U264+T264","v":0},null,null,{"$f":"X264+W264","v":0},{"$f":"(N264+Q264)-(W264+T264)","v":0},{"$f":"(O264+R264)-(X264+U264)","v":0},{"$f":"(P264+S264)-(Y264+V264)","v":0},null,null,{"$f":"AD264+AC264","v":0},null,null,{"$f":"AG264+AF264","v":0},null,null,{"$f":"AJ264+AI264","v":0},{"$f":"(AC264)-(AF264)-(AI264)","v":0},{"$f":"(AD264)-(AG264)-(AJ264)","v":0},{"$f":"AM264+AL264","v":0},null,null,{"$f":"AP264+AO264","v":0},null,null,{"$f":"AS264+AR264","v":0},null,null,{"$f":"AV264+AU264","v":0},null,null,{"$f":"AY264+AX264","v":0},{"$f":"IFERROR((AK264)/AE264,\"0\")","v":"0"}]
[{"$f":"IF(B265=\"\",\"\",SUBTOTAL(3,B$7:B265))","v":258},"فن - ثقافة والتراث","ACP1804","تقني في حفظ التراث المبني",null,4,null,null,null,null,null,null,0,null,null,0,null,null,0,null,null,0,null,null,0,0,0,0,null,null,0,null,null,0,null,null,0,0,0,0,null,null,0,null,null,0,null,null,0,null,null,0,"0"]
[{"$f":"IF(B266=\"\",\"\",SUBTOTAL(3,B$7:B266))","v":259},"فن - ثقافة والتراث","ACP1805","تقني في الترميم التراث",null,4,null,null,null,null,null,null,0,null,null,0,null,null,0,null,null,0,null,null,0,0,0,0,null,null,0,null,null,0,null,null,0,0,0,0,null,null,0,null,null,0,null,null,0,null,null,0,"0"]
[{"$f":"IF(B267=\"\",\"\",SUBTOTAL(3,B$7:B267))","v":260},"الفلاحة ","AGR0708","البستنـة والمساحـات الخضـراء",null,4,null,null,null,null,null,null,0,null,null,0,null,null,0,null,null,0,null,null,0,0,0,0,null,null,0,null,null,0,null,null,0,0,0,0,null,null,0,null,null,0,null,null,0,null,null,0,"0"]
[{"$f":"IF(B268=\"\",\"\",SUBTOTAL(3,B$7:B268))","v":261},"الفنون والصناعة المطبعية","AIG0706","تشغيل آلات الطبع",null,4,null,null,null,null,null,null,0,null,null,0,null,null,0,null,null,0,null,null,0,0,0,0,null,null,0,null,null,0,null,null,0,0,0,0,null,null,0,null,null,0,null,null,0,null,null,0,"0"]
[{"$f":"IF(B269=\"\",\"\",SUBTOTAL(3,B$7:B269))","v":262},"الفنون والصناعة المطبعية","AIG1202","التجليد الفني و ترميم الكتب",null,4,null,null,null,null,null,null,0,null,null,0,null,null,0,null,null,0,null,null,0,0,0,0,null,null,0,null,null,0,null,null,0,0,0,0,null,null,0,null,null,0,null,null,0,null,null,0,"0"]
[{"$f":"IF(B270=\"\",\"\",SUBTOTAL(3,B$7:B270))","v":263},"الحرف التقليدية","ART1207","فن الخط",null,4,null,null,null,null,null,null,0,null,null,0,null,null,0,null,null,0,null,null,0,0,0,0,null,null,0,null,null,0,null,null,0,0,0,0,null,null,0,null,null,0,null,null,0,null,null,0,"0"]
[{"$f":"IF(B271=\"\",\"\",SUBTOTAL(3,B$7:B271))","v":264},"الحرف التقليدية","ART1208","فن الزجاج / تخصص الزجاج الملون",null,4,null,null,null,null,null,null,0,null,null,0,null,null,0,null,null,0,null,null,0,0,0,0,null,null,0,null,null,0,null,null,0,0,0,0,null,null,0,null,null,0,null,null,0,null,null,0,"0"]
[{"$f":"IF(B272=\"\",\"\",SUBTOTAL(3,B$7:B272))","v":265},"البناء والأشغال العمومية","BTP0715","الطوبوغرافيا",null,4,null,null,null,null,null,null,0,null,null,0,null,null,0,null,null,0,null,null,0,0,0,0,null,null,0,null,null,0,null,null,0,0,0,0,null,null,0,null,null,0,null,null,0,null,null,0,"0"]
[{"$f":"IF(B273=\"\",\"\",SUBTOTAL(3,B$7:B273))","v":266},"البناء والأشغال العمومية","BTP0716","متابعة الإنجاز في البناء",null,4,null,null,null,null,null,null,0,null,null,0,null,null,0,null,null,0,null,null,0,0,0,0,null,null,0,null,null,0,null,null,0,0,0,0,null,null,0,null,null,0,null,null,0,null,null,0,"0"]
[{"$f":"IF(B274=\"\",\"\",SUBTOTAL(3,B$7:B274))","v":267},"البناء والأشغال العمومية","BTP1202","تقني في التعمير",null,4,null,null,null,null,null,null,0,null,null,0,null,null,0,null,null,0,null,null,0,0,0,0,null,null,0,null,null,0,null,null,0,0,0,0,null,null,0,null,null,0,null,null,0,null,null,0,"0"]
[{"$f":"IF(B275=\"\",\"\",SUBTOTAL(3,B$7:B275))","v":268},"البناء والأشغال العمومية","BTP1203","تركيب في التهوية وتكييف الهـواء",null,4,null,null,null,null,null,null,0,null,null,0,null,null,0,null,null,0,null,null,0,0,0,0,null,null,0,null,null,0,null,null,0,0,0,0,null,null,0,null,null,0,null,null,0,null,null,0,"0"]
[{"$f":"IF(B276=\"\",\"\",SUBTOTAL(3,B$7:B276))","v":269},"البناء والأشغال العمومية","BTP1204","متار جميع عناصر البناء",null,4,null,null,null,null,null,null,0,null,null,0,null,null,0,null,null,0,null,null,0,0,0,0,null,null,0,null,null,0,null,null,0,0,0,0,null,null,0,null,null,0,null,null,0,null,null,0,"0"]
[{"$f":"IF(B277=\"\",\"\",SUBTOTAL(3,B$7:B277))","v":270},"البناء والأشغال العمومية","BTP1205","تقني في ميكانيكا التربة",null,4,null,null,null,null,null,null,0,null,null,0,null,null,0,null,null,0,null,null,0,0,0,0,null,null,0,null,null,0,null,null,0,0,0,0,null,null,0,null,null,0,null,null,0,null,null,0,"0"]
[{"$f":"IF(B278=\"\",\"\",SUBTOTAL(3,B$7:B278))","v":271},"البناء والأشغال العمومية","BTP1206","تقني في الأشغال العمومية",null,4,null,null,null,null,null,null,0,null,null,0,null,null,0,null,null,0,null,null,0,0,0,0,null,null,0,null,null,0,null,null,0,0,0,0,null,null,0,null,null,0,null,null,0,null,null,0,"0"]
[{"$f":"IF(B279=\"\",\"\",SUBTOTAL(3,B$7:B279))","v":272},"البناء والأشغال العمومية","BTP1207","الطرق و الشبكات المختلفة",null,4,null,null,null,null,null,null,0,null,null,0,null,null,0,null,null,0,null,null,0,0,0,0,null,null,0,null,null,0,null,null,0,0,0,0,null,null,0,null,null,0,null,null,0,null,null,0,"0"]
[{"$f":"IF(B280=\"\",\"\",SUBTOTAL(3,B$7:B280))","v":273},"البناء والأشغال العمومية","BTP1208","رسم الدراسة  /  خيار : هندسة معمارية",null,4,null,null,null,null,null,null,0,null,null,0,null,null,0,null,null,0,null,null,0,0,0,0,null,null,0,null,null,0,null,null,0,0,0,0,null,null,0,null,null,0,null,null,0,null,null,0,"0"]
[{"$f":"IF(B281=\"\",\"\",SUBTOTAL(3,B$7:B281))","v":274},"البناء والأشغال العمومية","BTP1209","رسم الدراسة / خيار : خرسانة مسلحة",null,4,null,null,null,null,null,null,0,null,null,0,null,null,0,null,null,0,null,null,0,0,0,0,null,null,0,null,null,0,null,null,0,0,0,0,null,null,0,null,null,0,null,null,0,null,null,0,"0"]
[{"$f":"IF(B282=\"\",\"\",SUBTOTAL(3,B$7:B282))","v":275},"البناء والأشغال العمومية","BTP1803","إعادة تأهيل البناء",null,4,null,null,null,null,null,null,0,null,null,0,null,null,0,null,null,0,null,null,0,0,0,0,null,null,0,null,null,0,null,null,0,0,0,0,null,null,0,null,null,0,null,null,0,null,null,0,"0"]
[{"$f":"IF(B283=\"\",\"\",SUBTOTAL(3,B$7:B283))","v":276},"البناء والأشغال العمومية","BTP1804","العزل الحراري والصوتي",null,4,null,null,null,null,null,null,0,null,null,0,null,null,0,null,null,0,null,null,0,0,0,0,null,null,0,null,null,0,null,null,0,0,0,0,null,null,0,null,null,0,null,null,0,null,null,0,"0"]
[{"$f":"IF(B284=\"\",\"\",SUBTOTAL(3,B$7:B284))","v":277},"الكيمياء الصناعية والبلاستيك","CIP0703","تقني في الكيمياء",null,4,null,null,null,null,null,null,0,null,null,0,null,null,0,null,null,0,null,null,0,0,0,0,null,null,0,null,null,0,null,null,0,0,0,0,null,null,0,null,null,0,null,null,0,null,null,0,"0"]
[{"$f":"IF(B285=\"\",\"\",SUBTOTAL(3,B$7:B285))","v":278},"الكيمياء الصناعية والبلاستيك","CIP0704","تحويل البلاستيك",null,4,null,null,null,null,null,null,0,null,null,0,null,null,0,null,null,0,null,null,0,0,0,0,null,null,0,null,null,0,null,null,0,0,0,0,null,null,0,null,null,0,null,null,0,null,null,0,"0"]
[{"$f":"IF(B286=\"\",\"\",SUBTOTAL(3,B$7:B286))","v":279},"الكيمياء الصناعية والبلاستيك","CIP0705","صناعة الورق و الورق المقوى",null,4,null,null,null,null,null,null,0,null,null,0,null,null,0,null,null,0,null,null,0,0,0,0,null,null,0,null,null,0,null,null,0,0,0,0,null,null,0,null,null,0,null,null,0,null,null,0,"0"]
[{"$f":"IF(B287=\"\",\"\",SUBTOTAL(3,B$7:B287))","v":280},"الكيمياء الصناعية والبلاستيك","CIP0706","كيمياء الطلاء، الغراء و البرنيق",null,4,null,null,null,null,null,null,0,null,null,0,null,null,0,null,null,0,null,null,0,0,0,0,null,null,0,null,null,0,null,null,0,0,0,0,null,null,0,null,null,0,null,null,0,null,null,0,"0"]
[{"$f":"IF(B288=\"\",\"\",SUBTOTAL(3,B$7:B288))","v":281},"الكيمياء الصناعية والبلاستيك","CIP0707","صناعة الزجاج و المرايا",null,4,null,null,null,null,null,null,0,null,null,0,null,null,0,null,null,0,null,null,0,0,0,0,null,null,0,null,null,0,null,null,0,0,0,0,null,null,0,null,null,0,null,null,0,null,null,0,"0"]
[{"$f":"IF(B289=\"\",\"\",SUBTOTAL(3,B$7:B289))","v":282},"الكيمياء الصناعية والبلاستيك","CIP0708","تحويل تشكيلات المطاط الاصطناعي",null,4,null,null,null,null,null,null,0,null,null,0,null,null,0,null,null,0,null,null,0,0,0,0,null,null,0,null,null,0,null,null,0,0,0,0,null,null,0,null,null,0,null,null,0,null,null,0,"0"]
[{"$f":"IF(B290=\"\",\"\",SUBTOTAL(3,B$7:B290))","v":283},"الإنشاءات المعدنية","CML0711","مراقبة التلحيم",null,4,null,null,null,null,null,null,0,null,null,0,null,null,0,null,null,0,null,null,0,0,0,0,null,null,0,null,null,0,null,null,0,0,0,0,null,null,0,null,null,0,null,null,0,null,null,0,"0"]
[{"$f":"IF(B291=\"\",\"\",SUBTOTAL(3,B$7:B291))","v":284},"الإنشاءات المعدنية","CML0712","صناعة منتوجات نجارة الألومينيوم و البلاستيك (PVC)",null,4,null,null,null,null,null,null,0,null,null,0,null,null,0,null,null,0,null,null,0,0,0,0,null,null,0,null,null,0,null,null,0,0,0,0,null,null,0,null,null,0,null,null,0,null,null,0,"0"]
[{"$f":"IF(B292=\"\",\"\",SUBTOTAL(3,B$7:B292))","v":285},"الإنشاءات المعدنية","CML0713","تنظيم و إطلاق الإنشاءات المعدنية",null,4,null,null,null,null,null,null,0,null,null,0,null,null,0,null,null,0,null,null,0,0,0,0,null,null,0,null,null,0,null,null,0,0,0,0,null,null,0,null,null,0,null,null,0,null,null,0,"0"]
[{"$f":"IF(B293=\"\",\"\",SUBTOTAL(3,B$7:B293))","v":286},"الإنشاءات المعدنية","CML0714","تحضيرات و طرق الإنشاءات المعدنية",null,4,null,null,null,null,null,null,0,null,null,0,null,null,0,null,null,0,null,null,0,0,0,0,null,null,0,null,null,0,null,null,0,0,0,0,null,null,0,null,null,0,null,null,0,null,null,0,"0"]
[{"$f":"IF(B294=\"\",\"\",SUBTOTAL(3,B$7:B294))","v":287},"الإنشاءات المعدنية","CML1203","هياكل المركبات و الطلاء",null,4,null,null,null,null,null,null,0,null,null,0,null,null,0,null,null,0,null,null,0,0,0,0,null,null,0,null,null,0,null,null,0,0,0,0,null,null,0,null,null,0,null,null,0,null,null,0,"0"]
[{"$f":"IF(B295=\"\",\"\",SUBTOTAL(3,B$7:B295))","v":288},"الإنشاءات المعدنية","CML1204","تلحيم الصفائح و المجنبات",null,4,null,null,null,null,null,null,0,null,null,0,null,null,0,null,null,0,null,null,0,0,0,0,null,null,0,null,null,0,null,null,0,0,0,0,null,null,0,null,null,0,null,null,0,null,null,0,"0"]
[{"$f":"IF(B296=\"\",\"\",SUBTOTAL(3,B$7:B296))","v":289},"الإنشاءات المعدنية","CML1205","رسم الدراسات في الإنشاءات المعدنية",null,4,null,null,null,null,null,null,0,null,null,0,null,null,0,null,null,0,null,null,0,0,0,0,null,null,0,null,null,0,null,null,0,0,0,0,null,null,0,null,null,0,null,null,0,null,null,0,"0"]
[{"$f":"IF(B297=\"\",\"\",SUBTOTAL(3,B$7:B297))","v":290},"الإنشاءات المعدنية","CML1206","قدور أنابيب صناعية",null,4,null,null,null,null,null,null,0,null,null,0,null,null,0,null,null,0,null,null,0,0,0,0,null,null,0,null,null,0,null,null,0,0,0,0,null,null,0,null,null,0,null,null,0,null,null,0,"0"]
[{"$f":"IF(B298=\"\",\"\",SUBTOTAL(3,B$7:B298))","v":291},"الإنشاءات الميكانيكية والصناعة الحديدية\n","CMS0706","التحضير و الطرق في الإنشاءات الميكانيكية والصناعة الحديدية",null,4,null,null,null,null,null,null,0,null,null,0,null,null,0,null,null,0,null,null,0,0,0,0,null,null,0,null,null,0,null,null,0,0,0,0,null,null,0,null,null,0,null,null,0,null,null,0,"0"]
[{"$f":"IF(B299=\"\",\"\",SUBTOTAL(3,B$7:B299))","v":292},"الإنشاءات الميكانيكية والصناعة الحديدية\n","CMS0707","علم القياس و مراقبة النوعية",null,4,null,null,null,null,null,null,0,null,null,0,null,null,0,null,null,0,null,null,0,0,0,0,null,null,0,null,null,0,null,null,0,0,0,0,null,null,0,null,null,0,null,null,0,null,null,0,"0"]
[{"$f":"IF(B300=\"\",\"\",SUBTOTAL(3,B$7:B300))","v":293},"الإنشاءات الميكانيكية والصناعة الحديدية\n","CMS0708","الرسم في دراسات الإنشاءات الميكانيكية والصناعة الحديدية",null,4,null,null,null,null,null,null,0,null,null,0,null,null,0,null,null,0,null,null,0,0,0,0,null,null,0,null,null,0,null,null,0,0,0,0,null,null,0,null,null,0,null,null,0,null,null,0,"0"]
[{"$f":"IF(B301=\"\",\"\",SUBTOTAL(3,B$7:B301))","v":294},"الإنشاءات الميكانيكية والصناعة الحديدية\n","CMS0709","الصيانة الصناعية في الإنشاءات الميكانيكية والصناعة الحديدية",null,4,null,null,null,null,null,null,0,null,null,0,null,null,0,null,null,0,null,null,0,0,0,0,null,null,0,null,null,0,null,null,0,0,0,0,null,null,0,null,null,0,null,null,0,null,null,0,"0"]
[{"$f":"IF(B302=\"\",\"\",SUBTOTAL(3,B$7:B302))","v":295},"الإنشاءات الميكانيكية والصناعة الحديدية\n","CMS0710","الأنتجة الميكانيكية / خيار : إ ستصناع",null,4,null,null,null,null,null,null,0,null,null,0,null,null,0,null,null,0,null,null,0,0,0,0,null,null,0,null,null,0,null,null,0,0,0,0,null,null,0,null,null,0,null,null,0,null,null,0,"0"]
[{"$f":"IF(B303=\"\",\"\",SUBTOTAL(3,B$7:B303))","v":296},"الإنشاءات الميكانيكية والصناعة الحديدية\n","CMS0711","الأنتجة الميكانيكية / خيار : آلات وأدوات التصليح",null,4,null,null,null,null,null,null,0,null,null,0,null,null,0,null,null,0,null,null,0,0,0,0,null,null,0,null,null,0,null,null,0,0,0,0,null,null,0,null,null,0,null,null,0,null,null,0,"0"]
[{"$f":"IF(B304=\"\",\"\",SUBTOTAL(3,B$7:B304))","v":297},"الإنشاءات الميكانيكية والصناعة الحديدية\n","CMS0712","الـسـباكـة",null,4,null,null,null,null,null,null,0,null,null,0,null,null,0,null,null,0,null,null,0,0,0,0,null,null,0,null,null,0,null,null,0,0,0,0,null,null,0,null,null,0,null,null,0,null,null,0,"0"]
[{"$f":"IF(B305=\"\",\"\",SUBTOTAL(3,B$7:B305))","v":298},"الإنشاءات الميكانيكية والصناعة الحديدية\n","CMS1204","إستصناع  بالسحج",null,4,null,null,null,null,null,null,0,null,null,0,null,null,0,null,null,0,null,null,0,0,0,0,null,null,0,null,null,0,null,null,0,0,0,0,null,null,0,null,null,0,null,null,0,null,null,0,"0"]
[{"$f":"IF(B306=\"\",\"\",SUBTOTAL(3,B$7:B306))","v":299},"الصناعة الجلدية","CPX0706","الدباغة",null,4,null,null,null,null,null,null,0,null,null,0,null,null,0,null,null,0,null,null,0,0,0,0,null,null,0,null,null,0,null,null,0,0,0,0,null,null,0,null,null,0,null,null,0,null,null,0,"0"]
[{"$f":"IF(B307=\"\",\"\",SUBTOTAL(3,B$7:B307))","v":300},"الصناعة الجلدية","CPX0707","الأحذية و المنتجات الجلدية",null,4,null,null,null,null,null,null,0,null,null,0,null,null,0,null,null,0,null,null,0,0,0,0,null,null,0,null,null,0,null,null,0,0,0,0,null,null,0,null,null,0,null,null,0,null,null,0,"0"]
[{"$f":"IF(B308=\"\",\"\",SUBTOTAL(3,B$7:B308))","v":301},"الكهرباء – الإلكترونيك والطاقة","ELE0707","إلكترونيك السيارات",null,4,null,null,null,null,null,null,0,null,null,0,null,null,0,null,null,0,null,null,0,0,0,0,null,null,0,null,null,0,null,null,0,0,0,0,null,null,0,null,null,0,null,null,0,null,null,0,"0"]
[{"$f":"IF(B309=\"\",\"\",SUBTOTAL(3,B$7:B309))","v":302},"الكهرباء – الإلكترونيك والطاقة","ELE0708","الكهروتقني",null,4,null,null,null,null,null,null,0,null,null,0,null,null,0,null,null,0,null,null,0,0,0,0,null,null,0,null,null,0,null,null,0,0,0,0,null,null,0,null,null,0,null,null,0,null,null,0,"0"]
[{"$f":"IF(B310=\"\",\"\",SUBTOTAL(3,B$7:B310))","v":303},"الكهرباء – الإلكترونيك والطاقة","ELE0709","الإلكترونيك الصناعية",null,4,null,null,null,null,null,null,0,null,null,0,null,null,0,null,null,0,null,null,0,0,0,0,null,null,0,null,null,0,null,null,0,0,0,0,null,null,0,null,null,0,null,null,0,null,null,0,"0"]
[{"$f":"IF(B311=\"\",\"\",SUBTOTAL(3,B$7:B311))","v":304},"الكهرباء – الإلكترونيك والطاقة","ELE0711","صيانة المصاعد",null,4,null,null,null,null,null,null,0,null,null,0,null,null,0,null,null,0,null,null,0,0,0,0,null,null,0,null,null,0,null,null,0,0,0,0,null,null,0,null,null,0,null,null,0,null,null,0,"0"]
[{"$f":"IF(B312=\"\",\"\",SUBTOTAL(3,B$7:B312))","v":305},"الكهرباء – الإلكترونيك والطاقة","ELE1204","التبريد الصناعي و التكييف",null,4,null,null,null,null,null,null,0,null,null,0,null,null,0,null,null,0,null,null,0,0,0,0,null,null,0,null,null,0,null,null,0,0,0,0,null,null,0,null,null,0,null,null,0,null,null,0,"0"]
[{"$f":"IF(B313=\"\",\"\",SUBTOTAL(3,B$7:B313))","v":306},"الكهرباء – الإلكترونيك والطاقة","ELE1205","الكهروميكانـيك",null,4,null,null,null,null,null,null,0,null,null,0,null,null,0,null,null,0,null,null,0,0,0,0,null,null,0,null,null,0,null,null,0,0,0,0,null,null,0,null,null,0,null,null,0,null,null,0,"0"]
[{"$f":"IF(B314=\"\",\"\",SUBTOTAL(3,B$7:B314))","v":307},"الكهرباء – الإلكترونيك والطاقة","ELE1206","صيانة التجهيزات المعلوماتية",null,4,null,null,null,null,null,null,0,null,null,0,null,null,0,null,null,0,null,null,0,0,0,0,null,null,0,null,null,0,null,null,0,0,0,0,null,null,0,null,null,0,null,null,0,null,null,0,"0"]
[{"$f":"IF(B315=\"\",\"\",SUBTOTAL(3,B$7:B315))","v":308},"الكهرباء – الإلكترونيك والطاقة","ELE1207","تركيب و صيانة الألواح الشمسية، الضوئية",null,4,null,null,null,null,null,null,0,null,null,0,null,null,0,null,null,0,null,null,0,0,0,0,null,null,0,null,null,0,null,null,0,0,0,0,null,null,0,null,null,0,null,null,0,null,null,0,"0"]
[{"$f":"IF(B316=\"\",\"\",SUBTOTAL(3,B$7:B316))","v":309},"الكهرباء – الإلكترونيك والطاقة","ELE1208","تركيب و صيانة الألواح الشمسية، الحرارية",null,4,null,null,null,null,null,null,0,null,null,0,null,null,0,null,null,0,null,null,0,0,0,0,null,null,0,null,null,0,null,null,0,0,0,0,null,null,0,null,null,0,null,null,0,null,null,0,"0"]
[{"$f":"IF(B317=\"\",\"\",SUBTOTAL(3,B$7:B317))","v":310},"الكهرباء – الإلكترونيك والطاقة","ELE1209","صيانة الأنظمة الميكانيكية الآلية",null,4,null,null,null,null,null,null,0,null,null,0,null,null,0,null,null,0,null,null,0,0,0,0,null,null,0,null,null,0,null,null,0,0,0,0,null,null,0,null,null,0,null,null,0,null,null,0,"0"]
[{"$f":"IF(B318=\"\",\"\",SUBTOTAL(3,B$7:B318))","v":311},"الكهرباء – الإلكترونيك والطاقة","ELE1210","تركيب و تصليح الأجهزة الكهرو منزلية",null,4,null,null,null,null,null,null,0,null,null,0,null,null,0,null,null,0,null,null,0,0,0,0,null,null,0,null,null,0,null,null,0,0,0,0,null,null,0,null,null,0,null,null,0,null,null,0,"0"]
[{"$f":"IF(B319=\"\",\"\",SUBTOTAL(3,B$7:B319))","v":312},"الكهرباء – الإلكترونيك والطاقة","ELE1211","التلفيف الكهربائي",null,4,null,null,null,null,null,null,0,null,null,0,null,null,0,null,null,0,null,null,0,0,0,0,null,null,0,null,null,0,null,null,0,0,0,0,null,null,0,null,null,0,null,null,0,null,null,0,"0"]
[{"$f":"IF(B320=\"\",\"\",SUBTOTAL(3,B$7:B320))","v":313},"الكهرباء – الإلكترونيك والطاقة","ELE1212","تركيب و صيانة أجهزة التوليد بالرياح ",null,4,null,null,null,null,null,null,0,null,null,0,null,null,0,null,null,0,null,null,0,0,0,0,null,null,0,null,null,0,null,null,0,0,0,0,null,null,0,null,null,0,null,null,0,null,null,0,"0"]
[{"$f":"IF(B321=\"\",\"\",SUBTOTAL(3,B$7:B321))","v":314},"الكهرباء – الإلكترونيك والطاقة","ELE1801","تركيب وصيانة أنظمة الإنذار و المراقبة بالفيديو",null,4,null,null,null,null,null,null,0,null,null,0,null,null,0,null,null,0,null,null,0,0,0,0,null,null,0,null,null,0,null,null,0,0,0,0,null,null,0,null,null,0,null,null,0,null,null,0,"0"]
[{"$f":"IF(B322=\"\",\"\",SUBTOTAL(3,B$7:B322))","v":315},"الفندقة -الإطعام والسياحة","HRT0708","السياحة / خيار: وكالة السفر",null,4,null,null,null,null,null,null,0,null,null,0,null,null,0,null,null,0,null,null,0,0,0,0,null,null,0,null,null,0,null,null,0,0,0,0,null,null,0,null,null,0,null,null,0,null,null,0,"0"]
[{"$f":"IF(B323=\"\",\"\",SUBTOTAL(3,B$7:B323))","v":316},"الفندقة -الإطعام والسياحة","HRT0709","الفندقة / خيار : الاستقبال",null,4,null,null,null,null,null,null,0,null,null,0,null,null,0,null,null,0,null,null,0,0,0,0,null,null,0,null,null,0,null,null,0,0,0,0,null,null,0,null,null,0,null,null,0,null,null,0,"0"]
[{"$f":"IF(B324=\"\",\"\",SUBTOTAL(3,B$7:B324))","v":317},"الفندقة -الإطعام والسياحة","HRT1202","الفندقة / خيار : الايواء",null,4,null,null,null,null,null,null,0,null,null,0,null,null,0,null,null,0,null,null,0,0,0,0,null,null,0,null,null,0,null,null,0,0,0,0,null,null,0,null,null,0,null,null,0,null,null,0,"0"]
[{"$f":"IF(B325=\"\",\"\",SUBTOTAL(3,B$7:B325))","v":318},"الفندقة -الإطعام والسياحة","HRT1803","الفندقة - الإطعام / خيار : الإنتاج المطبخي",null,4,null,null,null,null,null,null,0,null,null,0,null,null,0,null,null,0,null,null,0,0,0,0,null,null,0,null,null,0,null,null,0,0,0,0,null,null,0,null,null,0,null,null,0,null,null,0,"0"]
[{"$f":"IF(B326=\"\",\"\",SUBTOTAL(3,B$7:B326))","v":319},"الفندقة -الإطعام والسياحة","HRT1804","الفندقة - الإطعام / خيار : خدمة المطعم",null,4,null,null,null,null,null,null,0,null,null,0,null,null,0,null,null,0,null,null,0,0,0,0,null,null,0,null,null,0,null,null,0,0,0,0,null,null,0,null,null,0,null,null,0,null,null,0,"0"]
[{"$f":"IF(B327=\"\",\"\",SUBTOTAL(3,B$7:B327))","v":320},"صناعة الأغذية الز ا رعية","IAA0708","إنتاج و تصفية الزيوت الغذائية",null,4,null,null,null,null,null,null,0,null,null,0,null,null,0,null,null,0,null,null,0,0,0,0,null,null,0,null,null,0,null,null,0,0,0,0,null,null,0,null,null,0,null,null,0,null,null,0,"0"]
[{"$f":"IF(B328=\"\",\"\",SUBTOTAL(3,B$7:B328))","v":321},"صناعة الأغذية الز ا رعية","IAA0709","إنتاج أغذية الحيوانات",null,4,null,null,null,null,null,null,{"$f":"J328+I328+H328+G328","v":0},null,null,{"$f":"O328+N328","v":0},null,null,{"$f":"R328+Q328","v":0},null,null,{"$f":"U328+T328","v":0},null,null,{"$f":"X328+W328","v":0},{"$f":"(N328+Q328)-(W328+T328)","v":0},{"$f":"(O328+R328)-(X328+U328)","v":0},{"$f":"(P328+S328)-(Y328+V328)","v":0},null,null,{"$f":"AD328+AC328","v":0},null,null,{"$f":"AG328+AF328","v":0},null,null,{"$f":"AJ328+AI328","v":0},{"$f":"(AC328)-(AF328)-(AI328)","v":0},{"$f":"(AD328)-(AG328)-(AJ328)","v":0},{"$f":"AM328+AL328","v":0},null,null,{"$f":"AP328+AO328","v":0},null,null,{"$f":"AS328+AR328","v":0},null,null,{"$f":"AV328+AU328","v":0},null,null,{"$f":"AY328+AX328","v":0},{"$f":"IFERROR((AK328)/AE328,\"0\")","v":"0"}]
[{"$f":"IF(B329=\"\",\"\",SUBTOTAL(3,B$7:B329))","v":322},"صناعة الأغذية الز ا رعية","IAA1201","تكنولوجيا صنع الحلوى، الشكولاطة و البسكويت",null,4,null,null,null,null,null,null,0,null,null,0,null,null,0,null,null,0,null,null,0,0,0,0,null,null,0,null,null,0,null,null,0,0,0,0,null,null,0,null,null,0,null,null,0,null,null,0,"0"]
[{"$f":"IF(B330=\"\",\"\",SUBTOTAL(3,B$7:B330))","v":323},"صناعة الأغذية الز ا رعية","IAA1801","تعبئة و تغليف المواد الزراعية الغذائية",null,4,null,null,null,null,null,null,0,null,null,0,null,null,0,null,null,0,null,null,0,0,0,0,null,null,0,null,null,0,null,null,0,0,0,0,null,null,0,null,null,0,null,null,0,null,null,0,"0"]
[{"$f":"IF(B331=\"\",\"\",SUBTOTAL(3,B$7:B331))","v":324},"صناعة الأغذية الز ا رعية","IAA1802","تحويل التمور",null,4,null,null,null,null,null,null,0,null,null,0,null,null,0,null,null,0,null,null,0,0,0,0,null,null,0,null,null,0,null,null,0,0,0,0,null,null,0,null,null,0,null,null,0,null,null,0,"0"]
[{"$f":"IF(B332=\"\",\"\",SUBTOTAL(3,B$7:B332))","v":325},"صناعة الأغذية الز ا رعية","IAA1803","معالجة و تحويل اللحوم",null,4,null,null,null,null,null,null,0,null,null,0,null,null,0,null,null,0,null,null,0,0,0,0,null,null,0,null,null,0,null,null,0,0,0,0,null,null,0,null,null,0,null,null,0,null,null,0,"0"]
[{"$f":"IF(B333=\"\",\"\",SUBTOTAL(3,B$7:B333))","v":326},"صناعة الأغذية الز ا رعية","IAA1902","تحويل الحليب",null,4,null,null,null,null,null,null,0,null,null,0,null,null,0,null,null,0,null,null,0,0,0,0,null,null,0,null,null,0,null,null,0,0,0,0,null,null,0,null,null,0,null,null,0,null,null,0,"0"]
[{"$f":"IF(B334=\"\",\"\",SUBTOTAL(3,B$7:B334))","v":327},"الصناعات النفطية ","INP1201","جذاب",null,4,null,null,null,null,null,null,0,null,null,0,null,null,0,null,null,0,null,null,0,0,0,0,null,null,0,null,null,0,null,null,0,0,0,0,null,null,0,null,null,0,null,null,0,null,null,0,"0"]
[{"$f":"IF(B335=\"\",\"\",SUBTOTAL(3,B$7:B335))","v":328},"الصناعات النفطية ","INP1202","ميكــانيكـي المسـابر",null,4,null,null,null,null,null,null,0,null,null,0,null,null,0,null,null,0,null,null,0,0,0,0,null,null,0,null,null,0,null,null,0,0,0,0,null,null,0,null,null,0,null,null,0,null,null,0,"0"]
[{"$f":"IF(B336=\"\",\"\",SUBTOTAL(3,B$7:B336))","v":329},"الصناعات النفطية ","INP1801","تقني في أرضيات النفط",null,4,null,null,null,null,null,null,0,null,null,0,null,null,0,null,null,0,null,null,0,0,0,0,null,null,0,null,null,0,null,null,0,0,0,0,null,null,0,null,null,0,null,null,0,null,null,0,"0"]
[{"$f":"IF(B337=\"\",\"\",SUBTOTAL(3,B$7:B337))","v":330},"المعلوماتية-الرقمنة و الإتصالات","INT0701","مُستغل المعلوماتية",null,4,null,null,null,null,null,null,0,null,null,0,null,null,0,null,null,0,null,null,0,0,0,0,null,null,0,null,null,0,null,null,0,0,0,0,null,null,0,null,null,0,null,null,0,null,null,0,"0"]
[{"$f":"IF(B338=\"\",\"\",SUBTOTAL(3,B$7:B338))","v":331},"المعلوماتية-الرقمنة و الإتصالات","INT0702","مُساعد الوسائط الإعلامية",null,4,null,null,null,null,null,null,0,null,null,0,null,null,0,null,null,0,null,null,0,0,0,0,null,null,0,null,null,0,null,null,0,0,0,0,null,null,0,null,null,0,null,null,0,null,null,0,"0"]
[{"$f":"IF(B339=\"\",\"\",SUBTOTAL(3,B$7:B339))","v":332},"المعلوماتية-الرقمنة و الإتصالات","INT1204","المعلوماتية / خيار : البرمـــجة",null,4,null,null,null,null,null,null,0,null,null,0,null,null,0,null,null,0,null,null,0,0,0,0,null,null,0,null,null,0,null,null,0,0,0,0,null,null,0,null,null,0,null,null,0,null,null,0,"0"]
[{"$f":"IF(B340=\"\",\"\",SUBTOTAL(3,B$7:B340))","v":333},"المعلوماتية-الرقمنة و الإتصالات","INT1205","إعلام آلي التسيير",null,4,null,null,null,null,null,null,0,null,null,0,null,null,0,null,null,0,null,null,0,0,0,0,null,null,0,null,null,0,null,null,0,0,0,0,null,null,0,null,null,0,null,null,0,null,null,0,"0"]
[{"$f":"IF(B341=\"\",\"\",SUBTOTAL(3,B$7:B341))","v":334},"المعلوماتية-الرقمنة و الإتصالات","INT1206","تركيب  شبكات الاتصال اللاسلكي",null,4,null,null,null,null,null,null,0,null,null,0,null,null,0,null,null,0,null,null,0,0,0,0,null,null,0,null,null,0,null,null,0,0,0,0,null,null,0,null,null,0,null,null,0,null,null,0,"0"]
[{"$f":"IF(B342=\"\",\"\",SUBTOTAL(3,B$7:B342))","v":335},"مهن البيئة والمياه","MEE0704","التزويد بالماء الشروب",null,4,null,null,null,null,null,null,0,null,null,0,null,null,0,null,null,0,null,null,0,0,0,0,null,null,0,null,null,0,null,null,0,0,0,0,null,null,0,null,null,0,null,null,0,null,null,0,"0"]
[{"$f":"IF(B343=\"\",\"\",SUBTOTAL(3,B$7:B343))","v":336},"مهن البيئة والمياه","MEE1805","معالجة النفايات",null,4,null,null,null,null,null,null,0,null,null,0,null,null,0,null,null,0,null,null,0,0,0,0,null,null,0,null,null,0,null,null,0,0,0,0,null,null,0,null,null,0,null,null,0,null,null,0,"0"]
[{"$f":"IF(B344=\"\",\"\",SUBTOTAL(3,B$7:B344))","v":337},"مهن البيئة والمياه","MEE1904","استغلال محطات تطهير المياه",null,4,null,null,null,null,null,null,0,null,null,0,null,null,0,null,null,0,null,null,0,0,0,0,null,null,0,null,null,0,null,null,0,0,0,0,null,null,0,null,null,0,null,null,0,null,null,0,"0"]
[{"$f":"IF(B345=\"\",\"\",SUBTOTAL(3,B$7:B345))","v":338},"مهن البيئة والمياه","MEE1905","تنظيم وتوزيع مياه السقي",null,4,null,null,null,null,null,null,0,null,null,0,null,null,0,null,null,0,null,null,0,0,0,0,null,null,0,null,null,0,null,null,0,0,0,0,null,null,0,null,null,0,null,null,0,null,null,0,"0"]
[{"$f":"IF(B346=\"\",\"\",SUBTOTAL(3,B$7:B346))","v":339},"حرف الخدمات","MES0707","التجميل",null,4,null,null,null,null,null,null,0,null,null,0,null,null,0,null,null,0,null,null,0,0,0,0,null,null,0,null,null,0,null,null,0,0,0,0,null,null,0,null,null,0,null,null,0,null,null,0,"0"]
[{"$f":"IF(B347=\"\",\"\",SUBTOTAL(3,B$7:B347))","v":340},"حرف الخدمات","MES1202","مساعدة حضانة ",null,4,null,null,null,null,null,null,0,null,null,0,null,null,0,null,null,0,null,null,0,0,0,0,null,null,0,null,null,0,null,null,0,0,0,0,null,null,0,null,null,0,null,null,0,null,null,0,"0"]
[{"$f":"IF(B348=\"\",\"\",SUBTOTAL(3,B$7:B348))","v":341},"المناجم والمحاجر","MIC1803","ثاقب في المناجم",null,4,null,null,null,null,null,null,0,null,null,0,null,null,0,null,null,0,null,null,0,0,0,0,null,null,0,null,null,0,null,null,0,0,0,0,null,null,0,null,null,0,null,null,0,null,null,0,"0"]
[{"$f":"IF(B349=\"\",\"\",SUBTOTAL(3,B$7:B349))","v":342},"المناجم والمحاجر","MIC1804","سبار في المحاجر",null,4,null,null,null,null,null,null,0,null,null,0,null,null,0,null,null,0,null,null,0,0,0,0,null,null,0,null,null,0,null,null,0,0,0,0,null,null,0,null,null,0,null,null,0,null,null,0,"0"]
[{"$f":"IF(B350=\"\",\"\",SUBTOTAL(3,B$7:B350))","v":343},"المناجم والمحاجر","MIC1805","تقني  المناجم",null,4,null,null,null,null,null,null,0,null,null,0,null,null,0,null,null,0,null,null,0,0,0,0,null,null,0,null,null,0,null,null,0,0,0,0,null,null,0,null,null,0,null,null,0,null,null,0,"0"]
[{"$f":"IF(B351=\"\",\"\",SUBTOTAL(3,B$7:B351))","v":344},"المناجم والمحاجر","MIC1806","الطوبوغرافي في المناجم (مساح)",null,4,null,null,null,null,null,null,0,null,null,0,null,null,0,null,null,0,null,null,0,0,0,0,null,null,0,null,null,0,null,null,0,0,0,0,null,null,0,null,null,0,null,null,0,null,null,0,"0"]
[{"$f":"IF(B352=\"\",\"\",SUBTOTAL(3,B$7:B352))","v":345},"ميكانيك المحركات والآليات","MME0713","صيانة مركبات الوزن الخفيف",null,4,null,null,null,null,null,null,0,null,null,0,null,null,0,null,null,0,null,null,0,0,0,0,null,null,0,null,null,0,null,null,0,0,0,0,null,null,0,null,null,0,null,null,0,null,null,0,"0"]
[{"$f":"IF(B353=\"\",\"\",SUBTOTAL(3,B$7:B353))","v":346},"ميكانيك المحركات والآليات","MME0714","صيانة آليات الورشات",null,4,null,null,null,null,null,null,0,null,null,0,null,null,0,null,null,0,null,null,0,0,0,0,null,null,0,null,null,0,null,null,0,0,0,0,null,null,0,null,null,0,null,null,0,null,null,0,"0"]
[{"$f":"IF(B354=\"\",\"\",SUBTOTAL(3,B$7:B354))","v":347},"ميكانيك المحركات والآليات","MME0715","صيانة أليات الفلاحة",null,4,null,null,null,null,null,null,0,null,null,0,null,null,0,null,null,0,null,null,0,0,0,0,null,null,0,null,null,0,null,null,0,0,0,0,null,null,0,null,null,0,null,null,0,null,null,0,"0"]
[{"$f":"IF(B355=\"\",\"\",SUBTOTAL(3,B$7:B355))","v":348},"ميكانيك المحركات والآليات","MME0720","صيانة قوارب الصيد و اليخت",null,4,null,null,null,null,null,null,0,null,null,0,null,null,0,null,null,0,null,null,0,0,0,0,null,null,0,null,null,0,null,null,0,0,0,0,null,null,0,null,null,0,null,null,0,null,null,0,"0"]
[{"$f":"IF(B356=\"\",\"\",SUBTOTAL(3,B$7:B356))","v":349},"ميكانيك المحركات والآليات","MME1206","قيادة محطة صناعة الخرسانة",null,4,null,null,null,null,null,null,0,null,null,0,null,null,0,null,null,0,null,null,0,0,0,0,null,null,0,null,null,0,null,null,0,0,0,0,null,null,0,null,null,0,null,null,0,null,null,0,"0"]
[{"$f":"IF(B357=\"\",\"\",SUBTOTAL(3,B$7:B357))","v":350},"ميكانيك المحركات والآليات","MME1207","تصليح وصيانة المضخات والتجهيزات الهيدروليكية",null,4,null,null,null,null,null,null,0,null,null,0,null,null,0,null,null,0,null,null,0,0,0,0,null,null,0,null,null,0,null,null,0,0,0,0,null,null,0,null,null,0,null,null,0,null,null,0,"0"]
[{"$f":"IF(B358=\"\",\"\",SUBTOTAL(3,B$7:B358))","v":351},"الصيد البحري وتربية المائيات","PEC1203","تربية اسماك الزينة",null,4,null,null,null,null,null,null,0,null,null,0,null,null,0,null,null,0,null,null,0,0,0,0,null,null,0,null,null,0,null,null,0,0,0,0,null,null,0,null,null,0,null,null,0,null,null,0,"0"]
[{"$f":"IF(B359=\"\",\"\",SUBTOTAL(3,B$7:B359))","v":352},"تقنيات الادارة والتسيير","TAG0706","تجاري (تجارة)",null,4,null,null,null,null,null,null,0,null,null,0,null,null,0,null,null,0,null,null,0,0,0,0,null,null,0,null,null,0,null,null,0,0,0,0,null,null,0,null,null,0,null,null,0,null,null,0,"0"]
[{"$f":"IF(B360=\"\",\"\",SUBTOTAL(3,B$7:B360))","v":353},"تقنيات الادارة والتسيير","TAG0707","العبور و الجمركة",null,4,null,null,null,null,null,null,0,null,null,0,null,null,0,null,null,0,null,null,0,0,0,0,null,null,0,null,null,0,null,null,0,0,0,0,null,null,0,null,null,0,null,null,0,null,null,0,"0"]
[{"$f":"IF(B361=\"\",\"\",SUBTOTAL(3,B$7:B361))","v":354},"تقنيات الادارة والتسيير","TAG0708","الأمانة المكتبية",null,4,null,null,null,null,null,null,0,null,null,0,null,null,0,null,null,0,null,null,0,0,0,0,null,null,0,null,null,0,null,null,0,0,0,0,null,null,0,null,null,0,null,null,0,null,null,0,"0"]
[{"$f":"IF(B362=\"\",\"\",SUBTOTAL(3,B$7:B362))","v":355},"تقنيات الادارة والتسيير","TAG0709","المحاسبة",null,4,null,null,null,null,null,null,0,null,null,0,null,null,0,null,null,0,null,null,0,0,0,0,null,null,0,null,null,0,null,null,0,0,0,0,null,null,0,null,null,0,null,null,0,null,null,0,"0"]
[{"$f":"IF(B363=\"\",\"\",SUBTOTAL(3,B$7:B363))","v":356},"تقنيات الادارة والتسيير","TAG1205","الشراء و التموين",null,4,null,null,null,null,null,null,0,null,null,0,null,null,0,null,null,0,null,null,0,0,0,0,null,null,0,null,null,0,null,null,0,0,0,0,null,null,0,null,null,0,null,null,0,null,null,0,"0"]
[{"$f":"IF(B364=\"\",\"\",SUBTOTAL(3,B$7:B364))","v":357},"تقنيات الادارة والتسيير","TAG1206","تسيير المخزونات",null,4,null,null,null,null,null,null,0,null,null,0,null,null,0,null,null,0,null,null,0,0,0,0,null,null,0,null,null,0,null,null,0,0,0,0,null,null,0,null,null,0,null,null,0,null,null,0,"0"]
[{"$f":"IF(B365=\"\",\"\",SUBTOTAL(3,B$7:B365))","v":358},"تقنيات السمعي البصري","TAV0702","تقنيات استغلال تجهيزات السمعي البصري",null,4,null,null,null,null,null,null,0,null,null,0,null,null,0,null,null,0,null,null,0,0,0,0,null,null,0,null,null,0,null,null,0,0,0,0,null,null,0,null,null,0,null,null,0,null,null,0,"0"]
[{"$f":"IF(B366=\"\",\"\",SUBTOTAL(3,B$7:B366))","v":359},"تقنيات السمعي البصري","TAV1801","السمعي البصري / خيار: إلتقاط الصورة",null,4,null,null,null,null,null,null,0,null,null,0,null,null,0,null,null,0,null,null,0,0,0,0,null,null,0,null,null,0,null,null,0,0,0,0,null,null,0,null,null,0,null,null,0,null,null,0,"0"]
[{"$f":"IF(B367=\"\",\"\",SUBTOTAL(3,B$7:B367))","v":360},"تقنيات السمعي البصري","TAV1802","السمعي البصري / خيار: إلتقاط الصوت",null,4,null,null,null,null,null,null,0,null,null,0,null,null,0,null,null,0,null,null,0,0,0,0,null,null,0,null,null,0,null,null,0,0,0,0,null,null,0,null,null,0,null,null,0,null,null,0,"0"]
[{"$f":"IF(B368=\"\",\"\",SUBTOTAL(3,B$7:B368))","v":361},"تقنيات السمعي البصري","TAV1803","السمعي البصري / خيار: تركيب",null,4,null,null,null,null,null,null,0,null,null,0,null,null,0,null,null,0,null,null,0,0,0,0,null,null,0,null,null,0,null,null,0,0,0,0,null,null,0,null,null,0,null,null,0,null,null,0,"0"]
[{"$f":"IF(B369=\"\",\"\",SUBTOTAL(3,B$7:B369))","v":362},"النسيج والألبسة","THC0705","ميكانيك ضبط تجهيزات النسيج",null,4,null,null,null,null,null,null,0,null,null,0,null,null,0,null,null,0,null,null,0,0,0,0,null,null,0,null,null,0,null,null,0,0,0,0,null,null,0,null,null,0,null,null,0,null,null,0,"0"]
[{"$f":"IF(B370=\"\",\"\",SUBTOTAL(3,B$7:B370))","v":363},"النسيج والألبسة","THC1217","خياط ألبسة السيدات",null,4,null,null,null,null,null,null,0,null,null,0,null,null,0,null,null,0,null,null,0,0,0,0,null,null,0,null,null,0,null,null,0,0,0,0,null,null,0,null,null,0,null,null,0,null,null,0,"0"]
[{"$f":"IF(B371=\"\",\"\",SUBTOTAL(3,B$7:B371))","v":364},"النسيج والألبسة","THC1218","خياط ألبسة الرجال",null,4,null,null,null,null,null,null,0,null,null,0,null,null,0,null,null,0,null,null,0,0,0,0,null,null,0,null,null,0,null,null,0,0,0,0,null,null,0,null,null,0,null,null,0,null,null,0,"0"]
[{"$f":"IF(B372=\"\",\"\",SUBTOTAL(3,B$7:B372))","v":365},"النسيج والألبسة","THC1801","نموذج التدرج في صناعة الألبسة",null,4,null,null,null,null,null,null,0,null,null,0,null,null,0,null,null,0,null,null,0,0,0,0,null,null,0,null,null,0,null,null,0,0,0,0,null,null,0,null,null,0,null,null,0,null,null,0,"0"]
[{"$f":"IF(B373=\"\",\"\",SUBTOTAL(3,B$7:B373))","v":366},"فن - ثقافة والتراث","ACP1804P","تقني في حفظ التراث",null,4,null,null,null,null,null,null,0,null,null,0,null,null,0,null,null,0,null,null,0,0,0,0,null,null,0,null,null,0,null,null,0,0,0,0,null,null,0,null,null,0,null,null,0,null,null,0,"0"]
[{"$f":"IF(B374=\"\",\"\",SUBTOTAL(3,B$7:B374))","v":367},"فن - ثقافة والتراث","ACP1805P","تقني في الترميم التراث",null,4,null,null,null,null,null,null,0,null,null,0,null,null,0,null,null,0,null,null,0,0,0,0,null,null,0,null,null,0,null,null,0,0,0,0,null,null,0,null,null,0,null,null,0,null,null,0,"0"]
[{"$f":"IF(B375=\"\",\"\",SUBTOTAL(3,B$7:B375))","v":368},"الفلاحة ","AGR0708P","البستنـة والمساحـات الخضـراء",null,4,null,null,null,null,null,null,0,null,null,0,null,null,0,null,null,0,null,null,0,0,0,0,null,null,0,null,null,0,null,null,0,0,0,0,null,null,0,null,null,0,null,null,0,null,null,0,"0"]
[{"$f":"IF(B376=\"\",\"\",SUBTOTAL(3,B$7:B376))","v":369},"الفنون والصناعة المطبعية","AIG1202P","التجليد الفني و ترميم الكتب ",null,4,null,null,null,null,null,null,0,null,null,0,null,null,0,null,null,0,null,null,0,0,0,0,null,null,0,null,null,0,null,null,0,0,0,0,null,null,0,null,null,0,null,null,0,null,null,0,"0"]
[{"$f":"IF(B377=\"\",\"\",SUBTOTAL(3,B$7:B377))","v":370},"الفنون والصناعة المطبعية","AIG0706P1","تشغيل آلات الطبع",null,4,null,null,null,null,null,null,0,null,null,0,null,null,0,null,null,0,null,null,0,0,0,0,null,null,0,null,null,0,null,null,0,0,0,0,null,null,0,null,null,0,null,null,0,null,null,0,"0"]
[{"$f":"IF(B378=\"\",\"\",SUBTOTAL(3,B$7:B378))","v":371},"الفنون والصناعة المطبعية","AIG0706P2","تشغيل آلات الطبع",null,4,null,null,null,null,null,null,0,null,null,0,null,null,0,null,null,0,null,null,0,0,0,0,null,null,0,null,null,0,null,null,0,0,0,0,null,null,0,null,null,0,null,null,0,null,null,0,"0"]
[{"$f":"IF(B379=\"\",\"\",SUBTOTAL(3,B$7:B379))","v":372},"الحرف التقليدية","ART1207P","فن الخط",null,4,null,null,null,null,null,null,0,null,null,0,null,null,0,null,null,0,null,null,0,0,0,0,null,null,0,null,null,0,null,null,0,0,0,0,null,null,0,null,null,0,null,null,0,null,null,0,"0"]
[{"$f":"IF(B380=\"\",\"\",SUBTOTAL(3,B$7:B380))","v":373},"الحرف التقليدية","ART1208P","صناعة الزجاج / خيار : الزجاج الملون",null,4,null,null,null,null,null,null,0,null,null,0,null,null,0,null,null,0,null,null,0,0,0,0,null,null,0,null,null,0,null,null,0,0,0,0,null,null,0,null,null,0,null,null,0,null,null,0,"0"]
[{"$f":"IF(B381=\"\",\"\",SUBTOTAL(3,B$7:B381))","v":374},"الخشب والتأثيث","BAM1801P","مراقبة النوعية في الصناعات الخشبية",null,4,null,null,null,null,null,null,0,null,null,0,null,null,0,null,null,0,null,null,0,0,0,0,null,null,0,null,null,0,null,null,0,0,0,0,null,null,0,null,null,0,null,null,0,null,null,0,"0"]
[{"$f":"IF(B382=\"\",\"\",SUBTOTAL(3,B$7:B382))","v":375},"البناء والأشغال العمومية","BTP0715P","الطوبوغرافيا",null,4,null,null,null,null,null,null,0,null,null,0,null,null,0,null,null,0,null,null,0,0,0,0,null,null,0,null,null,0,null,null,0,0,0,0,null,null,0,null,null,0,null,null,0,null,null,0,"0"]
[{"$f":"IF(B383=\"\",\"\",SUBTOTAL(3,B$7:B383))","v":376},"البناء والأشغال العمومية","BTP0716P","متابعة الإنجاز في البناء",null,4,null,null,null,null,null,null,0,null,null,0,null,null,0,null,null,0,null,null,0,0,0,0,null,null,0,null,null,0,null,null,0,0,0,0,null,null,0,null,null,0,null,null,0,null,null,0,"0"]
[{"$f":"IF(B384=\"\",\"\",SUBTOTAL(3,B$7:B384))","v":377},"البناء والأشغال العمومية","BTP1203P","تركيب في التهوية وتكييف الهـواء",null,4,null,null,null,null,null,null,0,null,null,0,null,null,0,null,null,0,null,null,0,0,0,0,null,null,0,null,null,0,null,null,0,0,0,0,null,null,0,null,null,0,null,null,0,null,null,0,"0"]
[{"$f":"IF(B385=\"\",\"\",SUBTOTAL(3,B$7:B385))","v":378},"البناء والأشغال العمومية","BTP1804P","العزل الحراري والصوتي",null,4,null,null,null,null,null,null,0,null,null,0,null,null,0,null,null,0,null,null,0,0,0,0,null,null,0,null,null,0,null,null,0,0,0,0,null,null,0,null,null,0,null,null,0,null,null,0,"0"]
[{"$f":"IF(B386=\"\",\"\",SUBTOTAL(3,B$7:B386))","v":379},"البناء والأشغال العمومية","BTP1205P","تقني في ميكانيكا التربة",null,4,null,null,null,null,null,null,0,null,null,0,null,null,0,null,null,0,null,null,0,0,0,0,null,null,0,null,null,0,null,null,0,0,0,0,null,null,0,null,null,0,null,null,0,null,null,0,"0"]
[{"$f":"IF(B387=\"\",\"\",SUBTOTAL(3,B$7:B387))","v":380},"البناء والأشغال العمومية","BTP1803P","إعادة تأهيل البنايات",null,4,null,null,null,null,null,null,0,null,null,0,null,null,0,null,null,0,null,null,0,0,0,0,null,null,0,null,null,0,null,null,0,0,0,0,null,null,0,null,null,0,null,null,0,null,null,0,"0"]
[{"$f":"IF(B388=\"\",\"\",SUBTOTAL(3,B$7:B388))","v":381},"الكيمياء الصناعية والبلاستيك","CIP0708P","تحويل تشكيلات المطاط الاصطناعي",null,4,null,null,null,null,null,null,0,null,null,0,null,null,0,null,null,0,null,null,0,0,0,0,null,null,0,null,null,0,null,null,0,0,0,0,null,null,0,null,null,0,null,null,0,null,null,0,"0"]
[{"$f":"IF(B389=\"\",\"\",SUBTOTAL(3,B$7:B389))","v":382},"الإنشاءات المعدنية","CML0711P","مراقبة التلحيم ",null,4,null,null,null,null,null,null,0,null,null,0,null,null,0,null,null,0,null,null,0,0,0,0,null,null,0,null,null,0,null,null,0,0,0,0,null,null,0,null,null,0,null,null,0,null,null,0,"0"]
[{"$f":"IF(B390=\"\",\"\",SUBTOTAL(3,B$7:B390))","v":383},"الإنشاءات المعدنية","CML0712P","صناعة منتوجات نجارة الألومينيوم و البلاستيك (PVC)",null,4,null,null,null,null,null,null,0,null,null,0,null,null,0,null,null,0,null,null,0,0,0,0,null,null,0,null,null,0,null,null,0,0,0,0,null,null,0,null,null,0,null,null,0,null,null,0,"0"]
[{"$f":"IF(B391=\"\",\"\",SUBTOTAL(3,B$7:B391))","v":384},"الإنشاءات المعدنية","CML0713P","تنظيم و إطلاق الإنشاءات المعدنية",null,4,null,null,null,null,null,null,0,null,null,0,null,null,0,null,null,0,null,null,0,0,0,0,null,null,0,null,null,0,null,null,0,0,0,0,null,null,0,null,null,0,null,null,0,null,null,0,"0"]
[{"$f":"IF(B392=\"\",\"\",SUBTOTAL(3,B$7:B392))","v":385},"الإنشاءات المعدنية","CML0714P","إعداد الطرق  في الإنشاءات المعدنية",null,4,null,null,null,null,null,null,{"$f":"J392+I392+H392+G392","v":0},null,null,{"$f":"O392+N392","v":0},null,null,{"$f":"R392+Q392","v":0},null,null,{"$f":"U392+T392","v":0},null,null,{"$f":"X392+W392","v":0},{"$f":"(N392+Q392)-(W392+T392)","v":0},{"$f":"(O392+R392)-(X392+U392)","v":0},{"$f":"(P392+S392)-(Y392+V392)","v":0},null,null,{"$f":"AD392+AC392","v":0},null,null,{"$f":"AG392+AF392","v":0},null,null,{"$f":"AJ392+AI392","v":0},{"$f":"(AC392)-(AF392)-(AI392)","v":0},{"$f":"(AD392)-(AG392)-(AJ392)","v":0},{"$f":"AM392+AL392","v":0},null,null,{"$f":"AP392+AO392","v":0},null,null,{"$f":"AS392+AR392","v":0},null,null,{"$f":"AV392+AU392","v":0},null,null,{"$f":"AY392+AX392","v":0},{"$f":"IFERROR((AK392)/AE392,\"0\")","v":"0"}]
[{"$f":"IF(B393=\"\",\"\",SUBTOTAL(3,B$7:B393))","v":386},"الإنشاءات المعدنية","CML1203P","هياكل المركبات و الطلاء",null,4,null,null,null,null,null,null,0,null,null,0,null,null,0,null,null,0,null,null,0,0,0,0,null,null,0,null,null,0,null,null,0,0,0,0,null,null,0,null,null,0,null,null,0,null,null,0,"0"]
[{"$f":"IF(B394=\"\",\"\",SUBTOTAL(3,B$7:B394))","v":387},"الإنشاءات المعدنية","CML1204P1","التلحيم على الصفائح و المجنبات",null,4,null,null,null,null,null,null,0,null,null,0,null,null,0,null,null,0,null,null,0,0,0,0,null,null,0,null,null,0,null,null,0,0,0,0,null,null,0,null,null,0,null,null,0,null,null,0,"0"]
[{"$f":"IF(B395=\"\",\"\",SUBTOTAL(3,B$7:B395))","v":388},"الإنشاءات المعدنية","CML1204P2","التلحيم على الصفائح و المجنبات",null,4,null,null,null,null,null,null,0,null,null,0,null,null,0,null,null,0,null,null,0,0,0,0,null,null,0,null,null,0,null,null,0,0,0,0,null,null,0,null,null,0,null,null,0,null,null,0,"0"]
[{"$f":"IF(B396=\"\",\"\",SUBTOTAL(3,B$7:B396))","v":389},"الإنشاءات المعدنية","CML1205P","رسم الدراسات في الإنشاءات المعدنية",null,4,null,null,null,null,null,null,0,null,null,0,null,null,0,null,null,0,null,null,0,0,0,0,null,null,0,null,null,0,null,null,0,0,0,0,null,null,0,null,null,0,null,null,0,null,null,0,"0"]
[{"$f":"IF(B397=\"\",\"\",SUBTOTAL(3,B$7:B397))","v":390},"الإنشاءات المعدنية","CML1206P","قدور معدنية  و أنابيب  صناعية",null,4,null,null,null,null,null,null,0,null,null,0,null,null,0,null,null,0,null,null,0,0,0,0,null,null,0,null,null,0,null,null,0,0,0,0,null,null,0,null,null,0,null,null,0,null,null,0,"0"]
[{"$f":"IF(B398=\"\",\"\",SUBTOTAL(3,B$7:B398))","v":391},"الإنشاءات الميكانيكية والصناعة الحديدية\n","CMS0706P","إعداد الطرق في الإنشاءات الميكانيكية والصناعة الحديدية",null,4,null,null,null,null,null,null,0,null,null,0,null,null,0,null,null,0,null,null,0,0,0,0,null,null,0,null,null,0,null,null,0,0,0,0,null,null,0,null,null,0,null,null,0,null,null,0,"0"]
[{"$f":"IF(B399=\"\",\"\",SUBTOTAL(3,B$7:B399))","v":392},"الإنشاءات الميكانيكية والصناعة الحديدية\n","CMS0709P","الصيانة الصناعية في الإنشاءات الميكانيكية والصناعة الحديدية",null,4,null,null,null,null,null,null,0,null,null,0,null,null,0,null,null,0,null,null,0,0,0,0,null,null,0,null,null,0,null,null,0,0,0,0,null,null,0,null,null,0,null,null,0,null,null,0,"0"]
[{"$f":"IF(B400=\"\",\"\",SUBTOTAL(3,B$7:B400))","v":393},"الإنشاءات الميكانيكية والصناعة الحديدية\n","CMS0710P","الإنتاج الميكانيكي / خيار : إ ستصناع",null,4,null,null,null,null,null,null,0,null,null,0,null,null,0,null,null,0,null,null,0,0,0,0,null,null,0,null,null,0,null,null,0,0,0,0,null,null,0,null,null,0,null,null,0,null,null,0,"0"]
[{"$f":"IF(B401=\"\",\"\",SUBTOTAL(3,B$7:B401))","v":394},"الإنشاءات الميكانيكية والصناعة الحديدية\n","CMS0711P","الإنتاج الميكانيكي / خيار : آلات وأدوات التصليح",null,4,null,null,null,null,null,null,0,null,null,0,null,null,0,null,null,0,null,null,0,0,0,0,null,null,0,null,null,0,null,null,0,0,0,0,null,null,0,null,null,0,null,null,0,null,null,0,"0"]
[{"$f":"IF(B402=\"\",\"\",SUBTOTAL(3,B$7:B402))","v":395},"الإنشاءات الميكانيكية والصناعة الحديدية\n","CMS0712P","الـسـباكـة",null,4,null,null,null,null,null,null,0,null,null,0,null,null,0,null,null,0,null,null,0,0,0,0,null,null,0,null,null,0,null,null,0,0,0,0,null,null,0,null,null,0,null,null,0,null,null,0,"0"]
[{"$f":"IF(B403=\"\",\"\",SUBTOTAL(3,B$7:B403))","v":396},"الإنشاءات الميكانيكية والصناعة الحديدية\n","CMS1204P","إستصناع  بالسحج ",null,4,null,null,null,null,null,null,0,null,null,0,null,null,0,null,null,0,null,null,0,0,0,0,null,null,0,null,null,0,null,null,0,0,0,0,null,null,0,null,null,0,null,null,0,null,null,0,"0"]
[{"$f":"IF(B404=\"\",\"\",SUBTOTAL(3,B$7:B404))","v":397},"الصناعة الجلدية","CPX0706P","الدباغة",null,4,null,null,null,null,null,null,0,null,null,0,null,null,0,null,null,0,null,null,0,0,0,0,null,null,0,null,null,0,null,null,0,0,0,0,null,null,0,null,null,0,null,null,0,null,null,0,"0"]
[{"$f":"IF(B405=\"\",\"\",SUBTOTAL(3,B$7:B405))","v":398},"الصناعة الجلدية","CPX0707P","الأحذية و المنتجات الجلدية",null,4,null,null,null,null,null,null,0,null,null,0,null,null,0,null,null,0,null,null,0,0,0,0,null,null,0,null,null,0,null,null,0,0,0,0,null,null,0,null,null,0,null,null,0,null,null,0,"0"]
[{"$f":"IF(B406=\"\",\"\",SUBTOTAL(3,B$7:B406))","v":399},"الكهرباء – الإلكترونيك والطاقة","ELE0708P1","الإلكتروتقني",null,4,null,null,null,null,null,null,0,null,null,0,null,null,0,null,null,0,null,null,0,0,0,0,null,null,0,null,null,0,null,null,0,0,0,0,null,null,0,null,null,0,null,null,0,null,null,0,"0"]
[{"$f":"IF(B407=\"\",\"\",SUBTOTAL(3,B$7:B407))","v":400},"الكهرباء – الإلكترونيك والطاقة","ELE0708P2","الإلكتروتقني",null,4,null,null,null,null,null,null,0,null,null,0,null,null,0,null,null,0,null,null,0,0,0,0,null,null,0,null,null,0,null,null,0,0,0,0,null,null,0,null,null,0,null,null,0,null,null,0,"0"]
[{"$f":"IF(B408=\"\",\"\",SUBTOTAL(3,B$7:B408))","v":401},"الكهرباء – الإلكترونيك والطاقة","ELE0709P","الالكترونيك الصناعية",null,4,null,null,null,null,null,null,0,null,null,0,null,null,0,null,null,0,null,null,0,0,0,0,null,null,0,null,null,0,null,null,0,0,0,0,null,null,0,null,null,0,null,null,0,null,null,0,"0"]
[{"$f":"IF(B409=\"\",\"\",SUBTOTAL(3,B$7:B409))","v":402},"الكهرباء – الإلكترونيك والطاقة","ELE0711P","صيانة المصاعد",null,4,null,null,null,null,null,null,0,null,null,0,null,null,0,null,null,0,null,null,0,0,0,0,null,null,0,null,null,0,null,null,0,0,0,0,null,null,0,null,null,0,null,null,0,null,null,0,"0"]
[{"$f":"IF(B410=\"\",\"\",SUBTOTAL(3,B$7:B410))","v":403},"الكهرباء – الإلكترونيك والطاقة","ELE1204P","التبريد الصناعي و التكييف",null,4,null,null,null,null,null,null,0,null,null,0,null,null,0,null,null,0,null,null,0,0,0,0,null,null,0,null,null,0,null,null,0,0,0,0,null,null,0,null,null,0,null,null,0,null,null,0,"0"]
[{"$f":"IF(B411=\"\",\"\",SUBTOTAL(3,B$7:B411))","v":404},"الكهرباء – الإلكترونيك والطاقة","ELE1205P","إلكهروميكانـيك",null,4,null,null,null,null,null,null,0,null,null,0,null,null,0,null,null,0,null,null,0,0,0,0,null,null,0,null,null,0,null,null,0,0,0,0,null,null,0,null,null,0,null,null,0,null,null,0,"0"]
[{"$f":"IF(B412=\"\",\"\",SUBTOTAL(3,B$7:B412))","v":405},"الكهرباء – الإلكترونيك والطاقة","ELE1207P","تركيب و صيانة الألواح الشمسية، الضوئية ",null,4,null,null,null,null,null,null,0,null,null,0,null,null,0,null,null,0,null,null,0,0,0,0,null,null,0,null,null,0,null,null,0,0,0,0,null,null,0,null,null,0,null,null,0,null,null,0,"0"]
[{"$f":"IF(B413=\"\",\"\",SUBTOTAL(3,B$7:B413))","v":406},"الكهرباء – الإلكترونيك والطاقة","ELE1208P","تركيب و صيانة الألواح الشمسية، الحرارية",null,4,null,null,null,null,null,null,0,null,null,0,null,null,0,null,null,0,null,null,0,0,0,0,null,null,0,null,null,0,null,null,0,0,0,0,null,null,0,null,null,0,null,null,0,null,null,0,"0"]
[{"$f":"IF(B414=\"\",\"\",SUBTOTAL(3,B$7:B414))","v":407},"الكهرباء – الإلكترونيك والطاقة","ELE1210P","تركيب و تصليح الأجهزة  الكهرو منزلية ",null,4,null,null,null,null,null,null,0,null,null,0,null,null,0,null,null,0,null,null,0,0,0,0,null,null,0,null,null,0,null,null,0,0,0,0,null,null,0,null,null,0,null,null,0,null,null,0,"0"]
[{"$f":"IF(B415=\"\",\"\",SUBTOTAL(3,B$7:B415))","v":408},"الفندقة -الإطعام والسياحة","HRT1803P","الفندقة و الإطعام / خيار : إنتاج الطبخ",null,4,null,null,null,null,null,null,0,null,null,0,null,null,0,null,null,0,null,null,0,0,0,0,null,null,0,null,null,0,null,null,0,0,0,0,null,null,0,null,null,0,null,null,0,null,null,0,"0"]
[{"$f":"IF(B416=\"\",\"\",SUBTOTAL(3,B$7:B416))","v":409},"الفندقة -الإطعام والسياحة","HRT1804P","الفندقة و الإطعام / خيار : خدمة المطاعم ",null,4,null,null,null,null,null,null,0,null,null,0,null,null,0,null,null,0,null,null,0,0,0,0,null,null,0,null,null,0,null,null,0,0,0,0,null,null,0,null,null,0,null,null,0,null,null,0,"0"]
[{"$f":"IF(B417=\"\",\"\",SUBTOTAL(3,B$7:B417))","v":410},"الفندقة -الإطعام والسياحة","HRT0709P","الفندقة / خيار : لاستقبال",null,4,null,null,null,null,null,null,0,null,null,0,null,null,0,null,null,0,null,null,0,0,0,0,null,null,0,null,null,0,null,null,0,0,0,0,null,null,0,null,null,0,null,null,0,null,null,0,"0"]
[{"$f":"IF(B418=\"\",\"\",SUBTOTAL(3,B$7:B418))","v":411},"الفندقة -الإطعام والسياحة","HRT1202P","الفندقة / خيار : الايواء",null,4,null,null,null,null,null,null,0,null,null,0,null,null,0,null,null,0,null,null,0,0,0,0,null,null,0,null,null,0,null,null,0,0,0,0,null,null,0,null,null,0,null,null,0,null,null,0,"0"]
[{"$f":"IF(B419=\"\",\"\",SUBTOTAL(3,B$7:B419))","v":412},"صناعة الأغذية الز ا رعية","IAA0708P","إنتاج و تصفية الزيوت الغذائية",null,4,null,null,null,null,null,null,0,null,null,0,null,null,0,null,null,0,null,null,0,0,0,0,null,null,0,null,null,0,null,null,0,0,0,0,null,null,0,null,null,0,null,null,0,null,null,0,"0"]
[{"$f":"IF(B420=\"\",\"\",SUBTOTAL(3,B$7:B420))","v":413},"صناعة الأغذية الز ا رعية","IAA1201P","تكنولوجيا الحلويات، الشكولاطة و البسكويت",null,4,null,null,null,null,null,null,0,null,null,0,null,null,0,null,null,0,null,null,0,0,0,0,null,null,0,null,null,0,null,null,0,0,0,0,null,null,0,null,null,0,null,null,0,null,null,0,"0"]
[{"$f":"IF(B421=\"\",\"\",SUBTOTAL(3,B$7:B421))","v":414},"صناعة الأغذية الز ا رعية","IAA1801P","التعبئة والتغليف المنتجات الزراعية الغذائية",null,4,null,null,null,null,null,null,0,null,null,0,null,null,0,null,null,0,null,null,0,0,0,0,null,null,0,null,null,0,null,null,0,0,0,0,null,null,0,null,null,0,null,null,0,null,null,0,"0"]
[{"$f":"IF(B422=\"\",\"\",SUBTOTAL(3,B$7:B422))","v":415},"صناعة الأغذية الز ا رعية","IAA1802P","تكنولوجيا تحويل التمور ",null,4,null,null,null,null,null,null,0,null,null,0,null,null,0,null,null,0,null,null,0,0,0,0,null,null,0,null,null,0,null,null,0,0,0,0,null,null,0,null,null,0,null,null,0,null,null,0,"0"]
[{"$f":"IF(B423=\"\",\"\",SUBTOTAL(3,B$7:B423))","v":416},"صناعة الأغذية الز ا رعية","IAA1803P","معالجة و تحويل اللحوم",null,4,null,null,null,null,null,null,0,null,null,0,null,null,0,null,null,0,null,null,0,0,0,0,null,null,0,null,null,0,null,null,0,0,0,0,null,null,0,null,null,0,null,null,0,null,null,0,"0"]
[{"$f":"IF(B424=\"\",\"\",SUBTOTAL(3,B$7:B424))","v":417},"المعلوماتية-الرقمنة و الإتصالات","INT0701P","مُستغل المعلوماتية",null,4,null,null,null,null,null,null,0,null,null,0,null,null,0,null,null,0,null,null,0,0,0,0,null,null,0,null,null,0,null,null,0,0,0,0,null,null,0,null,null,0,null,null,0,null,null,0,"0"]
[{"$f":"IF(B425=\"\",\"\",SUBTOTAL(3,B$7:B425))","v":418},"المعلوماتية-الرقمنة و الإتصالات","INT1204P","المعلوماتية / خيار : البرمـــجة",null,4,null,null,null,null,null,null,0,null,null,0,null,null,0,null,null,0,null,null,0,0,0,0,null,null,0,null,null,0,null,null,0,0,0,0,null,null,0,null,null,0,null,null,0,null,null,0,"0"]
[{"$f":"IF(B426=\"\",\"\",SUBTOTAL(3,B$7:B426))","v":419},"المعلوماتية-الرقمنة و الإتصالات","INT1205P","معلوماتية / خيار : التسييـر",null,4,null,null,null,null,null,null,0,null,null,0,null,null,0,null,null,0,null,null,0,0,0,0,null,null,0,null,null,0,null,null,0,0,0,0,null,null,0,null,null,0,null,null,0,null,null,0,"0"]
[{"$f":"IF(B427=\"\",\"\",SUBTOTAL(3,B$7:B427))","v":420},"المعلوماتية-الرقمنة و الإتصالات","INT1206P","تركيب  شبكات الاتصالات السلكية و اللاسلكية",null,4,null,null,null,null,null,null,0,null,null,0,null,null,0,null,null,0,null,null,0,0,0,0,null,null,0,null,null,0,null,null,0,0,0,0,null,null,0,null,null,0,null,null,0,null,null,0,"0"]
[{"$f":"IF(B428=\"\",\"\",SUBTOTAL(3,B$7:B428))","v":421},"مهن البيئة والمياه","MEE0704P","التزويد بالماء الشروب",null,4,null,null,null,null,null,null,0,null,null,0,null,null,0,null,null,0,null,null,0,0,0,0,null,null,0,null,null,0,null,null,0,0,0,0,null,null,0,null,null,0,null,null,0,null,null,0,"0"]
[{"$f":"IF(B429=\"\",\"\",SUBTOTAL(3,B$7:B429))","v":""},null,"MES0707P","التجميل",null,4,null,null,null,null,null,null,0,null,null,0,null,null,0,null,null,0,null,null,0,0,0,0,null,null,0,null,null,0,null,null,0,0,0,0,null,null,0,null,null,0,null,null,0,null,null,0,"0"]
[{"$f":"IF(B430=\"\",\"\",SUBTOTAL(3,B$7:B430))","v":422},"ميكانيك المحركات والآليات","MME0713P","صيانة مركبات الوزن الخفيف",null,4,null,null,null,null,null,null,0,null,null,0,null,null,0,null,null,0,null,null,0,0,0,0,null,null,0,null,null,0,null,null,0,0,0,0,null,null,0,null,null,0,null,null,0,null,null,0,"0"]
[{"$f":"IF(B431=\"\",\"\",SUBTOTAL(3,B$7:B431))","v":423},"ميكانيك المحركات والآليات","MME0714P","صيانة آليات الورشات",null,4,null,null,null,null,null,null,0,null,null,0,null,null,0,null,null,0,null,null,0,0,0,0,null,null,0,null,null,0,null,null,0,0,0,0,null,null,0,null,null,0,null,null,0,null,null,0,"0"]
[{"$f":"IF(B432=\"\",\"\",SUBTOTAL(3,B$7:B432))","v":424},"ميكانيك المحركات والآليات","MME0715P","صيانة أليات الفلاحة",null,4,null,null,null,null,null,null,0,null,null,0,null,null,0,null,null,0,null,null,0,0,0,0,null,null,0,null,null,0,null,null,0,0,0,0,null,null,0,null,null,0,null,null,0,null,null,0,"0"]
[{"$f":"IF(B433=\"\",\"\",SUBTOTAL(3,B$7:B433))","v":425},"ميكانيك المحركات والآليات","MME0720P","صيانة قوارب الصيد و المتعة",null,4,null,null,null,null,null,null,0,null,null,0,null,null,0,null,null,0,null,null,0,0,0,0,null,null,0,null,null,0,null,null,0,0,0,0,null,null,0,null,null,0,null,null,0,null,null,0,"0"]
[{"$f":"IF(B434=\"\",\"\",SUBTOTAL(3,B$7:B434))","v":426},"تقنيات الادارة والتسيير","TAG0706P","تجاري",null,4,null,null,null,null,null,null,0,null,null,0,null,null,0,null,null,0,null,null,0,0,0,0,null,null,0,null,null,0,null,null,0,0,0,0,null,null,0,null,null,0,null,null,0,null,null,0,"0"]
[{"$f":"IF(B435=\"\",\"\",SUBTOTAL(3,B$7:B435))","v":427},"تقنيات الادارة والتسيير","TAG0708P","أمين مكتب",null,4,null,null,null,null,null,null,0,null,null,0,null,null,0,null,null,0,null,null,0,0,0,0,null,null,0,null,null,0,null,null,0,0,0,0,null,null,0,null,null,0,null,null,0,null,null,0,"0"]
[{"$f":"IF(B436=\"\",\"\",SUBTOTAL(3,B$7:B436))","v":428},"تقنيات الادارة والتسيير","TAG0709P","المحاسبة",null,4,null,null,null,null,null,null,0,null,null,0,null,null,0,null,null,0,null,null,0,0,0,0,null,null,0,null,null,0,null,null,0,0,0,0,null,null,0,null,null,0,null,null,0,null,null,0,"0"]
[{"$f":"IF(B437=\"\",\"\",SUBTOTAL(3,B$7:B437))","v":429},"تقنيات الادارة والتسيير","TAG1205P","الشراء و التموين",null,4,null,null,null,null,null,null,0,null,null,0,null,null,0,null,null,0,null,null,0,0,0,0,null,null,0,null,null,0,null,null,0,0,0,0,null,null,0,null,null,0,null,null,0,null,null,0,"0"]
[{"$f":"IF(B438=\"\",\"\",SUBTOTAL(3,B$7:B438))","v":430},"تقنيات الادارة والتسيير","TAG1206P","تسيير المخزونات",null,4,null,null,null,null,null,null,0,null,null,0,null,null,0,null,null,0,null,null,0,0,0,0,null,null,0,null,null,0,null,null,0,0,0,0,null,null,0,null,null,0,null,null,0,null,null,0,"0"]
[{"$f":"IF(B439=\"\",\"\",SUBTOTAL(3,B$7:B439))","v":431},"تقنيات الادارة والتسيير","TAG0718P","تقنيات المحاسبة",null,4,null,null,null,null,null,null,0,null,null,0,null,null,0,null,null,0,null,null,0,0,0,0,null,null,0,null,null,0,null,null,0,0,0,0,null,null,0,null,null,0,null,null,0,null,null,0,"0"]
[{"$f":"IF(B440=\"\",\"\",SUBTOTAL(3,B$7:B440))","v":432},"تقنيات الادارة والتسيير","TAG0719P","البنــوك",null,4,null,null,null,null,null,null,0,null,null,0,null,null,0,null,null,0,null,null,0,0,0,0,null,null,0,null,null,0,null,null,0,0,0,0,null,null,0,null,null,0,null,null,0,null,null,0,"0"]
[{"$f":"IF(B441=\"\",\"\",SUBTOTAL(3,B$7:B441))","v":433},"تقنيات الادارة والتسيير","TAG0720P","التأمينــات",null,4,null,null,null,null,null,null,0,null,null,0,null,null,0,null,null,0,null,null,0,0,0,0,null,null,0,null,null,0,null,null,0,0,0,0,null,null,0,null,null,0,null,null,0,null,null,0,"0"]
[{"$f":"IF(B442=\"\",\"\",SUBTOTAL(3,B$7:B442))","v":434},"تقنيات السمعي البصري","TAV1801P","السمعي البصري / خيار: إلتقاط الصورة",null,4,null,null,null,null,null,null,0,null,null,0,null,null,0,null,null,0,null,null,0,0,0,0,null,null,0,null,null,0,null,null,0,0,0,0,null,null,0,null,null,0,null,null,0,null,null,0,"0"]
[{"$f":"IF(B443=\"\",\"\",SUBTOTAL(3,B$7:B443))","v":435},"النسيج والألبسة","THC1217P","خياط ألبسة السيدات",null,4,null,null,null,null,null,null,0,null,null,0,null,null,0,null,null,0,null,null,0,0,0,0,null,null,0,null,null,0,null,null,0,0,0,0,null,null,0,null,null,0,null,null,0,null,null,0,"0"]
[{"$f":"IF(B444=\"\",\"\",SUBTOTAL(3,B$7:B444))","v":436},"النسيج والألبسة","THC1218P","خياط ألبسة الرجال",null,4,null,null,null,null,null,null,0,null,null,0,null,null,0,null,null,0,null,null,0,0,0,0,null,null,0,null,null,0,null,null,0,0,0,0,null,null,0,null,null,0,null,null,0,null,null,0,"0"]
[{"$f":"IF(B445=\"\",\"\",SUBTOTAL(3,B$7:B445))","v":437},"النسيج والألبسة","THC1801P","نمط التدرج في صناعة الملابس ",null,4,null,null,null,null,null,null,0,null,null,0,null,null,0,null,null,0,null,null,0,0,0,0,null,null,0,null,null,0,null,null,0,0,0,0,null,null,0,null,null,0,null,null,0,null,null,0,"0"]
[{"$f":"IF(B446=\"\",\"\",SUBTOTAL(3,B$7:B446))","v":438},"فن - ثقافة والتراث","ACP0701","ترميم المواقع الأثرية و المعالم التذكارية",null,5,null,null,null,null,null,null,0,null,null,0,null,null,0,null,null,0,null,null,0,0,0,0,null,null,0,null,null,0,null,null,0,0,0,0,null,null,0,null,null,0,null,null,0,null,null,0,"0"]
[{"$f":"IF(B447=\"\",\"\",SUBTOTAL(3,B$7:B447))","v":439},"فن - ثقافة والتراث","ACP1806","حفظ التراث",null,5,null,null,null,null,null,null,0,null,null,0,null,null,0,null,null,0,null,null,0,0,0,0,null,null,0,null,null,0,null,null,0,0,0,0,null,null,0,null,null,0,null,null,0,null,null,0,"0"]
[{"$f":"IF(B448=\"\",\"\",SUBTOTAL(3,B$7:B448))","v":440},"فن - ثقافة والتراث","ACP1807","تسيير أشغال الترميم التراث",null,5,null,null,null,null,null,null,0,null,null,0,null,null,0,null,null,0,null,null,0,0,0,0,null,null,0,null,null,0,null,null,0,0,0,0,null,null,0,null,null,0,null,null,0,null,null,0,"0"]
[{"$f":"IF(B449=\"\",\"\",SUBTOTAL(3,B$7:B449))","v":441},"الفلاحة ","AGR0709","زراعة الخضــروات",null,5,null,null,null,null,null,null,0,null,null,0,null,null,0,null,null,0,null,null,0,0,0,0,null,null,0,null,null,0,null,null,0,0,0,0,null,null,0,null,null,0,null,null,0,null,null,0,"0"]
[{"$f":"IF(B450=\"\",\"\",SUBTOTAL(3,B$7:B450))","v":442},"الفلاحة ","AGR0710","زراعـة الأشجـار المُـثمـرة",null,5,null,null,null,null,null,null,0,null,null,0,null,null,0,null,null,0,null,null,0,0,0,0,null,null,0,null,null,0,null,null,0,0,0,0,null,null,0,null,null,0,null,null,0,null,null,0,"0"]
[{"$f":"IF(B451=\"\",\"\",SUBTOTAL(3,B$7:B451))","v":443},"الفلاحة ","AGR0711","مُـصـمّـم البسـاتين",null,5,null,null,null,null,null,null,0,null,null,0,null,null,0,null,null,0,null,null,0,0,0,0,null,null,0,null,null,0,null,null,0,0,0,0,null,null,0,null,null,0,null,null,0,null,null,0,"0"]
[{"$f":"IF(B452=\"\",\"\",SUBTOTAL(3,B$7:B452))","v":444},"الفلاحة ","AGR0712","الزراعات الكبـرى",null,5,null,null,null,null,null,null,0,null,null,0,null,null,0,null,null,0,null,null,0,0,0,0,null,null,0,null,null,0,null,null,0,0,0,0,null,null,0,null,null,0,null,null,0,null,null,0,"0"]
[{"$f":"IF(B453=\"\",\"\",SUBTOTAL(3,B$7:B453))","v":445},"الفلاحة ","AGR0716","الإنتاج الحيواني / خيار: تربية  الحـيـوانات المجتـرة",null,5,null,null,null,null,null,null,0,null,null,0,null,null,0,null,null,0,null,null,0,0,0,0,null,null,0,null,null,0,null,null,0,0,0,0,null,null,0,null,null,0,null,null,0,null,null,0,"0"]
[{"$f":"IF(B454=\"\",\"\",SUBTOTAL(3,B$7:B454))","v":446},"الفلاحة ","AGR0717","الإنتاج الحيواني / خيار: تربية الحـيـوانات الصغيرة",null,5,null,null,null,null,null,null,0,null,null,0,null,null,0,null,null,0,null,null,0,0,0,0,null,null,0,null,null,0,null,null,0,0,0,0,null,null,0,null,null,0,null,null,0,null,null,0,"0"]
[{"$f":"IF(B455=\"\",\"\",SUBTOTAL(3,B$7:B455))","v":447},"الفلاحة ","AGR0718","مساعد في الصحــة الحيـوانيــة",null,5,null,null,null,null,null,null,0,null,null,0,null,null,0,null,null,0,null,null,0,0,0,0,null,null,0,null,null,0,null,null,0,0,0,0,null,null,0,null,null,0,null,null,0,null,null,0,"0"]
[{"$f":"IF(B456=\"\",\"\",SUBTOTAL(3,B$7:B456))","v":448},"الفلاحة ","AGR1210","حمـايـة النبـاتات",null,5,null,null,null,null,null,null,{"$f":"J456+I456+H456+G456","v":0},null,null,{"$f":"O456+N456","v":0},null,null,{"$f":"R456+Q456","v":0},null,null,{"$f":"U456+T456","v":0},null,null,{"$f":"X456+W456","v":0},{"$f":"(N456+Q456)-(W456+T456)","v":0},{"$f":"(O456+R456)-(X456+U456)","v":0},{"$f":"(P456+S456)-(Y456+V456)","v":0},null,null,{"$f":"AD456+AC456","v":0},null,null,{"$f":"AG456+AF456","v":0},null,null,{"$f":"AJ456+AI456","v":0},{"$f":"(AC456)-(AF456)-(AI456)","v":0},{"$f":"(AD456)-(AG456)-(AJ456)","v":0},{"$f":"AM456+AL456","v":0},null,null,{"$f":"AP456+AO456","v":0},null,null,{"$f":"AS456+AR456","v":0},null,null,{"$f":"AV456+AU456","v":0},null,null,{"$f":"AY456+AX456","v":0},{"$f":"IFERROR((AK456)/AE456,\"0\")","v":"0"}]
[{"$f":"IF(B457=\"\",\"\",SUBTOTAL(3,B$7:B457))","v":449},"الفلاحة ","AGR1211","زراعة الكـروم",null,5,null,null,null,null,null,null,0,null,null,0,null,null,0,null,null,0,null,null,0,0,0,0,null,null,0,null,null,0,null,null,0,0,0,0,null,null,0,null,null,0,null,null,0,null,null,0,"0"]
[{"$f":"IF(B458=\"\",\"\",SUBTOTAL(3,B$7:B458))","v":450},"الفلاحة ","AGR1212","زراعة الغابات",null,5,null,null,null,null,null,null,0,null,null,0,null,null,0,null,null,0,null,null,0,0,0,0,null,null,0,null,null,0,null,null,0,0,0,0,null,null,0,null,null,0,null,null,0,null,null,0,"0"]
[{"$f":"IF(B459=\"\",\"\",SUBTOTAL(3,B$7:B459))","v":451},"الفلاحة ","AGR1213","زراعة النباتات الطبية ،العطرية و الأعشاب",null,5,null,null,null,null,null,null,0,null,null,0,null,null,0,null,null,0,null,null,0,0,0,0,null,null,0,null,null,0,null,null,0,0,0,0,null,null,0,null,null,0,null,null,0,null,null,0,"0"]
[{"$f":"IF(B460=\"\",\"\",SUBTOTAL(3,B$7:B460))","v":452},"الفلاحة ","AGR1903","زراعة النخيل",null,5,null,null,null,null,null,null,0,null,null,0,null,null,0,null,null,0,null,null,0,0,0,0,null,null,0,null,null,0,null,null,0,0,0,0,null,null,0,null,null,0,null,null,0,null,null,0,"0"]
[{"$f":"IF(B461=\"\",\"\",SUBTOTAL(3,B$7:B461))","v":453},"الفنون والصناعة المطبعية","AIG0707","النشر",null,5,null,null,null,null,null,null,0,null,null,0,null,null,0,null,null,0,null,null,0,0,0,0,null,null,0,null,null,0,null,null,0,0,0,0,null,null,0,null,null,0,null,null,0,null,null,0,"0"]
[{"$f":"IF(B462=\"\",\"\",SUBTOTAL(3,B$7:B462))","v":454},"الفنون والصناعة المطبعية","AIG1203","مخطط معلوماتي و مصمم",null,5,null,null,null,null,null,null,0,null,null,0,null,null,0,null,null,0,null,null,0,0,0,0,null,null,0,null,null,0,null,null,0,0,0,0,null,null,0,null,null,0,null,null,0,null,null,0,"0"]
[{"$f":"IF(B463=\"\",\"\",SUBTOTAL(3,B$7:B463))","v":455},"الفنون والصناعة المطبعية","AIG1204","الاتصال و الصناعات المطبعية  خيار : دراسة و انجاز المنتجات التخطيطية",null,5,null,null,null,null,null,null,0,null,null,0,null,null,0,null,null,0,null,null,0,0,0,0,null,null,0,null,null,0,null,null,0,0,0,0,null,null,0,null,null,0,null,null,0,null,null,0,"0"]
[{"$f":"IF(B464=\"\",\"\",SUBTOTAL(3,B$7:B464))","v":456},"الفنون والصناعة المطبعية","AIG1205","الاتصال و الصناعات المطبعية خيار: دراسة و انجاز المنتجات المطبعية",null,5,null,null,null,null,null,null,0,null,null,0,null,null,0,null,null,0,null,null,0,0,0,0,null,null,0,null,null,0,null,null,0,0,0,0,null,null,0,null,null,0,null,null,0,null,null,0,"0"]
[{"$f":"IF(B465=\"\",\"\",SUBTOTAL(3,B$7:B465))","v":457},"الفنون والصناعة المطبعية","AIG1206","الاتصال المطبعي / خيار:  ابتكار لوازم التغليــف",null,5,null,null,null,null,null,null,0,null,null,0,null,null,0,null,null,0,null,null,0,0,0,0,null,null,0,null,null,0,null,null,0,0,0,0,null,null,0,null,null,0,null,null,0,null,null,0,"0"]
[{"$f":"IF(B466=\"\",\"\",SUBTOTAL(3,B$7:B466))","v":458},"الحرف التقليدية","ART1209","صياغة و صناعة الحلي",null,5,null,null,null,null,null,null,0,null,null,0,null,null,0,null,null,0,null,null,0,0,0,0,null,null,0,null,null,0,null,null,0,0,0,0,null,null,0,null,null,0,null,null,0,null,null,0,"0"]
[{"$f":"IF(B467=\"\",\"\",SUBTOTAL(3,B$7:B467))","v":459},"الخشب والتأثيث","BAM0706","الصناعات الخشبية",null,5,null,null,null,null,null,null,0,null,null,0,null,null,0,null,null,0,null,null,0,0,0,0,null,null,0,null,null,0,null,null,0,0,0,0,null,null,0,null,null,0,null,null,0,null,null,0,"0"]
[{"$f":"IF(B468=\"\",\"\",SUBTOTAL(3,B$7:B468))","v":460},"البناء والأشغال العمومية","BTP0717","الأشغال العمومية و المنشآت الفنية",null,5,null,null,null,null,null,null,0,null,null,0,null,null,0,null,null,0,null,null,0,0,0,0,null,null,0,null,null,0,null,null,0,0,0,0,null,null,0,null,null,0,null,null,0,null,null,0,"0"]
[{"$f":"IF(B469=\"\",\"\",SUBTOTAL(3,B$7:B469))","v":461},"البناء والأشغال العمومية","BTP0718","الأشغال الجيوتقنية",null,5,null,null,null,null,null,null,0,null,null,0,null,null,0,null,null,0,null,null,0,0,0,0,null,null,0,null,null,0,null,null,0,0,0,0,null,null,0,null,null,0,null,null,0,null,null,0,"0"]
[{"$f":"IF(B470=\"\",\"\",SUBTOTAL(3,B$7:B470))","v":462},"البناء والأشغال العمومية","BTP0719","مسـّاح طوبوغرافي",null,5,null,null,null,null,null,null,0,null,null,0,null,null,0,null,null,0,null,null,0,0,0,0,null,null,0,null,null,0,null,null,0,0,0,0,null,null,0,null,null,0,null,null,0,null,null,0,"0"]
[{"$f":"IF(B471=\"\",\"\",SUBTOTAL(3,B$7:B471))","v":463},"البناء والأشغال العمومية","BTP0720","مُسيّر أشغال البناء",null,5,null,null,null,null,null,null,0,null,null,0,null,null,0,null,null,0,null,null,0,0,0,0,null,null,0,null,null,0,null,null,0,0,0,0,null,null,0,null,null,0,null,null,0,null,null,0,"0"]
[{"$f":"IF(B472=\"\",\"\",SUBTOTAL(3,B$7:B472))","v":464},"البناء والأشغال العمومية","BTP0721","الطرق و الشبكات المختلفة",null,5,null,null,null,null,null,null,0,null,null,0,null,null,0,null,null,0,null,null,0,0,0,0,null,null,0,null,null,0,null,null,0,0,0,0,null,null,0,null,null,0,null,null,0,null,null,0,"0"]
[{"$f":"IF(B473=\"\",\"\",SUBTOTAL(3,B$7:B473))","v":465},"البناء والأشغال العمومية","BTP0722","مُسيّر الأشغال العمومية",null,5,null,null,null,null,null,null,0,null,null,0,null,null,0,null,null,0,null,null,0,0,0,0,null,null,0,null,null,0,null,null,0,0,0,0,null,null,0,null,null,0,null,null,0,null,null,0,"0"]
[{"$f":"IF(B474=\"\",\"\",SUBTOTAL(3,B$7:B474))","v":466},"البناء والأشغال العمومية","BTP0723","متار مُحقق  و دراسة الأسعار",null,5,null,null,null,null,null,null,0,null,null,0,null,null,0,null,null,0,null,null,0,0,0,0,null,null,0,null,null,0,null,null,0,0,0,0,null,null,0,null,null,0,null,null,0,null,null,0,"0"]
[{"$f":"IF(B475=\"\",\"\",SUBTOTAL(3,B$7:B475))","v":467},"البناء والأشغال العمومية","BTP0724","رسّام مسقط في الهندسة المعمارية",null,5,null,null,null,null,null,null,0,null,null,0,null,null,0,null,null,0,null,null,0,0,0,0,null,null,0,null,null,0,null,null,0,0,0,0,null,null,0,null,null,0,null,null,0,null,null,0,"0"]
[{"$f":"IF(B476=\"\",\"\",SUBTOTAL(3,B$7:B476))","v":468},"البناء والأشغال العمومية","BTP0725","رسّام مُسقط في الخرسانة المسلحة",null,5,null,null,null,null,null,null,0,null,null,0,null,null,0,null,null,0,null,null,0,0,0,0,null,null,0,null,null,0,null,null,0,0,0,0,null,null,0,null,null,0,null,null,0,null,null,0,"0"]
[{"$f":"IF(B477=\"\",\"\",SUBTOTAL(3,B$7:B477))","v":469},"البناء والأشغال العمومية","BTP0726","التعمير",null,5,null,null,null,null,null,null,0,null,null,0,null,null,0,null,null,0,null,null,0,0,0,0,null,null,0,null,null,0,null,null,0,0,0,0,null,null,0,null,null,0,null,null,0,null,null,0,"0"]
[{"$f":"IF(B478=\"\",\"\",SUBTOTAL(3,B$7:B478))","v":470},"البناء والأشغال العمومية","BTP0727","التركيب الصحي، التدفئة والتكييف",null,5,null,null,null,null,null,null,0,null,null,0,null,null,0,null,null,0,null,null,0,0,0,0,null,null,0,null,null,0,null,null,0,0,0,0,null,null,0,null,null,0,null,null,0,null,null,0,"0"]
[{"$f":"IF(B479=\"\",\"\",SUBTOTAL(3,B$7:B479))","v":471},"البناء والأشغال العمومية","BTP0728","مُصـمّم المجـسّـمات في البناء و الأشغال العُمومية",null,5,null,null,null,null,null,null,0,null,null,0,null,null,0,null,null,0,null,null,0,0,0,0,null,null,0,null,null,0,null,null,0,0,0,0,null,null,0,null,null,0,null,null,0,null,null,0,"0"]
[{"$f":"IF(B480=\"\",\"\",SUBTOTAL(3,B$7:B480))","v":472},"البناء والأشغال العمومية","BTP0729","الهندسة المعمارية الداخلية",null,5,null,null,null,null,null,null,0,null,null,0,null,null,0,null,null,0,null,null,0,0,0,0,null,null,0,null,null,0,null,null,0,0,0,0,null,null,0,null,null,0,null,null,0,null,null,0,"0"]
[{"$f":"IF(B481=\"\",\"\",SUBTOTAL(3,B$7:B481))","v":473},"البناء والأشغال العمومية","BTP0730","إعادة تأهيل و تجديد البنايات",null,5,null,null,null,null,null,null,0,null,null,0,null,null,0,null,null,0,null,null,0,0,0,0,null,null,0,null,null,0,null,null,0,0,0,0,null,null,0,null,null,0,null,null,0,null,null,0,"0"]
[{"$f":"IF(B482=\"\",\"\",SUBTOTAL(3,B$7:B482))","v":474},"البناء والأشغال العمومية","BTP1210","طرق وتنظيم ورشة البناء",null,5,null,null,null,null,null,null,0,null,null,0,null,null,0,null,null,0,null,null,0,0,0,0,null,null,0,null,null,0,null,null,0,0,0,0,null,null,0,null,null,0,null,null,0,null,null,0,"0"]
[{"$f":"IF(B483=\"\",\"\",SUBTOTAL(3,B$7:B483))","v":475},"البناء والأشغال العمومية","BTP1211","دراسة و اقتصاد البنـاء",null,5,null,null,null,null,null,null,0,null,null,0,null,null,0,null,null,0,null,null,0,0,0,0,null,null,0,null,null,0,null,null,0,0,0,0,null,null,0,null,null,0,null,null,0,null,null,0,"0"]
[{"$f":"IF(B484=\"\",\"\",SUBTOTAL(3,B$7:B484))","v":476},"البناء والأشغال العمومية","BTP1212","تصميم الخرائط",null,5,null,null,null,null,null,null,0,null,null,0,null,null,0,null,null,0,null,null,0,0,0,0,null,null,0,null,null,0,null,null,0,0,0,0,null,null,0,null,null,0,null,null,0,null,null,0,"0"]
[{"$f":"IF(B485=\"\",\"\",SUBTOTAL(3,B$7:B485))","v":477},"البناء والأشغال العمومية","BTP1805","الطاقة الأمثل للبنايات",null,5,null,null,null,null,null,null,0,null,null,0,null,null,0,null,null,0,null,null,0,0,0,0,null,null,0,null,null,0,null,null,0,0,0,0,null,null,0,null,null,0,null,null,0,null,null,0,"0"]
[{"$f":"IF(B486=\"\",\"\",SUBTOTAL(3,B$7:B486))","v":478},"البناء والأشغال العمومية","BTP1903","الطاقات المتجددة في مجال البناء",null,5,null,null,null,null,null,null,0,null,null,0,null,null,0,null,null,0,null,null,0,0,0,0,null,null,0,null,null,0,null,null,0,0,0,0,null,null,0,null,null,0,null,null,0,null,null,0,"0"]
[{"$f":"IF(B487=\"\",\"\",SUBTOTAL(3,B$7:B487))","v":479},"البناء والأشغال العمومية","BTP1904","تركيب وصيانة شبكات الموائع الطبية",null,5,null,null,null,null,null,null,0,null,null,0,null,null,0,null,null,0,null,null,0,0,0,0,null,null,0,null,null,0,null,null,0,0,0,0,null,null,0,null,null,0,null,null,0,null,null,0,"0"]
[{"$f":"IF(B488=\"\",\"\",SUBTOTAL(3,B$7:B488))","v":480},"الكيمياء الصناعية والبلاستيك","CIP0709","مراقبة نوعية المواد البلاستيكية",null,5,null,null,null,null,null,null,0,null,null,0,null,null,0,null,null,0,null,null,0,0,0,0,null,null,0,null,null,0,null,null,0,0,0,0,null,null,0,null,null,0,null,null,0,null,null,0,"0"]
[{"$f":"IF(B489=\"\",\"\",SUBTOTAL(3,B$7:B489))","v":481},"الكيمياء الصناعية والبلاستيك","CIP0710","مراقبة نوعية المواد المطهرة و مواد التجميل",null,5,null,null,null,null,null,null,0,null,null,0,null,null,0,null,null,0,null,null,0,0,0,0,null,null,0,null,null,0,null,null,0,0,0,0,null,null,0,null,null,0,null,null,0,null,null,0,"0"]
[{"$f":"IF(B490=\"\",\"\",SUBTOTAL(3,B$7:B490))","v":482},"الكيمياء الصناعية والبلاستيك","CIP0711","مراقبة نوعية المصنوعات الزجاجية",null,5,null,null,null,null,null,null,0,null,null,0,null,null,0,null,null,0,null,null,0,0,0,0,null,null,0,null,null,0,null,null,0,0,0,0,null,null,0,null,null,0,null,null,0,null,null,0,"0"]
[{"$f":"IF(B491=\"\",\"\",SUBTOTAL(3,B$7:B491))","v":483},"الكيمياء الصناعية والبلاستيك","CIP0712","مراقبة نوعية المطاط الاصطناعي",null,5,null,null,null,null,null,null,0,null,null,0,null,null,0,null,null,0,null,null,0,0,0,0,null,null,0,null,null,0,null,null,0,0,0,0,null,null,0,null,null,0,null,null,0,null,null,0,"0"]
[{"$f":"IF(B492=\"\",\"\",SUBTOTAL(3,B$7:B492))","v":484},"الكيمياء الصناعية والبلاستيك","CIP1201","الكيمياء الصناعية",null,5,null,null,null,null,null,null,0,null,null,0,null,null,0,null,null,0,null,null,0,0,0,0,null,null,0,null,null,0,null,null,0,0,0,0,null,null,0,null,null,0,null,null,0,null,null,0,"0"]
[{"$f":"IF(B493=\"\",\"\",SUBTOTAL(3,B$7:B493))","v":485},"الكيمياء الصناعية والبلاستيك","CIP1202","نظافة، أمـن و البيئة",null,5,null,null,null,null,null,null,0,null,null,0,null,null,0,null,null,0,null,null,0,0,0,0,null,null,0,null,null,0,null,null,0,0,0,0,null,null,0,null,null,0,null,null,0,null,null,0,"0"]
[{"$f":"IF(B494=\"\",\"\",SUBTOTAL(3,B$7:B494))","v":486},"الكيمياء الصناعية والبلاستيك","CIP1802","الصناعات البلاستيكية",null,5,null,null,null,null,null,null,0,null,null,0,null,null,0,null,null,0,null,null,0,0,0,0,null,null,0,null,null,0,null,null,0,0,0,0,null,null,0,null,null,0,null,null,0,null,null,0,"0"]
[{"$f":"IF(B495=\"\",\"\",SUBTOTAL(3,B$7:B495))","v":487},"الكيمياء الصناعية والبلاستيك","CIP1803","الصناعات الورقية /خيار  تحويل  الورق و الورق المقوى",null,5,null,null,null,null,null,null,0,null,null,0,null,null,0,null,null,0,null,null,0,0,0,0,null,null,0,null,null,0,null,null,0,0,0,0,null,null,0,null,null,0,null,null,0,null,null,0,"0"]
[{"$f":"IF(B496=\"\",\"\",SUBTOTAL(3,B$7:B496))","v":488},"الكيمياء الصناعية والبلاستيك","CIP1804","صيانة أنظمة أنابيب البوليستر و المقوى بالألياف الزجاجية",null,5,null,null,null,null,null,null,0,null,null,0,null,null,0,null,null,0,null,null,0,0,0,0,null,null,0,null,null,0,null,null,0,0,0,0,null,null,0,null,null,0,null,null,0,null,null,0,"0"]
[{"$f":"IF(B497=\"\",\"\",SUBTOTAL(3,B$7:B497))","v":489},"الإنشاءات المعدنية","CML0715","الدراسات في الهـيـكلة المعدنية",null,5,null,null,null,null,null,null,0,null,null,0,null,null,0,null,null,0,null,null,0,0,0,0,null,null,0,null,null,0,null,null,0,0,0,0,null,null,0,null,null,0,null,null,0,null,null,0,"0"]
[{"$f":"IF(B498=\"\",\"\",SUBTOTAL(3,B$7:B498))","v":490},"الإنشاءات المعدنية","CML0716","الدراسات و التصاميم في نجارة الألومينيوم و المواد البلاستيكية (PVC)",null,5,null,null,null,null,null,null,0,null,null,0,null,null,0,null,null,0,null,null,0,0,0,0,null,null,0,null,null,0,null,null,0,0,0,0,null,null,0,null,null,0,null,null,0,null,null,0,"0"]
[{"$f":"IF(B499=\"\",\"\",SUBTOTAL(3,B$7:B499))","v":491},"الإنشاءات المعدنية","CML0717","تلحـيم صنــاعــي",null,5,null,null,null,null,null,null,0,null,null,0,null,null,0,null,null,0,null,null,0,0,0,0,null,null,0,null,null,0,null,null,0,0,0,0,null,null,0,null,null,0,null,null,0,null,null,0,"0"]
[{"$f":"IF(B500=\"\",\"\",SUBTOTAL(3,B$7:B500))","v":492},"الإنشاءات المعدنية","CML1801","تصميم وإنجاز هياكل السيارات",null,5,null,null,null,null,null,null,0,null,null,0,null,null,0,null,null,0,null,null,0,0,0,0,null,null,0,null,null,0,null,null,0,0,0,0,null,null,0,null,null,0,null,null,0,null,null,0,"0"]
[{"$f":"IF(B501=\"\",\"\",SUBTOTAL(3,B$7:B501))","v":493},"الإنشاءات الميكانيكية والصناعة الحديدية\n","CMS0713","الصيانة الصناعية في الإنشاءات الميكانيكية والصناعة الحديدية",null,5,null,null,null,null,null,null,0,null,null,0,null,null,0,null,null,0,null,null,0,0,0,0,null,null,0,null,null,0,null,null,0,0,0,0,null,null,0,null,null,0,null,null,0,null,null,0,"0"]
[{"$f":"IF(B502=\"\",\"\",SUBTOTAL(3,B$7:B502))","v":494},"الإنشاءات الميكانيكية والصناعة الحديدية\n","CMS0714","دراسة و إنجاز آلات و أدوات التصليح",null,5,null,null,null,null,null,null,0,null,null,0,null,null,0,null,null,0,null,null,0,0,0,0,null,null,0,null,null,0,null,null,0,0,0,0,null,null,0,null,null,0,null,null,0,null,null,0,"0"]
[{"$f":"IF(B503=\"\",\"\",SUBTOTAL(3,B$7:B503))","v":495},"الإنشاءات الميكانيكية والصناعة الحديدية\n","CMS0715","تشكيل المواد بالتطريق",null,5,null,null,null,null,null,null,0,null,null,0,null,null,0,null,null,0,null,null,0,0,0,0,null,null,0,null,null,0,null,null,0,0,0,0,null,null,0,null,null,0,null,null,0,null,null,0,"0"]
[{"$f":"IF(B504=\"\",\"\",SUBTOTAL(3,B$7:B504))","v":496},"الإنشاءات الميكانيكية والصناعة الحديدية\n","CMS0716","الأنتجة الميكانيكية / خيار : إستصناع",null,5,null,null,null,null,null,null,0,null,null,0,null,null,0,null,null,0,null,null,0,0,0,0,null,null,0,null,null,0,null,null,0,0,0,0,null,null,0,null,null,0,null,null,0,null,null,0,"0"]
[{"$f":"IF(B505=\"\",\"\",SUBTOTAL(3,B$7:B505))","v":497},"الإنشاءات الميكانيكية والصناعة الحديدية\n","CMS0717","سباكـة المزائج المقوْلبة",null,5,null,null,null,null,null,null,0,null,null,0,null,null,0,null,null,0,null,null,0,0,0,0,null,null,0,null,null,0,null,null,0,0,0,0,null,null,0,null,null,0,null,null,0,null,null,0,"0"]
[{"$f":"IF(B506=\"\",\"\",SUBTOTAL(3,B$7:B506))","v":498},"الإنشاءات الميكانيكية والصناعة الحديدية\n","CMS1901","معالجة المواد",null,5,null,null,null,null,null,null,0,null,null,0,null,null,0,null,null,0,null,null,0,0,0,0,null,null,0,null,null,0,null,null,0,0,0,0,null,null,0,null,null,0,null,null,0,null,null,0,"0"]
[{"$f":"IF(B507=\"\",\"\",SUBTOTAL(3,B$7:B507))","v":499},"الصناعة الجلدية","CPX0708","التصنيع والإنتاج الآلي للأحذية",null,5,null,null,null,null,null,null,0,null,null,0,null,null,0,null,null,0,null,null,0,0,0,0,null,null,0,null,null,0,null,null,0,0,0,0,null,null,0,null,null,0,null,null,0,null,null,0,"0"]
[{"$f":"IF(B508=\"\",\"\",SUBTOTAL(3,B$7:B508))","v":500},"الصناعة الجلدية","CPX1804","الصناعات الجلدية / الخيار: دباغة- بياضة",null,5,null,null,null,null,null,null,0,null,null,0,null,null,0,null,null,0,null,null,0,0,0,0,null,null,0,null,null,0,null,null,0,0,0,0,null,null,0,null,null,0,null,null,0,null,null,0,"0"]
[{"$f":"IF(B509=\"\",\"\",SUBTOTAL(3,B$7:B509))","v":501},"الصناعة الجلدية","CPX1805","مراقبة الجودة في الصناعات الجلدية",null,5,null,null,null,null,null,null,0,null,null,0,null,null,0,null,null,0,null,null,0,0,0,0,null,null,0,null,null,0,null,null,0,0,0,0,null,null,0,null,null,0,null,null,0,null,null,0,"0"]
[{"$f":"IF(B510=\"\",\"\",SUBTOTAL(3,B$7:B510))","v":502},"الكهرباء – الإلكترونيك والطاقة","ELE0712","الكهروتقني",null,5,null,null,null,null,null,null,0,null,null,0,null,null,0,null,null,0,null,null,0,0,0,0,null,null,0,null,null,0,null,null,0,0,0,0,null,null,0,null,null,0,null,null,0,null,null,0,"0"]
[{"$f":"IF(B511=\"\",\"\",SUBTOTAL(3,B$7:B511))","v":503},"الكهرباء – الإلكترونيك والطاقة","ELE0713","الصيانة الصناعية",null,5,null,null,null,null,null,null,0,null,null,0,null,null,0,null,null,0,null,null,0,0,0,0,null,null,0,null,null,0,null,null,0,0,0,0,null,null,0,null,null,0,null,null,0,null,null,0,"0"]
[{"$f":"IF(B512=\"\",\"\",SUBTOTAL(3,B$7:B512))","v":504},"الكهرباء – الإلكترونيك والطاقة","ELE0714","الكهرباء الصناعية",null,5,null,null,null,null,null,null,0,null,null,0,null,null,0,null,null,0,null,null,0,0,0,0,null,null,0,null,null,0,null,null,0,0,0,0,null,null,0,null,null,0,null,null,0,null,null,0,"0"]
[{"$f":"IF(B513=\"\",\"\",SUBTOTAL(3,B$7:B513))","v":505},"الكهرباء – الإلكترونيك والطاقة","ELE0715","تركيب أجهزة التبريد والتكييف",null,5,null,null,null,null,null,null,0,null,null,0,null,null,0,null,null,0,null,null,0,0,0,0,null,null,0,null,null,0,null,null,0,0,0,0,null,null,0,null,null,0,null,null,0,null,null,0,"0"]
[{"$f":"IF(B514=\"\",\"\",SUBTOTAL(3,B$7:B514))","v":506},"الكهرباء – الإلكترونيك والطاقة","ELE0716","صيانة الأجهزة  المعلوماتية و المكتبية",null,5,null,null,null,null,null,null,0,null,null,0,null,null,0,null,null,0,null,null,0,0,0,0,null,null,0,null,null,0,null,null,0,0,0,0,null,null,0,null,null,0,null,null,0,null,null,0,"0"]
[{"$f":"IF(B515=\"\",\"\",SUBTOTAL(3,B$7:B515))","v":507},"الكهرباء – الإلكترونيك والطاقة","ELE0717","صيانة الأجهزة السمعية البصرية",null,5,null,null,null,null,null,null,0,null,null,0,null,null,0,null,null,0,null,null,0,0,0,0,null,null,0,null,null,0,null,null,0,0,0,0,null,null,0,null,null,0,null,null,0,null,null,0,"0"]
[{"$f":"IF(B516=\"\",\"\",SUBTOTAL(3,B$7:B516))","v":508},"الكهرباء – الإلكترونيك والطاقة","ELE0718","الاكترونيك الصناعية",null,5,null,null,null,null,null,null,0,null,null,0,null,null,0,null,null,0,null,null,0,0,0,0,null,null,0,null,null,0,null,null,0,0,0,0,null,null,0,null,null,0,null,null,0,null,null,0,"0"]
[{"$f":"IF(B517=\"\",\"\",SUBTOTAL(3,B$7:B517))","v":509},"الكهرباء – الإلكترونيك والطاقة","ELE0719","الآلية و الضبط",null,5,null,null,null,null,null,null,0,null,null,0,null,null,0,null,null,0,null,null,0,0,0,0,null,null,0,null,null,0,null,null,0,0,0,0,null,null,0,null,null,0,null,null,0,null,null,0,"0"]
[{"$f":"IF(B518=\"\",\"\",SUBTOTAL(3,B$7:B518))","v":510},"الكهرباء – الإلكترونيك والطاقة","ELE0720","صيانة المُعدّات الطبية",null,5,null,null,null,null,null,null,0,null,null,0,null,null,0,null,null,0,null,null,0,0,0,0,null,null,0,null,null,0,null,null,0,0,0,0,null,null,0,null,null,0,null,null,0,null,null,0,"0"]
[{"$f":"IF(B519=\"\",\"\",SUBTOTAL(3,B$7:B519))","v":511},"الكهرباء – الإلكترونيك والطاقة","ELE1213","ميتورولوجيا و أدوات الضبط ",null,5,null,null,null,null,null,null,0,null,null,0,null,null,0,null,null,0,null,null,0,0,0,0,null,null,0,null,null,0,null,null,0,0,0,0,null,null,0,null,null,0,null,null,0,null,null,0,"0"]
[{"$f":"IF(B520=\"\",\"\",SUBTOTAL(3,B$7:B520))","v":512},"الكهرباء – الإلكترونيك والطاقة","ELE1214","التشغيل الآلي للمنازل",null,5,null,null,null,null,null,null,{"$f":"J520+I520+H520+G520","v":0},null,null,{"$f":"O520+N520","v":0},null,null,{"$f":"R520+Q520","v":0},null,null,{"$f":"U520+T520","v":0},null,null,{"$f":"X520+W520","v":0},{"$f":"(N520+Q520)-(W520+T520)","v":0},{"$f":"(O520+R520)-(X520+U520)","v":0},{"$f":"(P520+S520)-(Y520+V520)","v":0},null,null,{"$f":"AD520+AC520","v":0},null,null,{"$f":"AG520+AF520","v":0},null,null,{"$f":"AJ520+AI520","v":0},{"$f":"(AC520)-(AF520)-(AI520)","v":0},{"$f":"(AD520)-(AG520)-(AJ520)","v":0},{"$f":"AM520+AL520","v":0},null,null,{"$f":"AP520+AO520","v":0},null,null,{"$f":"AS520+AR520","v":0},null,null,{"$f":"AV520+AU520","v":0},null,null,{"$f":"AY520+AX520","v":0},{"$f":"IFERROR((AK520)/AE520,\"0\")","v":"0"}]
[{"$f":"IF(B521=\"\",\"\",SUBTOTAL(3,B$7:B521))","v":513},"الكهرباء – الإلكترونيك والطاقة","ELE1215","صيانة الأنظمة الميكانيكية الآلية",null,5,null,null,null,null,null,null,0,null,null,0,null,null,0,null,null,0,null,null,0,0,0,0,null,null,0,null,null,0,null,null,0,0,0,0,null,null,0,null,null,0,null,null,0,null,null,0,"0"]
[{"$f":"IF(B522=\"\",\"\",SUBTOTAL(3,B$7:B522))","v":514},"الكهرباء – الإلكترونيك والطاقة","ELE1601","الفعالية الطاقوية  و الآلية الصناعية",null,5,null,null,null,null,null,null,0,null,null,0,null,null,0,null,null,0,null,null,0,0,0,0,null,null,0,null,null,0,null,null,0,0,0,0,null,null,0,null,null,0,null,null,0,null,null,0,"0"]
[{"$f":"IF(B523=\"\",\"\",SUBTOTAL(3,B$7:B523))","v":515},"الكهرباء – الإلكترونيك والطاقة","ELE1802","صيانة الأنظمة-خيار: إنتاجية",null,5,null,null,null,null,null,null,0,null,null,0,null,null,0,null,null,0,null,null,0,0,0,0,null,null,0,null,null,0,null,null,0,0,0,0,null,null,0,null,null,0,null,null,0,null,null,0,"0"]
[{"$f":"IF(B524=\"\",\"\",SUBTOTAL(3,B$7:B524))","v":516},"الكهرباء – الإلكترونيك والطاقة","ELE1803","صيانة أنظمة الطاقات و السوائل",null,5,null,null,null,null,null,null,0,null,null,0,null,null,0,null,null,0,null,null,0,0,0,0,null,null,0,null,null,0,null,null,0,0,0,0,null,null,0,null,null,0,null,null,0,null,null,0,"0"]
[{"$f":"IF(B525=\"\",\"\",SUBTOTAL(3,B$7:B525))","v":517},"الكهرباء – الإلكترونيك والطاقة","ELE1804","صيانة أنظمة التوليد بالرياح",null,5,null,null,null,null,null,null,0,null,null,0,null,null,0,null,null,0,null,null,0,0,0,0,null,null,0,null,null,0,null,null,0,0,0,0,null,null,0,null,null,0,null,null,0,null,null,0,"0"]
[{"$f":"IF(B526=\"\",\"\",SUBTOTAL(3,B$7:B526))","v":518},"الكهرباء – الإلكترونيك والطاقة","ELE1901","تركيب و صيانة المصاعد",null,5,null,null,null,null,null,null,0,null,null,0,null,null,0,null,null,0,null,null,0,0,0,0,null,null,0,null,null,0,null,null,0,0,0,0,null,null,0,null,null,0,null,null,0,null,null,0,"0"]
[{"$f":"IF(B527=\"\",\"\",SUBTOTAL(3,B$7:B527))","v":519},"الفندقة -الإطعام والسياحة","HRT0710","السياحة / خيار : الإنتاج  والتسويق",null,5,null,null,null,null,null,null,0,null,null,0,null,null,0,null,null,0,null,null,0,0,0,0,null,null,0,null,null,0,null,null,0,0,0,0,null,null,0,null,null,0,null,null,0,null,null,0,"0"]
[{"$f":"IF(B528=\"\",\"\",SUBTOTAL(3,B$7:B528))","v":520},"الفندقة -الإطعام والسياحة","HRT0711","التنشيط و التسيير السياحي",null,5,null,null,null,null,null,null,0,null,null,0,null,null,0,null,null,0,null,null,0,0,0,0,null,null,0,null,null,0,null,null,0,0,0,0,null,null,0,null,null,0,null,null,0,null,null,0,"0"]
[{"$f":"IF(B529=\"\",\"\",SUBTOTAL(3,B$7:B529))","v":521},"الفندقة -الإطعام والسياحة","HRT0712","السياحة / خيار: مرشد المتاحف",null,5,null,null,null,null,null,null,0,null,null,0,null,null,0,null,null,0,null,null,0,0,0,0,null,null,0,null,null,0,null,null,0,0,0,0,null,null,0,null,null,0,null,null,0,null,null,0,"0"]
[{"$f":"IF(B530=\"\",\"\",SUBTOTAL(3,B$7:B530))","v":522},"الفندقة -الإطعام والسياحة","HRT0713","السياحة / خيار: وكالة السفر",null,5,null,null,null,null,null,null,0,null,null,0,null,null,0,null,null,0,null,null,0,0,0,0,null,null,0,null,null,0,null,null,0,0,0,0,null,null,0,null,null,0,null,null,0,null,null,0,"0"]
[{"$f":"IF(B531=\"\",\"\",SUBTOTAL(3,B$7:B531))","v":523},"الفندقة -الإطعام والسياحة","HRT1203","السياحة / خيار: المرشد السياحة المحلية",null,5,null,null,null,null,null,null,0,null,null,0,null,null,0,null,null,0,null,null,0,0,0,0,null,null,0,null,null,0,null,null,0,0,0,0,null,null,0,null,null,0,null,null,0,null,null,0,"0"]
[{"$f":"IF(B532=\"\",\"\",SUBTOTAL(3,B$7:B532))","v":524},"الفندقة -الإطعام والسياحة","HRT1805","الفندقة - الإطعام / خيار: فن خدمة الطاولة",null,5,null,null,null,null,null,null,0,null,null,0,null,null,0,null,null,0,null,null,0,0,0,0,null,null,0,null,null,0,null,null,0,0,0,0,null,null,0,null,null,0,null,null,0,null,null,0,"0"]
[{"$f":"IF(B533=\"\",\"\",SUBTOTAL(3,B$7:B533))","v":525},"الفندقة -الإطعام والسياحة","HRT1806","الفندقة - الإطعام / خيار : فن الطبخ",null,5,null,null,null,null,null,null,0,null,null,0,null,null,0,null,null,0,null,null,0,0,0,0,null,null,0,null,null,0,null,null,0,0,0,0,null,null,0,null,null,0,null,null,0,null,null,0,"0"]
[{"$f":"IF(B534=\"\",\"\",SUBTOTAL(3,B$7:B534))","v":526},"الفندقة -الإطعام والسياحة","HRT1807","الفندقة - الإطعام / خيار :  الطبخ التقليدي",null,5,null,null,null,null,null,null,0,null,null,0,null,null,0,null,null,0,null,null,0,0,0,0,null,null,0,null,null,0,null,null,0,0,0,0,null,null,0,null,null,0,null,null,0,null,null,0,"0"]
[{"$f":"IF(B535=\"\",\"\",SUBTOTAL(3,B$7:B535))","v":527},"الفندقة -الإطعام والسياحة","HRT1808","الفندقة / خيار: تسيير و إدارة الفنادق",null,5,null,null,null,null,null,null,0,null,null,0,null,null,0,null,null,0,null,null,0,0,0,0,null,null,0,null,null,0,null,null,0,0,0,0,null,null,0,null,null,0,null,null,0,null,null,0,"0"]
[{"$f":"IF(B536=\"\",\"\",SUBTOTAL(3,B$7:B536))","v":528},"الفندقة -الإطعام والسياحة","HRT1809","التسيير الفندقي / خيار: الإيواء",null,5,null,null,null,null,null,null,0,null,null,0,null,null,0,null,null,0,null,null,0,0,0,0,null,null,0,null,null,0,null,null,0,0,0,0,null,null,0,null,null,0,null,null,0,null,null,0,"0"]
[{"$f":"IF(B537=\"\",\"\",SUBTOTAL(3,B$7:B537))","v":529},"الفندقة -الإطعام والسياحة","HRT1810","التسيير الفندقي / خيار: الاستقبال",null,5,null,null,null,null,null,null,0,null,null,0,null,null,0,null,null,0,null,null,0,0,0,0,null,null,0,null,null,0,null,null,0,0,0,0,null,null,0,null,null,0,null,null,0,null,null,0,"0"]
[{"$f":"IF(B538=\"\",\"\",SUBTOTAL(3,B$7:B538))","v":530},"الفندقة -الإطعام والسياحة","HRT1902","المناجمنت في الفنادق - الإطعام",null,5,null,null,null,null,null,null,0,null,null,0,null,null,0,null,null,0,null,null,0,0,0,0,null,null,0,null,null,0,null,null,0,0,0,0,null,null,0,null,null,0,null,null,0,null,null,0,"0"]
[{"$f":"IF(B539=\"\",\"\",SUBTOTAL(3,B$7:B539))","v":531},"صناعة الأغذية الز ا رعية","IAA0710","مراقبة و تعبئة منتجات الحليب",null,5,null,null,null,null,null,null,0,null,null,0,null,null,0,null,null,0,null,null,0,0,0,0,null,null,0,null,null,0,null,null,0,0,0,0,null,null,0,null,null,0,null,null,0,null,null,0,"0"]
[{"$f":"IF(B540=\"\",\"\",SUBTOTAL(3,B$7:B540))","v":532},"صناعة الأغذية الز ا رعية","IAA0711","إنتاج المشروبات و المعلبات ",null,5,null,null,null,null,null,null,0,null,null,0,null,null,0,null,null,0,null,null,0,0,0,0,null,null,0,null,null,0,null,null,0,0,0,0,null,null,0,null,null,0,null,null,0,null,null,0,"0"]
[{"$f":"IF(B541=\"\",\"\",SUBTOTAL(3,B$7:B541))","v":533},"صناعة الأغذية الز ا رعية","IAA0712","تحويل الحبوب",null,5,null,null,null,null,null,null,0,null,null,0,null,null,0,null,null,0,null,null,0,0,0,0,null,null,0,null,null,0,null,null,0,0,0,0,null,null,0,null,null,0,null,null,0,null,null,0,"0"]
[{"$f":"IF(B542=\"\",\"\",SUBTOTAL(3,B$7:B542))","v":534},"صناعة الأغذية الز ا رعية","IAA0713","مراقبة النوعية في الصناعة الغذائية",null,5,null,null,null,null,null,null,0,null,null,0,null,null,0,null,null,0,null,null,0,0,0,0,null,null,0,null,null,0,null,null,0,0,0,0,null,null,0,null,null,0,null,null,0,null,null,0,"0"]
[{"$f":"IF(B543=\"\",\"\",SUBTOTAL(3,B$7:B543))","v":535},"صناعة الأغذية الز ا رعية","IAA0714","إنتاج المواد الدسمة",null,5,null,null,null,null,null,null,0,null,null,0,null,null,0,null,null,0,null,null,0,0,0,0,null,null,0,null,null,0,null,null,0,0,0,0,null,null,0,null,null,0,null,null,0,null,null,0,"0"]
[{"$f":"IF(B544=\"\",\"\",SUBTOTAL(3,B$7:B544))","v":536},"صناعة الأغذية الز ا رعية","IAA1903","الاجبان و مشتقات الحليب",null,5,null,null,null,null,null,null,0,null,null,0,null,null,0,null,null,0,null,null,0,0,0,0,null,null,0,null,null,0,null,null,0,0,0,0,null,null,0,null,null,0,null,null,0,null,null,0,"0"]
[{"$f":"IF(B545=\"\",\"\",SUBTOTAL(3,B$7:B545))","v":537},"الصناعات النفطية ","INP1203","كهـربائي المسـابر",null,5,null,null,null,null,null,null,0,null,null,0,null,null,0,null,null,0,null,null,0,0,0,0,null,null,0,null,null,0,null,null,0,0,0,0,null,null,0,null,null,0,null,null,0,null,null,0,"0"]
[{"$f":"IF(B546=\"\",\"\",SUBTOTAL(3,B$7:B546))","v":538},"الصناعات النفطية ","INP1204","الصناعات النفطية/ خيار : الوقاية و الأمـن الصنـاعــي",null,5,null,null,null,null,null,null,0,null,null,0,null,null,0,null,null,0,null,null,0,0,0,0,null,null,0,null,null,0,null,null,0,0,0,0,null,null,0,null,null,0,null,null,0,null,null,0,"0"]
[{"$f":"IF(B547=\"\",\"\",SUBTOTAL(3,B$7:B547))","v":539},"الصناعات النفطية ","INP1802","الصناعات النفطية/ خيار :أشغال الآبــار",null,5,null,null,null,null,null,null,0,null,null,0,null,null,0,null,null,0,null,null,0,0,0,0,null,null,0,null,null,0,null,null,0,0,0,0,null,null,0,null,null,0,null,null,0,null,null,0,"0"]
[{"$f":"IF(B548=\"\",\"\",SUBTOTAL(3,B$7:B548))","v":540},"الصناعات النفطية ","INP1803","الصناعات النفطية/ خيار :القيــاس",null,5,null,null,null,null,null,null,0,null,null,0,null,null,0,null,null,0,null,null,0,0,0,0,null,null,0,null,null,0,null,null,0,0,0,0,null,null,0,null,null,0,null,null,0,null,null,0,"0"]
[{"$f":"IF(B549=\"\",\"\",SUBTOTAL(3,B$7:B549))","v":541},"الصناعات النفطية ","INP1804","الصناعات النفطية/ خيار :آليات الضبـط",null,5,null,null,null,null,null,null,0,null,null,0,null,null,0,null,null,0,null,null,0,0,0,0,null,null,0,null,null,0,null,null,0,0,0,0,null,null,0,null,null,0,null,null,0,null,null,0,"0"]
[{"$f":"IF(B550=\"\",\"\",SUBTOTAL(3,B$7:B550))","v":542},"المعلوماتية-الرقمنة و الإتصالات","INT0703","إعلام آلي / خيار: قاعدة المعطيات",null,5,null,null,null,null,null,null,0,null,null,0,null,null,0,null,null,0,null,null,0,0,0,0,null,null,0,null,null,0,null,null,0,0,0,0,null,null,0,null,null,0,null,null,0,null,null,0,"0"]
[{"$f":"IF(B551=\"\",\"\",SUBTOTAL(3,B$7:B551))","v":543},"المعلوماتية-الرقمنة و الإتصالات","INT0704","إعلام آلي / خيار: صيانة الأنظمة المعلوماتية",null,5,null,null,null,null,null,null,0,null,null,0,null,null,0,null,null,0,null,null,0,0,0,0,null,null,0,null,null,0,null,null,0,0,0,0,null,null,0,null,null,0,null,null,0,null,null,0,"0"]
[{"$f":"IF(B552=\"\",\"\",SUBTOTAL(3,B$7:B552))","v":544},"المعلوماتية-الرقمنة و الإتصالات","INT0705","إدارة وأمـن شبكـات المعلـوماتيــة",null,5,null,null,null,null,null,null,0,null,null,0,null,null,0,null,null,0,null,null,0,0,0,0,null,null,0,null,null,0,null,null,0,0,0,0,null,null,0,null,null,0,null,null,0,null,null,0,"0"]
[{"$f":"IF(B553=\"\",\"\",SUBTOTAL(3,B$7:B553))","v":545},"المعلوماتية-الرقمنة و الإتصالات","INT1207","الاتصالات ",null,5,null,null,null,null,null,null,0,null,null,0,null,null,0,null,null,0,null,null,0,0,0,0,null,null,0,null,null,0,null,null,0,0,0,0,null,null,0,null,null,0,null,null,0,null,null,0,"0"]
[{"$f":"IF(B554=\"\",\"\",SUBTOTAL(3,B$7:B554))","v":546},"المعلوماتية-الرقمنة و الإتصالات","INT1208","تركيب الألياف البصرية",null,5,null,null,null,null,null,null,0,null,null,0,null,null,0,null,null,0,null,null,0,0,0,0,null,null,0,null,null,0,null,null,0,0,0,0,null,null,0,null,null,0,null,null,0,null,null,0,"0"]
[{"$f":"IF(B555=\"\",\"\",SUBTOTAL(3,B$7:B555))","v":547},"المعلوماتية-الرقمنة و الإتصالات","INT1601","إعلام آلي / خيار : مُطوّر الواب والوسائط الإعلامية",null,5,null,null,null,null,null,null,0,null,null,0,null,null,0,null,null,0,null,null,0,0,0,0,null,null,0,null,null,0,null,null,0,0,0,0,null,null,0,null,null,0,null,null,0,null,null,0,"0"]
[{"$f":"IF(B556=\"\",\"\",SUBTOTAL(3,B$7:B556))","v":548},"المعلوماتية-الرقمنة و الإتصالات","INT1701","طاقة و محيط الاتصال",null,5,null,null,null,null,null,null,0,null,null,0,null,null,0,null,null,0,null,null,0,0,0,0,null,null,0,null,null,0,null,null,0,0,0,0,null,null,0,null,null,0,null,null,0,null,null,0,"0"]
[{"$f":"IF(B557=\"\",\"\",SUBTOTAL(3,B$7:B557))","v":549},"المعلوماتية-الرقمنة و الإتصالات","INT1702","راديو - الاتصالات",null,5,null,null,null,null,null,null,0,null,null,0,null,null,0,null,null,0,null,null,0,0,0,0,null,null,0,null,null,0,null,null,0,0,0,0,null,null,0,null,null,0,null,null,0,null,null,0,"0"]
[{"$f":"IF(B558=\"\",\"\",SUBTOTAL(3,B$7:B558))","v":550},"المعلوماتية-الرقمنة و الإتصالات","INT1703","شبكات الاتصال السلكية",null,5,null,null,null,null,null,null,0,null,null,0,null,null,0,null,null,0,null,null,0,0,0,0,null,null,0,null,null,0,null,null,0,0,0,0,null,null,0,null,null,0,null,null,0,null,null,0,"0"]
[{"$f":"IF(B559=\"\",\"\",SUBTOTAL(3,B$7:B559))","v":551},"المعلوماتية-الرقمنة و الإتصالات","INT1704","إدارة الحوسبة السحابية و المحاكاة الافتراضية",null,5,null,null,null,null,null,null,0,null,null,0,null,null,0,null,null,0,null,null,0,0,0,0,null,null,0,null,null,0,null,null,0,0,0,0,null,null,0,null,null,0,null,null,0,null,null,0,"0"]
[{"$f":"IF(B560=\"\",\"\",SUBTOTAL(3,B$7:B560))","v":552},"المعلوماتية-الرقمنة و الإتصالات","INT1705"," إدارة مركز البيانات",null,5,null,null,null,null,null,null,0,null,null,0,null,null,0,null,null,0,null,null,0,0,0,0,null,null,0,null,null,0,null,null,0,0,0,0,null,null,0,null,null,0,null,null,0,null,null,0,"0"]
[{"$f":"IF(B561=\"\",\"\",SUBTOTAL(3,B$7:B561))","v":553},"المعلوماتية-الرقمنة و الإتصالات","INT1706","إعلام آلي / خيار : مطور تطبيقات متعددة المنصات",null,5,null,null,null,null,null,null,0,null,null,0,null,null,0,null,null,0,null,null,0,0,0,0,null,null,0,null,null,0,null,null,0,0,0,0,null,null,0,null,null,0,null,null,0,null,null,0,"0"]
[{"$f":"IF(B562=\"\",\"\",SUBTOTAL(3,B$7:B562))","v":554},"المعلوماتية-الرقمنة و الإتصالات","INT1801","الأنظمة الرقمية/ خيار: المعلوماتية والشبكات المعلوماتية",null,5,null,null,null,null,null,null,0,null,null,0,null,null,0,null,null,0,null,null,0,0,0,0,null,null,0,null,null,0,null,null,0,0,0,0,null,null,0,null,null,0,null,null,0,null,null,0,"0"]
[{"$f":"IF(B563=\"\",\"\",SUBTOTAL(3,B$7:B563))","v":555},"المعلوماتية-الرقمنة و الإتصالات","INT1901","voip إدارة الهاتف عبر",null,5,null,null,null,null,null,null,0,null,null,0,null,null,0,null,null,0,null,null,0,0,0,0,null,null,0,null,null,0,null,null,0,0,0,0,null,null,0,null,null,0,null,null,0,null,null,0,"0"]
[{"$f":"IF(B564=\"\",\"\",SUBTOTAL(3,B$7:B564))","v":556},"مهن البيئة والمياه","MEE0705","إستغلال أنظمة التزويد بالماء الشروب",null,5,null,null,null,null,null,null,0,null,null,0,null,null,0,null,null,0,null,null,0,0,0,0,null,null,0,null,null,0,null,null,0,0,0,0,null,null,0,null,null,0,null,null,0,null,null,0,"0"]
[{"$f":"IF(B565=\"\",\"\",SUBTOTAL(3,B$7:B565))","v":557},"مهن البيئة والمياه","MEE0706","استغلال وصيانة أنظمة الصرف الصحي",null,5,null,null,null,null,null,null,0,null,null,0,null,null,0,null,null,0,null,null,0,0,0,0,null,null,0,null,null,0,null,null,0,0,0,0,null,null,0,null,null,0,null,null,0,null,null,0,"0"]
[{"$f":"IF(B566=\"\",\"\",SUBTOTAL(3,B$7:B566))","v":558},"مهن البيئة والمياه","MEE0707","استغلال محطّـات معالجة المياه",null,5,null,null,null,null,null,null,0,null,null,0,null,null,0,null,null,0,null,null,0,0,0,0,null,null,0,null,null,0,null,null,0,0,0,0,null,null,0,null,null,0,null,null,0,null,null,0,"0"]
[{"$f":"IF(B567=\"\",\"\",SUBTOTAL(3,B$7:B567))","v":559},"مهن البيئة والمياه","MEE0708","معالجة المياه",null,5,null,null,null,null,null,null,0,null,null,0,null,null,0,null,null,0,null,null,0,0,0,0,null,null,0,null,null,0,null,null,0,0,0,0,null,null,0,null,null,0,null,null,0,null,null,0,"0"]
[{"$f":"IF(B568=\"\",\"\",SUBTOTAL(3,B$7:B568))","v":560},"مهن البيئة والمياه","MEE0709","تسيير و اقتصاد الماء",null,5,null,null,null,null,null,null,0,null,null,0,null,null,0,null,null,0,null,null,0,0,0,0,null,null,0,null,null,0,null,null,0,0,0,0,null,null,0,null,null,0,null,null,0,null,null,0,"0"]
[{"$f":"IF(B569=\"\",\"\",SUBTOTAL(3,B$7:B569))","v":561},"مهن البيئة والمياه","MEE0710","تسيير و استرجاع النفايات",null,5,null,null,null,null,null,null,0,null,null,0,null,null,0,null,null,0,null,null,0,0,0,0,null,null,0,null,null,0,null,null,0,0,0,0,null,null,0,null,null,0,null,null,0,null,null,0,"0"]
[{"$f":"IF(B570=\"\",\"\",SUBTOTAL(3,B$7:B570))","v":562},"مهن البيئة والمياه","MEE1801","إعادة تأهيل مرافق الصرف الصحي",null,5,null,null,null,null,null,null,0,null,null,0,null,null,0,null,null,0,null,null,0,0,0,0,null,null,0,null,null,0,null,null,0,0,0,0,null,null,0,null,null,0,null,null,0,null,null,0,"0"]
[{"$f":"IF(B571=\"\",\"\",SUBTOTAL(3,B$7:B571))","v":563},"مهن البيئة والمياه","MEE1802","البيئة",null,5,null,null,null,null,null,null,0,null,null,0,null,null,0,null,null,0,null,null,0,0,0,0,null,null,0,null,null,0,null,null,0,0,0,0,null,null,0,null,null,0,null,null,0,null,null,0,"0"]
[{"$f":"IF(B572=\"\",\"\",SUBTOTAL(3,B$7:B572))","v":564},"مهن البيئة والمياه","MEE1906","استغلال السدود",null,5,null,null,null,null,null,null,0,null,null,0,null,null,0,null,null,0,null,null,0,0,0,0,null,null,0,null,null,0,null,null,0,0,0,0,null,null,0,null,null,0,null,null,0,null,null,0,"0"]
[{"$f":"IF(B573=\"\",\"\",SUBTOTAL(3,B$7:B573))","v":565},"مهن البيئة والمياه","MEE1907","فحص المنشآت الهيدروتقنية )السدود(",null,5,null,null,null,null,null,null,0,null,null,0,null,null,0,null,null,0,null,null,0,0,0,0,null,null,0,null,null,0,null,null,0,0,0,0,null,null,0,null,null,0,null,null,0,null,null,0,"0"]
[{"$f":"IF(B574=\"\",\"\",SUBTOTAL(3,B$7:B574))","v":566},"حرف الخدمات","MES0708","مُربية الطفولة الأولى",null,5,null,null,null,null,null,null,0,null,null,0,null,null,0,null,null,0,null,null,0,0,0,0,null,null,0,null,null,0,null,null,0,0,0,0,null,null,0,null,null,0,null,null,0,null,null,0,"0"]
[{"$f":"IF(B575=\"\",\"\",SUBTOTAL(3,B$7:B575))","v":567},"حرف الخدمات","MES0709","تجميل و حلاقة",null,5,null,null,null,null,null,null,0,null,null,0,null,null,0,null,null,0,null,null,0,0,0,0,null,null,0,null,null,0,null,null,0,0,0,0,null,null,0,null,null,0,null,null,0,null,null,0,"0"]
[{"$f":"IF(B576=\"\",\"\",SUBTOTAL(3,B$7:B576))","v":568},"حرف الخدمات","MES1203","التجميل و مستحضرات التجميل",null,5,null,null,null,null,null,null,0,null,null,0,null,null,0,null,null,0,null,null,0,0,0,0,null,null,0,null,null,0,null,null,0,0,0,0,null,null,0,null,null,0,null,null,0,null,null,0,"0"]
[{"$f":"IF(B577=\"\",\"\",SUBTOTAL(3,B$7:B577))","v":569},"المناجم والمحاجر","MIC1202","مـُسير الإنشاءات لمعالجة الـركاز",null,5,null,null,null,null,null,null,0,null,null,0,null,null,0,null,null,0,null,null,0,0,0,0,null,null,0,null,null,0,null,null,0,0,0,0,null,null,0,null,null,0,null,null,0,null,null,0,"0"]
[{"$f":"IF(B578=\"\",\"\",SUBTOTAL(3,B$7:B578))","v":570},"المناجم والمحاجر","MIC1203","جيولوجي المناجم",null,5,null,null,null,null,null,null,0,null,null,0,null,null,0,null,null,0,null,null,0,0,0,0,null,null,0,null,null,0,null,null,0,0,0,0,null,null,0,null,null,0,null,null,0,null,null,0,"0"]
[{"$f":"IF(B579=\"\",\"\",SUBTOTAL(3,B$7:B579))","v":571},"المناجم والمحاجر","MIC1204","مخبري في المناجم والمحاجر",null,5,null,null,null,null,null,null,0,null,null,0,null,null,0,null,null,0,null,null,0,0,0,0,null,null,0,null,null,0,null,null,0,0,0,0,null,null,0,null,null,0,null,null,0,null,null,0,"0"]
[{"$f":"IF(B580=\"\",\"\",SUBTOTAL(3,B$7:B580))","v":572},"ميكانيك المحركات والآليات","MME0716","تركيب وصيانة عتاد الري",null,5,null,null,null,null,null,null,0,null,null,0,null,null,0,null,null,0,null,null,0,0,0,0,null,null,0,null,null,0,null,null,0,0,0,0,null,null,0,null,null,0,null,null,0,null,null,0,"0"]
[{"$f":"IF(B581=\"\",\"\",SUBTOTAL(3,B$7:B581))","v":573},"ميكانيك المحركات والآليات","MME0717","صيانة المركبات الصناعية",null,5,null,null,null,null,null,null,0,null,null,0,null,null,0,null,null,0,null,null,0,0,0,0,null,null,0,null,null,0,null,null,0,0,0,0,null,null,0,null,null,0,null,null,0,null,null,0,"0"]
[{"$f":"IF(B582=\"\",\"\",SUBTOTAL(3,B$7:B582))","v":574},"ميكانيك المحركات والآليات","MME0718","صيانة آليات الورشات",null,5,null,null,null,null,null,null,0,null,null,0,null,null,0,null,null,0,null,null,0,0,0,0,null,null,0,null,null,0,null,null,0,0,0,0,null,null,0,null,null,0,null,null,0,null,null,0,"0"]
[{"$f":"IF(B583=\"\",\"\",SUBTOTAL(3,B$7:B583))","v":575},"ميكانيك المحركات والآليات","MME0719","صيانة الآلات الفلاحية",null,5,null,null,null,null,null,null,0,null,null,0,null,null,0,null,null,0,null,null,0,0,0,0,null,null,0,null,null,0,null,null,0,0,0,0,null,null,0,null,null,0,null,null,0,null,null,0,"0"]
[{"$f":"IF(B584=\"\",\"\",SUBTOTAL(3,B$7:B584))","v":576},"ميكانيك المحركات والآليات","MME1803","ميكاترونيك السيارات",null,5,null,null,null,null,null,null,{"$f":"J584+I584+H584+G584","v":0},null,null,{"$f":"O584+N584","v":0},null,null,{"$f":"R584+Q584","v":0},null,null,{"$f":"U584+T584","v":0},null,null,{"$f":"X584+W584","v":0},{"$f":"(N584+Q584)-(W584+T584)","v":0},{"$f":"(O584+R584)-(X584+U584)","v":0},{"$f":"(P584+S584)-(Y584+V584)","v":0},null,null,{"$f":"AD584+AC584","v":0},null,null,{"$f":"AG584+AF584","v":0},null,null,{"$f":"AJ584+AI584","v":0},{"$f":"(AC584)-(AF584)-(AI584)","v":0},{"$f":"(AD584)-(AG584)-(AJ584)","v":0},{"$f":"AM584+AL584","v":0},null,null,{"$f":"AP584+AO584","v":0},null,null,{"$f":"AS584+AR584","v":0},null,null,{"$f":"AV584+AU584","v":0},null,null,{"$f":"AY584+AX584","v":0},{"$f":"IFERROR((AK584)/AE584,\"0\")","v":"0"}]
[{"$f":"IF(B585=\"\",\"\",SUBTOTAL(3,B$7:B585))","v":577},"الصيد البحري وتربية المائيات","PEC0705","تربية المائيات",null,5,null,null,null,null,null,null,0,null,null,0,null,null,0,null,null,0,null,null,0,0,0,0,null,null,0,null,null,0,null,null,0,0,0,0,null,null,0,null,null,0,null,null,0,null,null,0,"0"]
[{"$f":"IF(B586=\"\",\"\",SUBTOTAL(3,B$7:B586))","v":578},"تقنيات الادارة والتسيير","TAG0710","التوثيق و الأرشيف",null,5,null,null,null,null,null,null,0,null,null,0,null,null,0,null,null,0,null,null,0,0,0,0,null,null,0,null,null,0,null,null,0,0,0,0,null,null,0,null,null,0,null,null,0,null,null,0,"0"]
[{"$f":"IF(B587=\"\",\"\",SUBTOTAL(3,B$7:B587))","v":579},"تقنيات الادارة والتسيير","TAG0711","التجارة الدولية",null,5,null,null,null,null,null,null,0,null,null,0,null,null,0,null,null,0,null,null,0,0,0,0,null,null,0,null,null,0,null,null,0,0,0,0,null,null,0,null,null,0,null,null,0,null,null,0,"0"]
[{"$f":"IF(B588=\"\",\"\",SUBTOTAL(3,B$7:B588))","v":580},"تقنيات الادارة والتسيير","TAG0712","التسويق",null,5,null,null,null,null,null,null,0,null,null,0,null,null,0,null,null,0,null,null,0,0,0,0,null,null,0,null,null,0,null,null,0,0,0,0,null,null,0,null,null,0,null,null,0,null,null,0,"0"]
[{"$f":"IF(B589=\"\",\"\",SUBTOTAL(3,B$7:B589))","v":581},"تقنيات الادارة والتسيير","TAG0713","أمانة المديرية",null,5,null,null,null,null,null,null,0,null,null,0,null,null,0,null,null,0,null,null,0,0,0,0,null,null,0,null,null,0,null,null,0,0,0,0,null,null,0,null,null,0,null,null,0,null,null,0,"0"]
[{"$f":"IF(B590=\"\",\"\",SUBTOTAL(3,B$7:B590))","v":582},"تقنيات الادارة والتسيير","TAG0714","المحاسبة و التسيير",null,5,null,null,null,null,null,null,0,null,null,0,null,null,0,null,null,0,null,null,0,0,0,0,null,null,0,null,null,0,null,null,0,0,0,0,null,null,0,null,null,0,null,null,0,null,null,0,"0"]
[{"$f":"IF(B591=\"\",\"\",SUBTOTAL(3,B$7:B591))","v":583},"تقنيات الادارة والتسيير","TAG0715","البنوك",null,5,null,null,null,null,null,null,0,null,null,0,null,null,0,null,null,0,null,null,0,0,0,0,null,null,0,null,null,0,null,null,0,0,0,0,null,null,0,null,null,0,null,null,0,null,null,0,"0"]
[{"$f":"IF(B592=\"\",\"\",SUBTOTAL(3,B$7:B592))","v":584},"تقنيات الادارة والتسيير","TAG0716","التأمينات",null,5,null,null,null,null,null,null,0,null,null,0,null,null,0,null,null,0,null,null,0,0,0,0,null,null,0,null,null,0,null,null,0,0,0,0,null,null,0,null,null,0,null,null,0,null,null,0,"0"]
[{"$f":"IF(B593=\"\",\"\",SUBTOTAL(3,B$7:B593))","v":585},"تقنيات الادارة والتسيير","TAG0717","تسيير الموارد البشرية",null,5,null,null,null,null,null,null,0,null,null,0,null,null,0,null,null,0,null,null,0,0,0,0,null,null,0,null,null,0,null,null,0,0,0,0,null,null,0,null,null,0,null,null,0,null,null,0,"0"]
[{"$f":"IF(B594=\"\",\"\",SUBTOTAL(3,B$7:B594))","v":586},"تقنيات الادارة والتسيير","TAG1207","المحاسبة و المالية",null,5,null,null,null,null,null,null,0,null,null,0,null,null,0,null,null,0,null,null,0,0,0,0,null,null,0,null,null,0,null,null,0,0,0,0,null,null,0,null,null,0,null,null,0,null,null,0,"0"]
[{"$f":"IF(B595=\"\",\"\",SUBTOTAL(3,B$7:B595))","v":587},"تقنيات الادارة والتسيير","TAG1801","تسيير المخزنات و اللوجستيك",null,5,null,null,null,null,null,null,0,null,null,0,null,null,0,null,null,0,null,null,0,0,0,0,null,null,0,null,null,0,null,null,0,0,0,0,null,null,0,null,null,0,null,null,0,null,null,0,"0"]
[{"$f":"IF(B596=\"\",\"\",SUBTOTAL(3,B$7:B596))","v":588},"تقنيات الادارة والتسيير","TAG1802","تسيير تجارة التجزئة",null,5,null,null,null,null,null,null,0,null,null,0,null,null,0,null,null,0,null,null,0,0,0,0,null,null,0,null,null,0,null,null,0,0,0,0,null,null,0,null,null,0,null,null,0,null,null,0,"0"]
[{"$f":"IF(B597=\"\",\"\",SUBTOTAL(3,B$7:B597))","v":589},"تقنيات الادارة والتسيير","TAG1803","الإستشارة عن بعد",null,5,null,null,null,null,null,null,0,null,null,0,null,null,0,null,null,0,null,null,0,0,0,0,null,null,0,null,null,0,null,null,0,0,0,0,null,null,0,null,null,0,null,null,0,null,null,0,"0"]
[{"$f":"IF(B598=\"\",\"\",SUBTOTAL(3,B$7:B598))","v":590},"تقنيات السمعي البصري","TAV0703","تقنيات السمعي البصري / خيار : الصورة",null,5,null,null,null,null,null,null,0,null,null,0,null,null,0,null,null,0,null,null,0,0,0,0,null,null,0,null,null,0,null,null,0,0,0,0,null,null,0,null,null,0,null,null,0,null,null,0,"0"]
[{"$f":"IF(B599=\"\",\"\",SUBTOTAL(3,B$7:B599))","v":591},"تقنيات السمعي البصري","TAV0704","تقنيات السمعي البصري/ خيار : الصوت",null,5,null,null,null,null,null,null,0,null,null,0,null,null,0,null,null,0,null,null,0,0,0,0,null,null,0,null,null,0,null,null,0,0,0,0,null,null,0,null,null,0,null,null,0,null,null,0,"0"]
[{"$f":"IF(B600=\"\",\"\",SUBTOTAL(3,B$7:B600))","v":592},"تقنيات السمعي البصري","TAV0705","تقنيات السمعي البصري/ خيار : التركيب",null,5,null,null,null,null,null,null,0,null,null,0,null,null,0,null,null,0,null,null,0,0,0,0,null,null,0,null,null,0,null,null,0,0,0,0,null,null,0,null,null,0,null,null,0,null,null,0,"0"]
[{"$f":"IF(B601=\"\",\"\",SUBTOTAL(3,B$7:B601))","v":593},"تقنيات السمعي البصري","TAV1201","تقنيات استغلال و صيانة التجهيزات السمعية البصرية",null,5,null,null,null,null,null,null,0,null,null,0,null,null,0,null,null,0,null,null,0,0,0,0,null,null,0,null,null,0,null,null,0,0,0,0,null,null,0,null,null,0,null,null,0,null,null,0,"0"]
[{"$f":"IF(B602=\"\",\"\",SUBTOTAL(3,B$7:B602))","v":594},"تقنيات السمعي البصري","TAV1804","السمعي البصري/ خيار: تسيير الإنتاج",null,5,null,null,null,null,null,null,0,null,null,0,null,null,0,null,null,0,null,null,0,0,0,0,null,null,0,null,null,0,null,null,0,0,0,0,null,null,0,null,null,0,null,null,0,null,null,0,"0"]
[{"$f":"IF(B603=\"\",\"\",SUBTOTAL(3,B$7:B603))","v":595},"تقنيات السمعي البصري","TAV1805","السمعي البصري/ خيار: التركيب و ما بعد الإنتاج",null,5,null,null,null,null,null,null,0,null,null,0,null,null,0,null,null,0,null,null,0,0,0,0,null,null,0,null,null,0,null,null,0,0,0,0,null,null,0,null,null,0,null,null,0,null,null,0,"0"]
[{"$f":"IF(B604=\"\",\"\",SUBTOTAL(3,B$7:B604))","v":596},"النسيج والألبسة","THC0706","صيانة أجهزة صناعة الألبسة",null,5,null,null,null,null,null,null,0,null,null,0,null,null,0,null,null,0,null,null,0,0,0,0,null,null,0,null,null,0,null,null,0,0,0,0,null,null,0,null,null,0,null,null,0,null,null,0,"0"]
[{"$f":"IF(B605=\"\",\"\",SUBTOTAL(3,B$7:B605))","v":597},"النسيج والألبسة","THC0707","تصميم الأزياء",null,5,null,null,null,null,null,null,0,null,null,0,null,null,0,null,null,0,null,null,0,0,0,0,null,null,0,null,null,0,null,null,0,0,0,0,null,null,0,null,null,0,null,null,0,null,null,0,"0"]
[{"$f":"IF(B606=\"\",\"\",SUBTOTAL(3,B$7:B606))","v":598},"النسيج والألبسة","THC0708","تسيير إنتاج الألبسة",null,5,null,null,null,null,null,null,0,null,null,0,null,null,0,null,null,0,null,null,0,0,0,0,null,null,0,null,null,0,null,null,0,0,0,0,null,null,0,null,null,0,null,null,0,null,null,0,"0"]
[{"$f":"IF(B607=\"\",\"\",SUBTOTAL(3,B$7:B607))","v":599},"النسيج والألبسة","THC1802","أساليب الملابس",null,5,null,null,null,null,null,null,0,null,null,0,null,null,0,null,null,0,null,null,0,0,0,0,null,null,0,null,null,0,null,null,0,0,0,0,null,null,0,null,null,0,null,null,0,null,null,0,"0"]
[{"$f":"IF(B608=\"\",\"\",SUBTOTAL(3,B$7:B608))","v":600},"النسيج والألبسة","THC1803","أساليب النسيج",null,5,null,null,null,null,null,null,0,null,null,0,null,null,0,null,null,0,null,null,0,0,0,0,null,null,0,null,null,0,null,null,0,0,0,0,null,null,0,null,null,0,null,null,0,null,null,0,"0"]
[{"$f":"IF(B609=\"\",\"\",SUBTOTAL(3,B$7:B609))","v":601},"النسيج والألبسة","THC1804","تنظيم و إطلاق النسيج",null,5,null,null,null,null,null,null,0,null,null,0,null,null,0,null,null,0,null,null,0,0,0,0,null,null,0,null,null,0,null,null,0,0,0,0,null,null,0,null,null,0,null,null,0,null,null,0,"0"]
[{"$f":"IF(B610=\"\",\"\",SUBTOTAL(3,B$7:B610))","v":602},"النسيج والألبسة","THC1805","صناعة الانسجة / خيار: معالجة النسيج",null,5,null,null,null,null,null,null,0,null,null,0,null,null,0,null,null,0,null,null,0,0,0,0,null,null,0,null,null,0,null,null,0,0,0,0,null,null,0,null,null,0,null,null,0,null,null,0,"0"]
[{"$f":"IF(B611=\"\",\"\",SUBTOTAL(3,B$7:B611))","v":603},"النسيج والألبسة","THC1806","إنتاج النسيج / خيار: هياكل النسيج",null,5,null,null,null,null,null,null,0,null,null,0,null,null,0,null,null,0,null,null,0,0,0,0,null,null,0,null,null,0,null,null,0,0,0,0,null,null,0,null,null,0,null,null,0,null,null,0,"0"]
[{"$f":"IF(B612=\"\",\"\",SUBTOTAL(3,B$7:B612))","v":604},"فن - ثقافة والتراث","ACP1806P","مساعد في حفظ التراث",null,5,null,null,null,null,null,null,0,null,null,0,null,null,0,null,null,0,null,null,0,0,0,0,null,null,0,null,null,0,null,null,0,0,0,0,null,null,0,null,null,0,null,null,0,null,null,0,"0"]
[{"$f":"IF(B613=\"\",\"\",SUBTOTAL(3,B$7:B613))","v":605},"فن - ثقافة والتراث","ACP1807P","تسيير أشغال الترميم التراث",null,5,null,null,null,null,null,null,0,null,null,0,null,null,0,null,null,0,null,null,0,0,0,0,null,null,0,null,null,0,null,null,0,0,0,0,null,null,0,null,null,0,null,null,0,null,null,0,"0"]
[{"$f":"IF(B614=\"\",\"\",SUBTOTAL(3,B$7:B614))","v":606},"فن - ثقافة والتراث","ACP0701P","ترميم المواقع الأثرية و المعالم التذكارية",null,5,null,null,null,null,null,null,0,null,null,0,null,null,0,null,null,0,null,null,0,0,0,0,null,null,0,null,null,0,null,null,0,0,0,0,null,null,0,null,null,0,null,null,0,null,null,0,"0"]
[{"$f":"IF(B615=\"\",\"\",SUBTOTAL(3,B$7:B615))","v":607},"الفلاحة ","AGR0709P","زراعة الخضــروات",null,5,null,null,null,null,null,null,0,null,null,0,null,null,0,null,null,0,null,null,0,0,0,0,null,null,0,null,null,0,null,null,0,0,0,0,null,null,0,null,null,0,null,null,0,null,null,0,"0"]
[{"$f":"IF(B616=\"\",\"\",SUBTOTAL(3,B$7:B616))","v":608},"الفلاحة ","AGR0710P","زراعـة الأشجـار المُـثمـرة",null,5,null,null,null,null,null,null,0,null,null,0,null,null,0,null,null,0,null,null,0,0,0,0,null,null,0,null,null,0,null,null,0,0,0,0,null,null,0,null,null,0,null,null,0,null,null,0,"0"]
[{"$f":"IF(B617=\"\",\"\",SUBTOTAL(3,B$7:B617))","v":609},"الفلاحة ","AGR0711P","مُـصـمّـم البسـاتين",null,5,null,null,null,null,null,null,0,null,null,0,null,null,0,null,null,0,null,null,0,0,0,0,null,null,0,null,null,0,null,null,0,0,0,0,null,null,0,null,null,0,null,null,0,null,null,0,"0"]
[{"$f":"IF(B618=\"\",\"\",SUBTOTAL(3,B$7:B618))","v":610},"الفلاحة ","AGR0712P","الزراعات الكبـرى",null,5,null,null,null,null,null,null,0,null,null,0,null,null,0,null,null,0,null,null,0,0,0,0,null,null,0,null,null,0,null,null,0,0,0,0,null,null,0,null,null,0,null,null,0,null,null,0,"0"]
[{"$f":"IF(B619=\"\",\"\",SUBTOTAL(3,B$7:B619))","v":611},"الفلاحة ","AGR1210P","حمـايـة النبـاتات",null,5,null,null,null,null,null,null,0,null,null,0,null,null,0,null,null,0,null,null,0,0,0,0,null,null,0,null,null,0,null,null,0,0,0,0,null,null,0,null,null,0,null,null,0,null,null,0,"0"]
[{"$f":"IF(B620=\"\",\"\",SUBTOTAL(3,B$7:B620))","v":612},"الفلاحة ","AGR1211P","زراعة الكـروم",null,5,null,null,null,null,null,null,0,null,null,0,null,null,0,null,null,0,null,null,0,0,0,0,null,null,0,null,null,0,null,null,0,0,0,0,null,null,0,null,null,0,null,null,0,null,null,0,"0"]
[{"$f":"IF(B621=\"\",\"\",SUBTOTAL(3,B$7:B621))","v":613},"الفلاحة ","AGR1213P","زراعة النباتات الطبية ،العطرية و الأعشاب",null,5,null,null,null,null,null,null,0,null,null,0,null,null,0,null,null,0,null,null,0,0,0,0,null,null,0,null,null,0,null,null,0,0,0,0,null,null,0,null,null,0,null,null,0,null,null,0,"0"]
[{"$f":"IF(B622=\"\",\"\",SUBTOTAL(3,B$7:B622))","v":614},"الفلاحة ","AGR0716P","الإنتاج الحيواني / خيار: تربية  الحـيـوانات المجتـرة ",null,5,null,null,null,null,null,null,0,null,null,0,null,null,0,null,null,0,null,null,0,0,0,0,null,null,0,null,null,0,null,null,0,0,0,0,null,null,0,null,null,0,null,null,0,null,null,0,"0"]
[{"$f":"IF(B623=\"\",\"\",SUBTOTAL(3,B$7:B623))","v":615},"الفلاحة ","AGR0717P","الإنتاج الحيواني / خيار: تربية الحـيـوانات الصغيرة",null,5,null,null,null,null,null,null,0,null,null,0,null,null,0,null,null,0,null,null,0,0,0,0,null,null,0,null,null,0,null,null,0,0,0,0,null,null,0,null,null,0,null,null,0,null,null,0,"0"]
[{"$f":"IF(B624=\"\",\"\",SUBTOTAL(3,B$7:B624))","v":616},"الخشب والتأثيث","BAM0706P","الصناعات الخشبية",null,5,null,null,null,null,null,null,0,null,null,0,null,null,0,null,null,0,null,null,0,0,0,0,null,null,0,null,null,0,null,null,0,0,0,0,null,null,0,null,null,0,null,null,0,null,null,0,"0"]
[{"$f":"IF(B625=\"\",\"\",SUBTOTAL(3,B$7:B625))","v":617},"البناء والأشغال العمومية","BTP0717P","الأشغال العمومية و المنشآت الفنية",null,5,null,null,null,null,null,null,0,null,null,0,null,null,0,null,null,0,null,null,0,0,0,0,null,null,0,null,null,0,null,null,0,0,0,0,null,null,0,null,null,0,null,null,0,null,null,0,"0"]
[{"$f":"IF(B626=\"\",\"\",SUBTOTAL(3,B$7:B626))","v":618},"البناء والأشغال العمومية","BTP0719P","مسـّاح طوبوغرافي",null,5,null,null,null,null,null,null,0,null,null,0,null,null,0,null,null,0,null,null,0,0,0,0,null,null,0,null,null,0,null,null,0,0,0,0,null,null,0,null,null,0,null,null,0,null,null,0,"0"]
[{"$f":"IF(B627=\"\",\"\",SUBTOTAL(3,B$7:B627))","v":619},"البناء والأشغال العمومية","BTP0720P","مُسيّر أشغال البناء",null,5,null,null,null,null,null,null,0,null,null,0,null,null,0,null,null,0,null,null,0,0,0,0,null,null,0,null,null,0,null,null,0,0,0,0,null,null,0,null,null,0,null,null,0,null,null,0,"0"]
[{"$f":"IF(B628=\"\",\"\",SUBTOTAL(3,B$7:B628))","v":620},"البناء والأشغال العمومية","BTP0721P","المسالك و الشبكات المختلفة",null,5,null,null,null,null,null,null,0,null,null,0,null,null,0,null,null,0,null,null,0,0,0,0,null,null,0,null,null,0,null,null,0,0,0,0,null,null,0,null,null,0,null,null,0,null,null,0,"0"]
[{"$f":"IF(B629=\"\",\"\",SUBTOTAL(3,B$7:B629))","v":621},"البناء والأشغال العمومية","BTP0722P","مُسيّر الأشغال العمومية",null,5,null,null,null,null,null,null,0,null,null,0,null,null,0,null,null,0,null,null,0,0,0,0,null,null,0,null,null,0,null,null,0,0,0,0,null,null,0,null,null,0,null,null,0,null,null,0,"0"]
[{"$f":"IF(B630=\"\",\"\",SUBTOTAL(3,B$7:B630))","v":622},"البناء والأشغال العمومية","BTP0723P","متار مُحقق  و دراسة الأسعار",null,5,null,null,null,null,null,null,0,null,null,0,null,null,0,null,null,0,null,null,0,0,0,0,null,null,0,null,null,0,null,null,0,0,0,0,null,null,0,null,null,0,null,null,0,null,null,0,"0"]
[{"$f":"IF(B631=\"\",\"\",SUBTOTAL(3,B$7:B631))","v":623},"البناء والأشغال العمومية","BTP0724P","رسّام مسقط في الهندسة المعمارية",null,5,null,null,null,null,null,null,0,null,null,0,null,null,0,null,null,0,null,null,0,0,0,0,null,null,0,null,null,0,null,null,0,0,0,0,null,null,0,null,null,0,null,null,0,null,null,0,"0"]
[{"$f":"IF(B632=\"\",\"\",SUBTOTAL(3,B$7:B632))","v":624},"البناء والأشغال العمومية","BTP0725P","رسّام مُسقط في الاسمنت المسلـح",null,5,null,null,null,null,null,null,0,null,null,0,null,null,0,null,null,0,null,null,0,0,0,0,null,null,0,null,null,0,null,null,0,0,0,0,null,null,0,null,null,0,null,null,0,null,null,0,"0"]
[{"$f":"IF(B633=\"\",\"\",SUBTOTAL(3,B$7:B633))","v":625},"البناء والأشغال العمومية","BTP0726P","التعمير",null,5,null,null,null,null,null,null,0,null,null,0,null,null,0,null,null,0,null,null,0,0,0,0,null,null,0,null,null,0,null,null,0,0,0,0,null,null,0,null,null,0,null,null,0,null,null,0,"0"]
[{"$f":"IF(B634=\"\",\"\",SUBTOTAL(3,B$7:B634))","v":626},"البناء والأشغال العمومية","BTP0729P","الهندسة المعمارية الداخلية",null,5,null,null,null,null,null,null,0,null,null,0,null,null,0,null,null,0,null,null,0,0,0,0,null,null,0,null,null,0,null,null,0,0,0,0,null,null,0,null,null,0,null,null,0,null,null,0,"0"]
[{"$f":"IF(B635=\"\",\"\",SUBTOTAL(3,B$7:B635))","v":627},"البناء والأشغال العمومية","BTP0727P","التركيب الصحي، التدفئة والتكييف",null,5,null,null,null,null,null,null,0,null,null,0,null,null,0,null,null,0,null,null,0,0,0,0,null,null,0,null,null,0,null,null,0,0,0,0,null,null,0,null,null,0,null,null,0,null,null,0,"0"]
[{"$f":"IF(B636=\"\",\"\",SUBTOTAL(3,B$7:B636))","v":628},"البناء والأشغال العمومية","BTP0730P","إعادة تأهيل و تجديد البنايات",null,5,null,null,null,null,null,null,0,null,null,0,null,null,0,null,null,0,null,null,0,0,0,0,null,null,0,null,null,0,null,null,0,0,0,0,null,null,0,null,null,0,null,null,0,null,null,0,"0"]
[{"$f":"IF(B637=\"\",\"\",SUBTOTAL(3,B$7:B637))","v":629},"البناء والأشغال العمومية","BTP1210P","طرق وتنظيم ورشة البناء",null,5,null,null,null,null,null,null,0,null,null,0,null,null,0,null,null,0,null,null,0,0,0,0,null,null,0,null,null,0,null,null,0,0,0,0,null,null,0,null,null,0,null,null,0,null,null,0,"0"]
[{"$f":"IF(B638=\"\",\"\",SUBTOTAL(3,B$7:B638))","v":630},"البناء والأشغال العمومية","BTP1211P","دراسة و اقتصاد البنـاء",null,5,null,null,null,null,null,null,0,null,null,0,null,null,0,null,null,0,null,null,0,0,0,0,null,null,0,null,null,0,null,null,0,0,0,0,null,null,0,null,null,0,null,null,0,null,null,0,"0"]
[{"$f":"IF(B639=\"\",\"\",SUBTOTAL(3,B$7:B639))","v":631},"البناء والأشغال العمومية","BTP1805P","الطاقة الأمثل للبنايات",null,5,null,null,null,null,null,null,0,null,null,0,null,null,0,null,null,0,null,null,0,0,0,0,null,null,0,null,null,0,null,null,0,0,0,0,null,null,0,null,null,0,null,null,0,null,null,0,"0"]
[{"$f":"IF(B640=\"\",\"\",SUBTOTAL(3,B$7:B640))","v":632},"الكيمياء الصناعية والبلاستيك","CIP0709P","مراقبة نوعية المواد البلاستيكية",null,5,null,null,null,null,null,null,0,null,null,0,null,null,0,null,null,0,null,null,0,0,0,0,null,null,0,null,null,0,null,null,0,0,0,0,null,null,0,null,null,0,null,null,0,null,null,0,"0"]
[{"$f":"IF(B641=\"\",\"\",SUBTOTAL(3,B$7:B641))","v":633},"الكيمياء الصناعية والبلاستيك","CIP0710P","مراقبة نوعية المواد المطهرة و مواد التجميل",null,5,null,null,null,null,null,null,0,null,null,0,null,null,0,null,null,0,null,null,0,0,0,0,null,null,0,null,null,0,null,null,0,0,0,0,null,null,0,null,null,0,null,null,0,null,null,0,"0"]
[{"$f":"IF(B642=\"\",\"\",SUBTOTAL(3,B$7:B642))","v":634},"الكيمياء الصناعية والبلاستيك","CIP0711P","مراقبة نوعية المصنوعات الزجاجية",null,5,null,null,null,null,null,null,0,null,null,0,null,null,0,null,null,0,null,null,0,0,0,0,null,null,0,null,null,0,null,null,0,0,0,0,null,null,0,null,null,0,null,null,0,null,null,0,"0"]
[{"$f":"IF(B643=\"\",\"\",SUBTOTAL(3,B$7:B643))","v":635},"الكيمياء الصناعية والبلاستيك","CIP0712P","مراقبة نوعية المطاط الاصطناعي",null,5,null,null,null,null,null,null,0,null,null,0,null,null,0,null,null,0,null,null,0,0,0,0,null,null,0,null,null,0,null,null,0,0,0,0,null,null,0,null,null,0,null,null,0,null,null,0,"0"]
[{"$f":"IF(B644=\"\",\"\",SUBTOTAL(3,B$7:B644))","v":636},"الكيمياء الصناعية والبلاستيك","CIP1201P","الكيمياء الصناعية",null,5,null,null,null,null,null,null,0,null,null,0,null,null,0,null,null,0,null,null,0,0,0,0,null,null,0,null,null,0,null,null,0,0,0,0,null,null,0,null,null,0,null,null,0,null,null,0,"0"]
[{"$f":"IF(B645=\"\",\"\",SUBTOTAL(3,B$7:B645))","v":637},"الكيمياء الصناعية والبلاستيك","CIP1802P","الصناعات البلاستيكية",null,5,null,null,null,null,null,null,0,null,null,0,null,null,0,null,null,0,null,null,0,0,0,0,null,null,0,null,null,0,null,null,0,0,0,0,null,null,0,null,null,0,null,null,0,null,null,0,"0"]
[{"$f":"IF(B646=\"\",\"\",SUBTOTAL(3,B$7:B646))","v":638},"الكيمياء الصناعية والبلاستيك","CIP1803P","الصناعات الورقية /خيار  تحويل  الورق و الورق المقوى",null,5,null,null,null,null,null,null,0,null,null,0,null,null,0,null,null,0,null,null,0,0,0,0,null,null,0,null,null,0,null,null,0,0,0,0,null,null,0,null,null,0,null,null,0,null,null,0,"0"]
[{"$f":"IF(B647=\"\",\"\",SUBTOTAL(3,B$7:B647))","v":639},"الإنشاءات المعدنية","CML1801P","تصميم  وإنجاز هياكل السيارات",null,5,null,null,null,null,null,null,0,null,null,0,null,null,0,null,null,0,null,null,0,0,0,0,null,null,0,null,null,0,null,null,0,0,0,0,null,null,0,null,null,0,null,null,0,null,null,0,"0"]
[{"$f":"IF(B648=\"\",\"\",SUBTOTAL(3,B$7:B648))","v":640},"الإنشاءات المعدنية","CML0715P","الدراسات في الهـيـكلة المعدنية",null,5,null,null,null,null,null,null,{"$f":"J648+I648+H648+G648","v":0},null,null,{"$f":"O648+N648","v":0},null,null,{"$f":"R648+Q648","v":0},null,null,{"$f":"U648+T648","v":0},null,null,{"$f":"X648+W648","v":0},{"$f":"(N648+Q648)-(W648+T648)","v":0},{"$f":"(O648+R648)-(X648+U648)","v":0},{"$f":"(P648+S648)-(Y648+V648)","v":0},null,null,{"$f":"AD648+AC648","v":0},null,null,{"$f":"AG648+AF648","v":0},null,null,{"$f":"AJ648+AI648","v":0},{"$f":"(AC648)-(AF648)-(AI648)","v":0},{"$f":"(AD648)-(AG648)-(AJ648)","v":0},{"$f":"AM648+AL648","v":0},null,null,{"$f":"AP648+AO648","v":0},null,null,{"$f":"AS648+AR648","v":0},null,null,{"$f":"AV648+AU648","v":0},null,null,{"$f":"AY648+AX648","v":0},{"$f":"IFERROR((AK648)/AE648,\"0\")","v":"0"}]
[{"$f":"IF(B649=\"\",\"\",SUBTOTAL(3,B$7:B649))","v":641},"الإنشاءات المعدنية","CML0716P","الدراسات و التصاميم في نجارة الألومينيوم و المواد البلاستيكية (PVC)",null,5,null,null,null,null,null,null,0,null,null,0,null,null,0,null,null,0,null,null,0,0,0,0,null,null,0,null,null,0,null,null,0,0,0,0,null,null,0,null,null,0,null,null,0,null,null,0,"0"]
[{"$f":"IF(B650=\"\",\"\",SUBTOTAL(3,B$7:B650))","v":642},"الإنشاءات المعدنية","CML0717P","التلحـيم الصنــاعــي",null,5,null,null,null,null,null,null,0,null,null,0,null,null,0,null,null,0,null,null,0,0,0,0,null,null,0,null,null,0,null,null,0,0,0,0,null,null,0,null,null,0,null,null,0,null,null,0,"0"]
[{"$f":"IF(B651=\"\",\"\",SUBTOTAL(3,B$7:B651))","v":643},"الإنشاءات الميكانيكية والصناعة الحديدية\n","CMS0713P","الصيانة الصناعية في الإنشاءات الميكانيكية والصناعة الحديدية",null,5,null,null,null,null,null,null,0,null,null,0,null,null,0,null,null,0,null,null,0,0,0,0,null,null,0,null,null,0,null,null,0,0,0,0,null,null,0,null,null,0,null,null,0,null,null,0,"0"]
[{"$f":"IF(B652=\"\",\"\",SUBTOTAL(3,B$7:B652))","v":644},"الإنشاءات الميكانيكية والصناعة الحديدية\n","CMS0717P","سباكـة المزائج المقوْلبة",null,5,null,null,null,null,null,null,0,null,null,0,null,null,0,null,null,0,null,null,0,0,0,0,null,null,0,null,null,0,null,null,0,0,0,0,null,null,0,null,null,0,null,null,0,null,null,0,"0"]
[{"$f":"IF(B653=\"\",\"\",SUBTOTAL(3,B$7:B653))","v":645},"الإنشاءات الميكانيكية والصناعة الحديدية\n","CMS0714P","دراسة و إنجاز آلات و أدوات التصليح",null,5,null,null,null,null,null,null,0,null,null,0,null,null,0,null,null,0,null,null,0,0,0,0,null,null,0,null,null,0,null,null,0,0,0,0,null,null,0,null,null,0,null,null,0,null,null,0,"0"]
[{"$f":"IF(B654=\"\",\"\",SUBTOTAL(3,B$7:B654))","v":646},"الإنشاءات الميكانيكية والصناعة الحديدية\n","CMS0716P","الإنتاج الميكانيكي / خيار: تصنيع الآلات",null,5,null,null,null,null,null,null,0,null,null,0,null,null,0,null,null,0,null,null,0,0,0,0,null,null,0,null,null,0,null,null,0,0,0,0,null,null,0,null,null,0,null,null,0,null,null,0,"0"]
[{"$f":"IF(B655=\"\",\"\",SUBTOTAL(3,B$7:B655))","v":647},"الصناعة الجلدية","CPX0708P","التصنيع والإنتاج الآلي للأحذية",null,5,null,null,null,null,null,null,0,null,null,0,null,null,0,null,null,0,null,null,0,0,0,0,null,null,0,null,null,0,null,null,0,0,0,0,null,null,0,null,null,0,null,null,0,null,null,0,"0"]
[{"$f":"IF(B656=\"\",\"\",SUBTOTAL(3,B$7:B656))","v":648},"الصناعة الجلدية","CPX1804P","الصناعات الجلدية / الخيار: المدابغ",null,5,null,null,null,null,null,null,0,null,null,0,null,null,0,null,null,0,null,null,0,0,0,0,null,null,0,null,null,0,null,null,0,0,0,0,null,null,0,null,null,0,null,null,0,null,null,0,"0"]
[{"$f":"IF(B657=\"\",\"\",SUBTOTAL(3,B$7:B657))","v":649},"الصناعة الجلدية","CPX1805P","مراقبة الجودة في الصناعات الجلدية",null,5,null,null,null,null,null,null,0,null,null,0,null,null,0,null,null,0,null,null,0,0,0,0,null,null,0,null,null,0,null,null,0,0,0,0,null,null,0,null,null,0,null,null,0,null,null,0,"0"]
[{"$f":"IF(B658=\"\",\"\",SUBTOTAL(3,B$7:B658))","v":650},"الكهرباء – الإلكترونيك والطاقة","ELE0712P","الكهروتقني",null,5,null,null,null,null,null,null,0,null,null,0,null,null,0,null,null,0,null,null,0,0,0,0,null,null,0,null,null,0,null,null,0,0,0,0,null,null,0,null,null,0,null,null,0,null,null,0,"0"]
[{"$f":"IF(B659=\"\",\"\",SUBTOTAL(3,B$7:B659))","v":651},"الكهرباء – الإلكترونيك والطاقة","ELE0713P","الصيانة الصناعية",null,5,null,null,null,null,null,null,0,null,null,0,null,null,0,null,null,0,null,null,0,0,0,0,null,null,0,null,null,0,null,null,0,0,0,0,null,null,0,null,null,0,null,null,0,null,null,0,"0"]
[{"$f":"IF(B660=\"\",\"\",SUBTOTAL(3,B$7:B660))","v":652},"الكهرباء – الإلكترونيك والطاقة","ELE0714P","الكهرباء الصناعية",null,5,null,null,null,null,null,null,0,null,null,0,null,null,0,null,null,0,null,null,0,0,0,0,null,null,0,null,null,0,null,null,0,0,0,0,null,null,0,null,null,0,null,null,0,null,null,0,"0"]
[{"$f":"IF(B661=\"\",\"\",SUBTOTAL(3,B$7:B661))","v":653},"الكهرباء – الإلكترونيك والطاقة","ELE0715P","تركيب و صيانة  أجهزة التبريد والتكييف",null,5,null,null,null,null,null,null,0,null,null,0,null,null,0,null,null,0,null,null,0,0,0,0,null,null,0,null,null,0,null,null,0,0,0,0,null,null,0,null,null,0,null,null,0,null,null,0,"0"]
[{"$f":"IF(B662=\"\",\"\",SUBTOTAL(3,B$7:B662))","v":654},"الكهرباء – الإلكترونيك والطاقة","ELE0716P","صيانة الأجهزة  المعلوماتية و المكتبية",null,5,null,null,null,null,null,null,0,null,null,0,null,null,0,null,null,0,null,null,0,0,0,0,null,null,0,null,null,0,null,null,0,0,0,0,null,null,0,null,null,0,null,null,0,null,null,0,"0"]
[{"$f":"IF(B663=\"\",\"\",SUBTOTAL(3,B$7:B663))","v":655},"الكهرباء – الإلكترونيك والطاقة","ELE0717P","صيانة الأجهزة السمعية البصرية",null,5,null,null,null,null,null,null,0,null,null,0,null,null,0,null,null,0,null,null,0,0,0,0,null,null,0,null,null,0,null,null,0,0,0,0,null,null,0,null,null,0,null,null,0,null,null,0,"0"]
[{"$f":"IF(B664=\"\",\"\",SUBTOTAL(3,B$7:B664))","v":656},"الكهرباء – الإلكترونيك والطاقة","ELE0718P","الالكترونيك الصناعية",null,5,null,null,null,null,null,null,0,null,null,0,null,null,0,null,null,0,null,null,0,0,0,0,null,null,0,null,null,0,null,null,0,0,0,0,null,null,0,null,null,0,null,null,0,null,null,0,"0"]
[{"$f":"IF(B665=\"\",\"\",SUBTOTAL(3,B$7:B665))","v":657},"الكهرباء – الإلكترونيك والطاقة","ELE0719P","الآلية و الضبط",null,5,null,null,null,null,null,null,0,null,null,0,null,null,0,null,null,0,null,null,0,0,0,0,null,null,0,null,null,0,null,null,0,0,0,0,null,null,0,null,null,0,null,null,0,null,null,0,"0"]
[{"$f":"IF(B666=\"\",\"\",SUBTOTAL(3,B$7:B666))","v":658},"الكهرباء – الإلكترونيك والطاقة","ELE0720P","صيانة المُعدّات الطبية",null,5,null,null,null,null,null,null,0,null,null,0,null,null,0,null,null,0,null,null,0,0,0,0,null,null,0,null,null,0,null,null,0,0,0,0,null,null,0,null,null,0,null,null,0,null,null,0,"0"]
[{"$f":"IF(B667=\"\",\"\",SUBTOTAL(3,B$7:B667))","v":659},"الكهرباء – الإلكترونيك والطاقة","ELE1214P","التشغيل الآلي للمنازل ",null,5,null,null,null,null,null,null,0,null,null,0,null,null,0,null,null,0,null,null,0,0,0,0,null,null,0,null,null,0,null,null,0,0,0,0,null,null,0,null,null,0,null,null,0,null,null,0,"0"]
[{"$f":"IF(B668=\"\",\"\",SUBTOTAL(3,B$7:B668))","v":660},"الكهرباء – الإلكترونيك والطاقة","ELE1215P","صيانة الأنظمة الميكانيكية الآلية",null,5,null,null,null,null,null,null,0,null,null,0,null,null,0,null,null,0,null,null,0,0,0,0,null,null,0,null,null,0,null,null,0,0,0,0,null,null,0,null,null,0,null,null,0,null,null,0,"0"]
[{"$f":"IF(B669=\"\",\"\",SUBTOTAL(3,B$7:B669))","v":661},"الكهرباء – الإلكترونيك والطاقة","ELE1804P","صيانة أنظمة الرياح",null,5,null,null,null,null,null,null,0,null,null,0,null,null,0,null,null,0,null,null,0,0,0,0,null,null,0,null,null,0,null,null,0,0,0,0,null,null,0,null,null,0,null,null,0,null,null,0,"0"]
[{"$f":"IF(B670=\"\",\"\",SUBTOTAL(3,B$7:B670))","v":662},"الفندقة -الإطعام والسياحة","HRT1805P","الفندقة و الإطعام / خيار: فن الطاولة والخدمات",null,5,null,null,null,null,null,null,0,null,null,0,null,null,0,null,null,0,null,null,0,0,0,0,null,null,0,null,null,0,null,null,0,0,0,0,null,null,0,null,null,0,null,null,0,null,null,0,"0"]
[{"$f":"IF(B671=\"\",\"\",SUBTOTAL(3,B$7:B671))","v":663},"الفندقة -الإطعام والسياحة","HRT1806P","الفندقة و الإطعام / خيار : فن الطبخ",null,5,null,null,null,null,null,null,0,null,null,0,null,null,0,null,null,0,null,null,0,0,0,0,null,null,0,null,null,0,null,null,0,0,0,0,null,null,0,null,null,0,null,null,0,null,null,0,"0"]
[{"$f":"IF(B672=\"\",\"\",SUBTOTAL(3,B$7:B672))","v":664},"الفندقة -الإطعام والسياحة","HRT1807P","الفندقة و الإطعام / خيار :  الطبخ التقليدي",null,5,null,null,null,null,null,null,0,null,null,0,null,null,0,null,null,0,null,null,0,0,0,0,null,null,0,null,null,0,null,null,0,0,0,0,null,null,0,null,null,0,null,null,0,null,null,0,"0"]
[{"$f":"IF(B673=\"\",\"\",SUBTOTAL(3,B$7:B673))","v":665},"الفندقة -الإطعام والسياحة","HRT1808P","الفندقة / خيار: تسيير و إدارة الفندق",null,5,null,null,null,null,null,null,0,null,null,0,null,null,0,null,null,0,null,null,0,0,0,0,null,null,0,null,null,0,null,null,0,0,0,0,null,null,0,null,null,0,null,null,0,null,null,0,"0"]
[{"$f":"IF(B674=\"\",\"\",SUBTOTAL(3,B$7:B674))","v":666},"الفندقة -الإطعام والسياحة","HRT1809P","التسيير الفندقي / خيار: الإيواء",null,5,null,null,null,null,null,null,0,null,null,0,null,null,0,null,null,0,null,null,0,0,0,0,null,null,0,null,null,0,null,null,0,0,0,0,null,null,0,null,null,0,null,null,0,null,null,0,"0"]
[{"$f":"IF(B675=\"\",\"\",SUBTOTAL(3,B$7:B675))","v":667},"الفندقة -الإطعام والسياحة","HRT1810P","التسيير الفندقي / خيار: الاستقبال",null,5,null,null,null,null,null,null,0,null,null,0,null,null,0,null,null,0,null,null,0,0,0,0,null,null,0,null,null,0,null,null,0,0,0,0,null,null,0,null,null,0,null,null,0,null,null,0,"0"]
[{"$f":"IF(B676=\"\",\"\",SUBTOTAL(3,B$7:B676))","v":668},"الفندقة -الإطعام والسياحة","HRT0711P","التنشيط و التسيير السياحي",null,5,null,null,null,null,null,null,0,null,null,0,null,null,0,null,null,0,null,null,0,0,0,0,null,null,0,null,null,0,null,null,0,0,0,0,null,null,0,null,null,0,null,null,0,null,null,0,"0"]
[{"$f":"IF(B677=\"\",\"\",SUBTOTAL(3,B$7:B677))","v":669},"الفندقة -الإطعام والسياحة","HRT0712P","السياحة / خيار: مرشد المتاحف",null,5,null,null,null,null,null,null,0,null,null,0,null,null,0,null,null,0,null,null,0,0,0,0,null,null,0,null,null,0,null,null,0,0,0,0,null,null,0,null,null,0,null,null,0,null,null,0,"0"]
[{"$f":"IF(B678=\"\",\"\",SUBTOTAL(3,B$7:B678))","v":670},"الفندقة -الإطعام والسياحة","HRT0713P","السياحة / خيار: وكالة السفر",null,5,null,null,null,null,null,null,0,null,null,0,null,null,0,null,null,0,null,null,0,0,0,0,null,null,0,null,null,0,null,null,0,0,0,0,null,null,0,null,null,0,null,null,0,null,null,0,"0"]
[{"$f":"IF(B679=\"\",\"\",SUBTOTAL(3,B$7:B679))","v":671},"الفندقة -الإطعام والسياحة","HRT1203P","السياحة / خيار: المرشد السياحي المحلي",null,5,null,null,null,null,null,null,0,null,null,0,null,null,0,null,null,0,null,null,0,0,0,0,null,null,0,null,null,0,null,null,0,0,0,0,null,null,0,null,null,0,null,null,0,null,null,0,"0"]
[{"$f":"IF(B680=\"\",\"\",SUBTOTAL(3,B$7:B680))","v":672},"صناعة الأغذية الز ا رعية","IAA0714P","إنتاج المواد الدسمة",null,5,null,null,null,null,null,null,0,null,null,0,null,null,0,null,null,0,null,null,0,0,0,0,null,null,0,null,null,0,null,null,0,0,0,0,null,null,0,null,null,0,null,null,0,null,null,0,"0"]
[{"$f":"IF(B681=\"\",\"\",SUBTOTAL(3,B$7:B681))","v":673},"المعلوماتية-الرقمنة و الإتصالات","INT0703P","المعلوماتية / خيار: قاعدة المعطيات",null,5,null,null,null,null,null,null,0,null,null,0,null,null,0,null,null,0,null,null,0,0,0,0,null,null,0,null,null,0,null,null,0,0,0,0,null,null,0,null,null,0,null,null,0,null,null,0,"0"]
[{"$f":"IF(B682=\"\",\"\",SUBTOTAL(3,B$7:B682))","v":674},"المعلوماتية-الرقمنة و الإتصالات","INT0704P","المعلوماتية / خيار: صيانة الأنظمة المعلوماتية",null,5,null,null,null,null,null,null,0,null,null,0,null,null,0,null,null,0,null,null,0,0,0,0,null,null,0,null,null,0,null,null,0,0,0,0,null,null,0,null,null,0,null,null,0,null,null,0,"0"]
[{"$f":"IF(B683=\"\",\"\",SUBTOTAL(3,B$7:B683))","v":675},"المعلوماتية-الرقمنة و الإتصالات","INT0705P","إدارة وأمـن شبكـات المعلـوماتيــة",null,5,null,null,null,null,null,null,0,null,null,0,null,null,0,null,null,0,null,null,0,0,0,0,null,null,0,null,null,0,null,null,0,0,0,0,null,null,0,null,null,0,null,null,0,null,null,0,"0"]
[{"$f":"IF(B684=\"\",\"\",SUBTOTAL(3,B$7:B684))","v":676},"المعلوماتية-الرقمنة و الإتصالات","INT1601P","المعلوماتية / خيار : مُطوّر اللواب والوسائط الإعلامية",null,5,null,null,null,null,null,null,0,null,null,0,null,null,0,null,null,0,null,null,0,0,0,0,null,null,0,null,null,0,null,null,0,0,0,0,null,null,0,null,null,0,null,null,0,null,null,0,"0"]
[{"$f":"IF(B685=\"\",\"\",SUBTOTAL(3,B$7:B685))","v":677},"المعلوماتية-الرقمنة و الإتصالات","INT1801P","الأنظمة الرقمية/ خيار: المعلوماتية والشبكات",null,5,null,null,null,null,null,null,0,null,null,0,null,null,0,null,null,0,null,null,0,0,0,0,null,null,0,null,null,0,null,null,0,0,0,0,null,null,0,null,null,0,null,null,0,null,null,0,"0"]
[{"$f":"IF(B686=\"\",\"\",SUBTOTAL(3,B$7:B686))","v":678},"المعلوماتية-الرقمنة و الإتصالات","INT1703P","شبكات الاتصالات السلكية",null,5,null,null,null,null,null,null,0,null,null,0,null,null,0,null,null,0,null,null,0,0,0,0,null,null,0,null,null,0,null,null,0,0,0,0,null,null,0,null,null,0,null,null,0,null,null,0,"0"]
[{"$f":"IF(B687=\"\",\"\",SUBTOTAL(3,B$7:B687))","v":679},"مهن البيئة والمياه","MEE0705P","إستغلال أنظمة التزويد بالماء الشروب",null,5,null,null,null,null,null,null,0,null,null,0,null,null,0,null,null,0,null,null,0,0,0,0,null,null,0,null,null,0,null,null,0,0,0,0,null,null,0,null,null,0,null,null,0,null,null,0,"0"]
[{"$f":"IF(B688=\"\",\"\",SUBTOTAL(3,B$7:B688))","v":680},"مهن البيئة والمياه","MEE0706P","استغلال وصيانة أنظمة التطهير",null,5,null,null,null,null,null,null,0,null,null,0,null,null,0,null,null,0,null,null,0,0,0,0,null,null,0,null,null,0,null,null,0,0,0,0,null,null,0,null,null,0,null,null,0,null,null,0,"0"]
[{"$f":"IF(B689=\"\",\"\",SUBTOTAL(3,B$7:B689))","v":681},"مهن البيئة والمياه","MEE0707P","استغلال محطّـات معالجة المياه",null,5,null,null,null,null,null,null,0,null,null,0,null,null,0,null,null,0,null,null,0,0,0,0,null,null,0,null,null,0,null,null,0,0,0,0,null,null,0,null,null,0,null,null,0,null,null,0,"0"]
[{"$f":"IF(B690=\"\",\"\",SUBTOTAL(3,B$7:B690))","v":682},"مهن البيئة والمياه","MEE0708P","معالجة المياه",null,5,null,null,null,null,null,null,0,null,null,0,null,null,0,null,null,0,null,null,0,0,0,0,null,null,0,null,null,0,null,null,0,0,0,0,null,null,0,null,null,0,null,null,0,null,null,0,"0"]
[{"$f":"IF(B691=\"\",\"\",SUBTOTAL(3,B$7:B691))","v":683},"مهن البيئة والمياه","MEE0709P","تسيير و اقتصاد الماء",null,5,null,null,null,null,null,null,0,null,null,0,null,null,0,null,null,0,null,null,0,0,0,0,null,null,0,null,null,0,null,null,0,0,0,0,null,null,0,null,null,0,null,null,0,null,null,0,"0"]
[{"$f":"IF(B692=\"\",\"\",SUBTOTAL(3,B$7:B692))","v":684},"مهن البيئة والمياه","MEE0710P","تسيير و اقتصاد الماء",null,5,null,null,null,null,null,null,0,null,null,0,null,null,0,null,null,0,null,null,0,0,0,0,null,null,0,null,null,0,null,null,0,0,0,0,null,null,0,null,null,0,null,null,0,null,null,0,"0"]
[{"$f":"IF(B693=\"\",\"\",SUBTOTAL(3,B$7:B693))","v":""},null,"MES0708P","تربية الأطفال الصغار",null,5,null,null,null,null,null,null,0,null,null,0,null,null,0,null,null,0,null,null,0,0,0,0,null,null,0,null,null,0,null,null,0,0,0,0,null,null,0,null,null,0,null,null,0,null,null,0,"0"]
[{"$f":"IF(B694=\"\",\"\",SUBTOTAL(3,B$7:B694))","v":""},null,"MES0709P","تجميل و حلاقة",null,5,null,null,null,null,null,null,0,null,null,0,null,null,0,null,null,0,null,null,0,0,0,0,null,null,0,null,null,0,null,null,0,0,0,0,null,null,0,null,null,0,null,null,0,null,null,0,"0"]
[{"$f":"IF(B695=\"\",\"\",SUBTOTAL(3,B$7:B695))","v":""},null,"MES1203P","التجميل و مستحضرات التجميل",null,5,null,null,null,null,null,null,0,null,null,0,null,null,0,null,null,0,null,null,0,0,0,0,null,null,0,null,null,0,null,null,0,0,0,0,null,null,0,null,null,0,null,null,0,null,null,0,"0"]
[{"$f":"IF(B696=\"\",\"\",SUBTOTAL(3,B$7:B696))","v":685},"ميكانيك المحركات والآليات","MME0716P","تركيب وصيانة عتاد الري",null,5,null,null,null,null,null,null,0,null,null,0,null,null,0,null,null,0,null,null,0,0,0,0,null,null,0,null,null,0,null,null,0,0,0,0,null,null,0,null,null,0,null,null,0,null,null,0,"0"]
[{"$f":"IF(B697=\"\",\"\",SUBTOTAL(3,B$7:B697))","v":686},"ميكانيك المحركات والآليات","MME0717P","صيانة المركبات الصناعية",null,5,null,null,null,null,null,null,0,null,null,0,null,null,0,null,null,0,null,null,0,0,0,0,null,null,0,null,null,0,null,null,0,0,0,0,null,null,0,null,null,0,null,null,0,null,null,0,"0"]
[{"$f":"IF(B698=\"\",\"\",SUBTOTAL(3,B$7:B698))","v":687},"ميكانيك المحركات والآليات","MME0718P","صيانة آليات الورشات",null,5,null,null,null,null,null,null,0,null,null,0,null,null,0,null,null,0,null,null,0,0,0,0,null,null,0,null,null,0,null,null,0,0,0,0,null,null,0,null,null,0,null,null,0,null,null,0,"0"]
[{"$f":"IF(B699=\"\",\"\",SUBTOTAL(3,B$7:B699))","v":688},"ميكانيك المحركات والآليات","MME0719P","صيانة الآلات الفلاحية",null,5,null,null,null,null,null,null,0,null,null,0,null,null,0,null,null,0,null,null,0,0,0,0,null,null,0,null,null,0,null,null,0,0,0,0,null,null,0,null,null,0,null,null,0,null,null,0,"0"]
[{"$f":"IF(B700=\"\",\"\",SUBTOTAL(3,B$7:B700))","v":689},"ميكانيك المحركات والآليات","MME1803P","ميكاترونيك السيارات",null,5,null,null,null,null,null,null,0,null,null,0,null,null,0,null,null,0,null,null,0,0,0,0,null,null,0,null,null,0,null,null,0,0,0,0,null,null,0,null,null,0,null,null,0,null,null,0,"0"]
[{"$f":"IF(B701=\"\",\"\",SUBTOTAL(3,B$7:B701))","v":690},"تقنيات الادارة والتسيير","TAG0710P","التوثيق و الأرشيف",null,5,null,null,null,null,null,null,0,null,null,0,null,null,0,null,null,0,null,null,0,0,0,0,null,null,0,null,null,0,null,null,0,0,0,0,null,null,0,null,null,0,null,null,0,null,null,0,"0"]
[{"$f":"IF(B702=\"\",\"\",SUBTOTAL(3,B$7:B702))","v":691},"تقنيات الادارة والتسيير","TAG0711P","التجارة الدولية",null,5,null,null,null,null,null,null,0,null,null,0,null,null,0,null,null,0,null,null,0,0,0,0,null,null,0,null,null,0,null,null,0,0,0,0,null,null,0,null,null,0,null,null,0,null,null,0,"0"]
[{"$f":"IF(B703=\"\",\"\",SUBTOTAL(3,B$7:B703))","v":692},"تقنيات الادارة والتسيير","TAG0712P","التسويق",null,5,null,null,null,null,null,null,0,null,null,0,null,null,0,null,null,0,null,null,0,0,0,0,null,null,0,null,null,0,null,null,0,0,0,0,null,null,0,null,null,0,null,null,0,null,null,0,"0"]
[{"$f":"IF(B704=\"\",\"\",SUBTOTAL(3,B$7:B704))","v":693},"تقنيات الادارة والتسيير","TAG0713P","أمين المديرية",null,5,null,null,null,null,null,null,0,null,null,0,null,null,0,null,null,0,null,null,0,0,0,0,null,null,0,null,null,0,null,null,0,0,0,0,null,null,0,null,null,0,null,null,0,null,null,0,"0"]
[{"$f":"IF(B705=\"\",\"\",SUBTOTAL(3,B$7:B705))","v":694},"تقنيات الادارة والتسيير","TAG0714P","المحاسبة و التسيير",null,5,null,null,null,null,null,null,0,null,null,0,null,null,0,null,null,0,null,null,0,0,0,0,null,null,0,null,null,0,null,null,0,0,0,0,null,null,0,null,null,0,null,null,0,null,null,0,"0"]
[{"$f":"IF(B706=\"\",\"\",SUBTOTAL(3,B$7:B706))","v":695},"تقنيات الادارة والتسيير","TAG1801P","تسيير المخزنات و اللوجستيك",null,5,null,null,null,null,null,null,0,null,null,0,null,null,0,null,null,0,null,null,0,0,0,0,null,null,0,null,null,0,null,null,0,0,0,0,null,null,0,null,null,0,null,null,0,null,null,0,"0"]
[{"$f":"IF(B707=\"\",\"\",SUBTOTAL(3,B$7:B707))","v":696},"تقنيات الادارة والتسيير","TAG1207P","المحاسبة و المالية",null,5,null,null,null,null,null,null,0,null,null,0,null,null,0,null,null,0,null,null,0,0,0,0,null,null,0,null,null,0,null,null,0,0,0,0,null,null,0,null,null,0,null,null,0,null,null,0,"0"]
[{"$f":"IF(B708=\"\",\"\",SUBTOTAL(3,B$7:B708))","v":697},"تقنيات الادارة والتسيير","TAG0715P","البنوك",null,5,null,null,null,null,null,null,0,null,null,0,null,null,0,null,null,0,null,null,0,0,0,0,null,null,0,null,null,0,null,null,0,0,0,0,null,null,0,null,null,0,null,null,0,null,null,0,"0"]
[{"$f":"IF(B709=\"\",\"\",SUBTOTAL(3,B$7:B709))","v":698},"تقنيات الادارة والتسيير","TAG0716P","التأمينات",null,5,null,null,null,null,null,null,0,null,null,0,null,null,0,null,null,0,null,null,0,0,0,0,null,null,0,null,null,0,null,null,0,0,0,0,null,null,0,null,null,0,null,null,0,null,null,0,"0"]
[{"$f":"IF(B710=\"\",\"\",SUBTOTAL(3,B$7:B710))","v":699},"تقنيات الادارة والتسيير","TAG0717P","تسيير الموارد البشرية",null,5,null,null,null,null,null,null,0,null,null,0,null,null,0,null,null,0,null,null,0,0,0,0,null,null,0,null,null,0,null,null,0,0,0,0,null,null,0,null,null,0,null,null,0,null,null,0,"0"]
[{"$f":"IF(B711=\"\",\"\",SUBTOTAL(3,B$7:B711))","v":700},"تقنيات الادارة والتسيير","TAG0721P","الاقتصاد و القانون",null,5,null,null,null,null,null,null,0,null,null,0,null,null,0,null,null,0,null,null,0,0,0,0,null,null,0,null,null,0,null,null,0,0,0,0,null,null,0,null,null,0,null,null,0,null,null,0,"0"]
[{"$f":"IF(B712=\"\",\"\",SUBTOTAL(3,B$7:B712))","v":701},"تقنيات الادارة والتسيير","TAG1802P","تسيير تجارة التجزئة",null,5,null,null,null,null,null,null,{"$f":"J712+I712+H712+G712","v":0},null,null,{"$f":"O712+N712","v":0},null,null,{"$f":"R712+Q712","v":0},null,null,{"$f":"U712+T712","v":0},null,null,{"$f":"X712+W712","v":0},{"$f":"(N712+Q712)-(W712+T712)","v":0},{"$f":"(O712+R712)-(X712+U712)","v":0},{"$f":"(P712+S712)-(Y712+V712)","v":0},null,null,{"$f":"AD712+AC712","v":0},null,null,{"$f":"AG712+AF712","v":0},null,null,{"$f":"AJ712+AI712","v":0},{"$f":"(AC712)-(AF712)-(AI712)","v":0},{"$f":"(AD712)-(AG712)-(AJ712)","v":0},{"$f":"AM712+AL712","v":0},null,null,{"$f":"AP712+AO712","v":0},null,null,{"$f":"AS712+AR712","v":0},null,null,{"$f":"AV712+AU712","v":0},null,null,{"$f":"AY712+AX712","v":0},{"$f":"IFERROR((AK712)/AE712,\"0\")","v":"0"}]
[{"$f":"IF(B713=\"\",\"\",SUBTOTAL(3,B$7:B713))","v":702},"تقنيات الادارة والتسيير","TAG1803P","مستشار الهاتف",null,5,null,null,null,null,null,null,0,null,null,0,null,null,0,null,null,0,null,null,0,0,0,0,null,null,0,null,null,0,null,null,0,0,0,0,null,null,0,null,null,0,null,null,0,null,null,0,"0"]
[{"$f":"IF(B714=\"\",\"\",SUBTOTAL(3,B$7:B714))","v":703},"تقنيات السمعي البصري","TAV0703P","تقنيات السمعي البصري / خيار : الصورة",null,5,null,null,null,null,null,null,0,null,null,0,null,null,0,null,null,0,null,null,0,0,0,0,null,null,0,null,null,0,null,null,0,0,0,0,null,null,0,null,null,0,null,null,0,null,null,0,"0"]
[{"$f":"IF(B715=\"\",\"\",SUBTOTAL(3,B$7:B715))","v":704},"تقنيات السمعي البصري","TAV0704P","تقنيات السمعي البصري/ خيار : الصوت",null,5,null,null,null,null,null,null,0,null,null,0,null,null,0,null,null,0,null,null,0,0,0,0,null,null,0,null,null,0,null,null,0,0,0,0,null,null,0,null,null,0,null,null,0,null,null,0,"0"]
[{"$f":"IF(B716=\"\",\"\",SUBTOTAL(3,B$7:B716))","v":705},"تقنيات السمعي البصري","TAV0705P","تقنيات السمعي البصري/ خيار : التركيب",null,5,null,null,null,null,null,null,0,null,null,0,null,null,0,null,null,0,null,null,0,0,0,0,null,null,0,null,null,0,null,null,0,0,0,0,null,null,0,null,null,0,null,null,0,null,null,0,"0"]
[{"$f":"IF(B717=\"\",\"\",SUBTOTAL(3,B$7:B717))","v":706},"تقنيات السمعي البصري","TAV1201P","تقنيات استغلال و صيانة التجهيزات السمعية البصرية",null,5,null,null,null,null,null,null,0,null,null,0,null,null,0,null,null,0,null,null,0,0,0,0,null,null,0,null,null,0,null,null,0,0,0,0,null,null,0,null,null,0,null,null,0,null,null,0,"0"]
[{"$f":"IF(B718=\"\",\"\",SUBTOTAL(3,B$7:B718))","v":707},"تقنيات السمعي البصري","TAV1805P","السمعي البصري/ خيار:  التركيب و ما بعد الإنتاج",null,5,null,null,null,null,null,null,0,null,null,0,null,null,0,null,null,0,null,null,0,0,0,0,null,null,0,null,null,0,null,null,0,0,0,0,null,null,0,null,null,0,null,null,0,null,null,0,"0"]
[{"$f":"IF(B719=\"\",\"\",SUBTOTAL(3,B$7:B719))","v":708},"النسيج والألبسة","THC0707P","تصميم الأزياء",null,5,null,null,null,null,null,null,0,null,null,0,null,null,0,null,null,0,null,null,0,0,0,0,null,null,0,null,null,0,null,null,0,0,0,0,null,null,0,null,null,0,null,null,0,null,null,0,"0"]
["المجموع",null,null,null,null,null,{"$f":"SUBTOTAL(109,G7:G719)","v":0},0,0,0,0,0,0,0,0,0,0,0,0,0,0,0,0,0,0,0,0,0,0,0,0,0,0,0,0,0,0,0,0,0,0,0,0,0,0,0,0,0,0,0,0,0,{"$f":"IFERROR((AK720)/AE720,\"0\")","v":"0"}]
[]
[]
[null,"المسؤول البيداغوجي",null,null,null,null,null,null,null,null,null,null,null,null,null,null,null,null,null,null,null,null,null,null,null,null,null,null,null,null,null,null,null,null,null,null,null,null,null,null,null,null,null,null,null,"المدير "]